Department family,Entity,Date,Expense type,Expense area,Supplier,Supplier type,Description,Transaction number, Amount 
Department for Education,DEPARTMENT FOR EDUCATION,01/11/2012,ICT Commodities,Chief Information Officer Group,CAPGEMINI UK PLC,Commercial,IT Services,4000101252,"1,268"
Department for Education,DEPARTMENT FOR EDUCATION,01/11/2012,ICT Commodities,Chief Information Officer Group,CAPGEMINI UK PLC,Commercial,IT Services,4000101252,"115,793"
Department for Education,TEACHING AGENCY,01/11/2012,Professional Services Other,Supply and Recruitment Division,PEARSON DRIVING ASSESSMENTS,Commercial,"Fees / expenses of professionals from the private sector, for example to implement advice or changes",4000101281,"402,119"
Department for Education,DEPARTMENT FOR EDUCATION,01/11/2012,Grants,Families Group,CAFCASS,Central Government,"Grants paid to organisations including agencies, arms length bodies and educational establishments",4000101251,"695,568"
Department for Education,DEPARTMENT FOR EDUCATION,01/11/2012,Facilities,School Standards Group,JK SERVICES ESSEX LTD,Commercial,"Building maintenance and repair, including repainting, replacing flooring, etc.",4000101268,"1,895"
Department for Education,DEPARTMENT FOR EDUCATION,01/11/2012,Facilities,School Standards Group,JK SERVICES ESSEX LTD,Commercial,"Building maintenance and repair, including repainting, replacing flooring, etc.",4000101268,"73,692"
Department for Education,DEPARTMENT FOR EDUCATION,01/11/2012,Grants,Academies Delivery Group,PORTSMOUTH & WINCHESTER DIOCESAN ACADEMIES TRUST,Public Sector,"Grants paid to organisations including agencies, arms length bodies and educational establishments",4000101284,"38,731"
Department for Education,DEPARTMENT FOR EDUCATION,01/11/2012,Programme costs,Academies Delivery Group,APPLEYARDS LTD,Commercial,Funding to deliver policies (excluding consultancy) paid to third parties via a service delivery contract,4000101244,"12,632"
Department for Education,DEPARTMENT FOR EDUCATION,01/11/2012,Programme costs,Free School Group,APPLEYARDS LTD,Commercial,Funding to deliver policies (excluding consultancy) paid to third parties via a service delivery contract,4000101244,"42,317"
Department for Education,NATIONAL COLLEGE FOR SCHOOL LEADERSHIP AGENCY,01/11/2012,Grants,Teaching Schools Directorate,FREDERICK BIRD PRIMARY SCHOOL,Public Sector,"Grants paid to organisations including agencies, arms length bodies and educational establishments",4000101259,"55,000"
Department for Education,NATIONAL COLLEGE FOR SCHOOL LEADERSHIP AGENCY,01/11/2012,Grants,Teaching Schools Directorate,KIBWORTH CHURCH OF ENGLAND PRIMARY SCHOOL,Public Sector,"Grants paid to organisations including agencies, arms length bodies and educational establishments",4000101271,"55,000"
Department for Education,NATIONAL COLLEGE FOR SCHOOL LEADERSHIP AGENCY,01/11/2012,Grants,Teaching Schools Directorate,POOLE TEACHING SCHOOL ALLIANCE,Public Sector,"Grants paid to organisations including agencies, arms length bodies and educational establishments",4000101277,"55,000"
Department for Education,NATIONAL COLLEGE FOR SCHOOL LEADERSHIP AGENCY,01/11/2012,Grants,Teaching Schools Directorate,PRUDHOE WEST FIRST SCHOOL,Public Sector,"Grants paid to organisations including agencies, arms length bodies and educational establishments",4000101285,"65,000"
Department for Education,NATIONAL COLLEGE FOR SCHOOL LEADERSHIP AGENCY,01/11/2012,Grants,Teaching Schools Directorate,RAVENS WOOD SCHOOL,Public Sector,"Grants paid to organisations including agencies, arms length bodies and educational establishments",4000101287,"55,000"
Department for Education,NATIONAL COLLEGE FOR SCHOOL LEADERSHIP AGENCY,01/11/2012,Grants,Teaching Schools Directorate,ST JOHN VIANNEY SCHOOL TS,Public Sector,"Grants paid to organisations including agencies, arms length bodies and educational establishments",4000101294,"56,500"
Department for Education,EDUCATION FUNDING AGENCY,01/11/2012,Grants,Local Authority Team,Hornbeam Academy Trust,Public Sector,Capital grants paid to local authorities,PAYBACSAUTO 43063,"220,471"
Department for Education,DEPARTMENT FOR EDUCATION,01/11/2012,Grants,Academies Delivery Group,METROPOLITAN BOROUGH OF WIRRAL,Public Sector,To clear budget deficit liability of a maintained school to facilitate conversion to an academy.,4000101275,"225,138"
Department for Education,DEPARTMENT FOR EDUCATION,02/11/2012,ICT Commodities,Chief Information Officer Group,CAPGEMINI UK PLC,Commercial,IT Services,4000101359,"27,716"
Department for Education,DEPARTMENT FOR EDUCATION,02/11/2012,Grants,Children Young People and Families Early Years Extended Schools and Special Needs Group,THE FAMILY FUND TRUST,VCS,Grants to third sector organisations / not for profit organisations,4000101459,"2,275,000"
Department for Education,DEPARTMENT FOR EDUCATION,02/11/2012,Grants,Children Young People and Families Early Years Extended Schools and Special Needs Group,NASEN,VCS,Grants to third sector organisations / not for profit organisations,4000101420,"116,580"
Department for Education,DEPARTMENT FOR EDUCATION,02/11/2012,Grants,Children Young People and Families Early Years Extended Schools and Special Needs Group,DAYCARE TRUST,VCS,Grants to third sector organisations / not for profit organisations,4000101373,"38,415"
Department for Education,DEPARTMENT FOR EDUCATION,02/11/2012,Professional Services Other,Children Young People and Families Early Years Extended Schools and Special Needs Group,IPSOS MORI,Commercial,Research and evaluation activities including contracted out data collation / gathering exercises when there is no analysis or recommendation,4000101393,"66,744"
Department for Education,DEPARTMENT FOR EDUCATION,02/11/2012,Operational Goods,Families Group,CAPGEMINI UK PLC,Commercial,Books and publications including journals,4000101359,"22,440"
Department for Education,DEPARTMENT FOR EDUCATION,02/11/2012,Programme costs,Families Group,ECORYS UK LTD,Commercial,Funding to deliver policies (excluding consultancy) paid to third parties via a service delivery contract,4000101379,"52,135"
Department for Education,DEPARTMENT FOR EDUCATION,02/11/2012,Professional Services Other,Families Group,UNIVERSITY OF WARWICK,Public Sector,Research and evaluation activities including contracted out data collation / gathering exercises when there is no analysis or recommendation,4000101468,"230,550"
Department for Education,DEPARTMENT FOR EDUCATION,02/11/2012,Grants,Families Group,CAFCASS,Central Government,Current grant funding to arms length bodies for DfE's contribution to fund activity,2000672,"9,232,230"
Department for Education,DEPARTMENT FOR EDUCATION,02/11/2012,Personnel Related,People and Change,EDENRED,Commercial,Childcare services provided for staff including the management fee and subsidy costs,4000101380,"82,521"
Department for Education,DEPARTMENT FOR EDUCATION,02/11/2012,Grants,Supporting Children and Young People Group,OFFICE OF CHILDRENS COMMISSIONER,Central Government,Current grant funding to arms length bodies for DfE's contribution to fund activity,2000674,"249,695"
Department for Education,DEPARTMENT FOR EDUCATION,02/11/2012,Grants,Supporting Children and Young People Group,AMBITION,Commercial,Grants to third sector organisations / not for profit organisations,4000101343,"144,418"
Department for Education,DEPARTMENT FOR EDUCATION,02/11/2012,Grants,Supporting Children and Young People Group,KEEPING KIDS COMPANY,VCS,Grants to third sector organisations / not for profit organisations,4000101401,"399,668"
Department for Education,DEPARTMENT FOR EDUCATION,02/11/2012,Grants,Supporting Children and Young People Group,THE FOYER FEDERATION,VCS,Grants to third sector organisations / not for profit organisations,4000101460,"78,754"
Department for Education,DEPARTMENT FOR EDUCATION,02/11/2012,Facilities,Chief Information Officer Group,COVENTRY CITY COUNCIL,Public Sector,Business rates,4000101364,"67,302"
Department for Education,DEPARTMENT FOR EDUCATION,02/11/2012,Facilities,Chief Information Officer Group,MANCHESTER CITY COUNCIL,Public Sector,Business rates,4000101418,"29,604"
Department for Education,DEPARTMENT FOR EDUCATION,02/11/2012,Facilities,Chief Information Officer Group,SHEFFIELD CITY COUNCIL,Public Sector,Business rates,4000101449,"59,540"
Department for Education,DEPARTMENT FOR EDUCATION,02/11/2012,Facilities,Chief Information Officer Group,WESTMINSTER CITY COUNCIL,Public Sector,Business rates,4000101473,"437,872"
Department for Education,DEPARTMENT FOR EDUCATION,02/11/2012,Facilities,Chief Information Officer Group,HALTON BOROUGH COUNCIL,Public Sector,Business rates,4000101387,"39,239"
Department for Education,DEPARTMENT FOR EDUCATION,02/11/2012,Grants,Participation and Vocational Education Group,SKILL FORCE DEVELOPMENT,VCS,Grants to third sector organisations / not for profit organisations,4000101452,"107,791"
Department for Education,TEACHERS PENSION SCHEME,02/11/2012,Funding to Pay Teachers' Pensions,Workforce Group,CAPITA TP HSBC,Commercial,Funding to pay Teachers' Pensions,1001306,"33,345"
Department for Education,TEACHERS PENSION SCHEME,02/11/2012,Funding to Pay Teachers' Pensions,Workforce Group,CAPITA TP NATWEST,Commercial,Funding to pay Teachers' Pensions,1001307,"24,475,657"
Department for Education,DEPARTMENT FOR EDUCATION,02/11/2012,Grants,Academies Delivery Group,CFBT SCHOOLS TRUST,Public Sector,"Grants paid to organisations including agencies, arms length bodies and educational establishments",4000101362,"35,349"
Department for Education,DEPARTMENT FOR EDUCATION,02/11/2012,Grants,Academies Delivery Group,LEARNING SCHOOLS TRUST,Public Sector,"Grants paid to organisations including agencies, arms length bodies and educational establishments",4000101411,"128,497"
Department for Education,DEPARTMENT FOR EDUCATION,02/11/2012,Grants,Academies Delivery Group,PORTSMOUTH & WINCHESTER DIOCESAN ACADEMIES TRUST,Public Sector,"Grants paid to organisations including agencies, arms length bodies and educational establishments",4000101433,"27,794"
Department for Education,DEPARTMENT FOR EDUCATION,02/11/2012,Grants,Academies Delivery Group,SALFORD ACADEMY TRUST,Public Sector,"Grants paid to organisations including agencies, arms length bodies and educational establishments",4000101443,"67,073"
Department for Education,DEPARTMENT FOR EDUCATION,02/11/2012,Grants,Academies Delivery Group,HERTSWOOD ACADEMY,Public Sector,"Grants paid to organisations including agencies, arms length bodies and educational establishments",4000101389,"65,000"
Department for Education,DEPARTMENT FOR EDUCATION,02/11/2012,Grants,Education Funding Group,SIR JOSEPH WILLIAMSONS MATHEMATICAL SCHOOL,Public Sector,Capital grants paid to a private sector organisation,4000101451,"49,830"
Department for Education,DEPARTMENT FOR EDUCATION,02/11/2012,Grants,Free School Group,SOUTH ESSEX COMMUNITY SCHOOL LTD,Public Sector,"Grants paid to organisations including agencies, arms length bodies and educational establishments",1000871,"64,499"
Department for Education,DEPARTMENT FOR EDUCATION,02/11/2012,Grants,Free School Group,BECKET KEYS FREE SCHOOL,Public Sector,"Grants paid to organisations including agencies, arms length bodies and educational establishments",4000101347,"59,646"
Department for Education,DEPARTMENT FOR EDUCATION,02/11/2012,Grants,Free School Group,BEDFORD & KEMPSTON FREE SCHOOL TRUST,Public Sector,"Grants paid to organisations including agencies, arms length bodies and educational establishments",4000101348,"52,369"
Department for Education,DEPARTMENT FOR EDUCATION,02/11/2012,Grants,Free School Group,CET PRIMARY SCHOOL,Public Sector,"Grants paid to organisations including agencies, arms length bodies and educational establishments",4000101361,"27,464"
Department for Education,DEPARTMENT FOR EDUCATION,02/11/2012,Grants,Free School Group,KINGS SCHOOL WOOLSTON,Public Sector,"Grants paid to organisations including agencies, arms length bodies and educational establishments",4000101405,"44,040"
Department for Education,DEPARTMENT FOR EDUCATION,02/11/2012,Grants,Free School Group,THE GATEWAY ACADEMY,Public Sector,"Grants paid to organisations including agencies, arms length bodies and educational establishments",4000101461,"41,836"
Department for Education,DEPARTMENT FOR EDUCATION,02/11/2012,Grants,Free School Group,UTC SWINDON,Public Sector,"Grants paid to organisations including agencies, arms length bodies and educational establishments",1000872,"90,000"
Department for Education,NATIONAL COLLEGE FOR SCHOOL LEADERSHIP AGENCY,02/11/2012,Grants,Primary School Leadership Directorate,PARBOLD DOUGLAS ACADEMY,Public Sector,"Grants paid to organisations including agencies, arms length bodies and educational establishments",4000101427,"4,000"
Department for Education,NATIONAL COLLEGE FOR SCHOOL LEADERSHIP AGENCY,02/11/2012,Programme costs,Supply Directorate,KENT COUNTY COUNCIL,Public Sector,Funding to deliver policies (excluding consultancy) paid to third parties via a service delivery contract,4000101403,"61,320"
Department for Education,NATIONAL COLLEGE FOR SCHOOL LEADERSHIP AGENCY,02/11/2012,Programme costs,Supply Directorate,SCHOOL DEVELOPMENT SUPPORT AGENCY,Public Sector,Funding to deliver policies (excluding consultancy) paid to third parties via a service delivery contract,4000101446,"150,330"
Department for Education,NATIONAL COLLEGE FOR SCHOOL LEADERSHIP AGENCY,02/11/2012,Grants,System Leadership Directorate,PARBOLD DOUGLAS ACADEMY,Public Sector,"Grants paid to organisations including agencies, arms length bodies and educational establishments",4000101427,"25,000"
Department for Education,NATIONAL COLLEGE FOR SCHOOL LEADERSHIP AGENCY,02/11/2012,Grants,Teaching Schools Directorate,SHELDON SCHOOL,Public Sector,"Grants paid to organisations including agencies, arms length bodies and educational establishments",4000101450,"55,000"
Department for Education,EDUCATION FUNDING AGENCY,02/11/2012,Grants,Converter Academies,Northampton Primary Academy Trust,Public Sector,"Grants paid to organisations including agencies, arms length bodies and educational establishments",PAYBACSAUTO 43080,"98,272"
Department for Education,EDUCATION FUNDING AGENCY,02/11/2012,Grants,Converter Academies,Northampton Primary Academy Trust,Public Sector,"Grants paid to organisations including agencies, arms length bodies and educational establishments",PAYBACSAUTO 43080,329
Department for Education,EDUCATION FUNDING AGENCY,02/11/2012,Grants,Converter Academies,Northampton Primary Academy Trust,Public Sector,"Grants paid to organisations including agencies, arms length bodies and educational establishments",PAYBACSAUTO 43080,"11,419"
Department for Education,EDUCATION FUNDING AGENCY,02/11/2012,Grants,Converter Academies,Academy Transformation Trust T/A Adm,Public Sector,"Grants paid to organisations including agencies, arms length bodies and educational establishments",PAYBACSAUTO 43081,477
Department for Education,EDUCATION FUNDING AGENCY,02/11/2012,Grants,Converter Academies,Academy Transformation Trust T/A Adm,Public Sector,"Grants paid to organisations including agencies, arms length bodies and educational establishments",PAYBACSAUTO 43081,"138,955"
Department for Education,EDUCATION FUNDING AGENCY,02/11/2012,Grants,Converter Academies,Academy Transformation Trust T/A Adm,Public Sector,"Grants paid to organisations including agencies, arms length bodies and educational establishments",PAYBACSAUTO 43081,"12,079"
Department for Education,EDUCATION FUNDING AGENCY,02/11/2012,Grants,Converter Academies,BARWELL CHURCH OF ENGLAND ACADEMY,Public Sector,"Grants paid to organisations including agencies, arms length bodies and educational establishments",PAYBACSAUTO 43088,"8,436"
Department for Education,EDUCATION FUNDING AGENCY,02/11/2012,Grants,Converter Academies,BARWELL CHURCH OF ENGLAND ACADEMY,Public Sector,"Grants paid to organisations including agencies, arms length bodies and educational establishments",PAYBACSAUTO 43088,443
Department for Education,EDUCATION FUNDING AGENCY,02/11/2012,Grants,Converter Academies,BARWELL CHURCH OF ENGLAND ACADEMY,Public Sector,"Grants paid to organisations including agencies, arms length bodies and educational establishments",PAYBACSAUTO 43088,"93,359"
Department for Education,EDUCATION FUNDING AGENCY,02/11/2012,Grants,Converter Academies,Billesley Primary School,Public Sector,"Grants paid to organisations including agencies, arms length bodies and educational establishments",PAYBACSAUTO 43092,432
Department for Education,EDUCATION FUNDING AGENCY,02/11/2012,Grants,Converter Academies,Billesley Primary School,Public Sector,"Grants paid to organisations including agencies, arms length bodies and educational establishments",PAYBACSAUTO 43092,"12,524"
Department for Education,EDUCATION FUNDING AGENCY,02/11/2012,Grants,Converter Academies,Billesley Primary School,Public Sector,"Grants paid to organisations including agencies, arms length bodies and educational establishments",PAYBACSAUTO 43092,"219,242"
Department for Education,EDUCATION FUNDING AGENCY,02/11/2012,Grants,Converter Academies,Community Academy Trust T/AS Birchwo,Public Sector,"Grants paid to organisations including agencies, arms length bodies and educational establishments",PAYBACSAUTO 43093,469
Department for Education,EDUCATION FUNDING AGENCY,02/11/2012,Grants,Converter Academies,Community Academy Trust T/AS Birchwo,Public Sector,"Grants paid to organisations including agencies, arms length bodies and educational establishments",PAYBACSAUTO 43093,"10,269"
Department for Education,EDUCATION FUNDING AGENCY,02/11/2012,Grants,Converter Academies,Community Academy Trust T/AS Birchwo,Public Sector,"Grants paid to organisations including agencies, arms length bodies and educational establishments",PAYBACSAUTO 43093,"151,376"
Department for Education,EDUCATION FUNDING AGENCY,02/11/2012,Grants,Converter Academies,Briar Hill Primary School,Public Sector,"Grants paid to organisations including agencies, arms length bodies and educational establishments",PAYBACSAUTO 43095,"132,520"
Department for Education,EDUCATION FUNDING AGENCY,02/11/2012,Grants,Converter Academies,Briar Hill Primary School,Public Sector,"Grants paid to organisations including agencies, arms length bodies and educational establishments",PAYBACSAUTO 43095,492
Department for Education,EDUCATION FUNDING AGENCY,02/11/2012,Grants,Converter Academies,Briar Hill Primary School,Public Sector,"Grants paid to organisations including agencies, arms length bodies and educational establishments",PAYBACSAUTO 43095,"13,276"
Department for Education,EDUCATION FUNDING AGENCY,02/11/2012,Grants,Converter Academies,CHANGE Schools Partnership,Public Sector,"Grants paid to organisations including agencies, arms length bodies and educational establishments",PAYBACSAUTO 43100,"193,576"
Department for Education,EDUCATION FUNDING AGENCY,02/11/2012,Grants,Converter Academies,CHANGE Schools Partnership,Public Sector,"Grants paid to organisations including agencies, arms length bodies and educational establishments",PAYBACSAUTO 43100,612
Department for Education,EDUCATION FUNDING AGENCY,02/11/2012,Grants,Converter Academies,CHANGE Schools Partnership,Public Sector,"Grants paid to organisations including agencies, arms length bodies and educational establishments",PAYBACSAUTO 43100,"18,342"
Department for Education,EDUCATION FUNDING AGENCY,02/11/2012,Grants,Converter Academies,Christ Church C of E Primary School,Public Sector,"Grants paid to organisations including agencies, arms length bodies and educational establishments",PAYBACSAUTO 43110,"102,948"
Department for Education,EDUCATION FUNDING AGENCY,02/11/2012,Grants,Converter Academies,Christ Church C of E Primary School,Public Sector,"Grants paid to organisations including agencies, arms length bodies and educational establishments",PAYBACSAUTO 43110,"6,068"
Department for Education,EDUCATION FUNDING AGENCY,02/11/2012,Grants,Converter Academies,Christ Church C of E Primary School,Public Sector,"Grants paid to organisations including agencies, arms length bodies and educational establishments",PAYBACSAUTO 43110,46
Department for Education,EDUCATION FUNDING AGENCY,02/11/2012,Grants,Converter Academies,Church Hill Infant School,Public Sector,"Grants paid to organisations including agencies, arms length bodies and educational establishments",PAYBACSAUTO 43111,"6,630"
Department for Education,EDUCATION FUNDING AGENCY,02/11/2012,Grants,Converter Academies,Church Hill Infant School,Public Sector,"Grants paid to organisations including agencies, arms length bodies and educational establishments",PAYBACSAUTO 43111,229
Department for Education,EDUCATION FUNDING AGENCY,02/11/2012,Grants,Converter Academies,Church Hill Infant School,Public Sector,"Grants paid to organisations including agencies, arms length bodies and educational establishments",PAYBACSAUTO 43111,"94,198"
Department for Education,EDUCATION FUNDING AGENCY,02/11/2012,Grants,Converter Academies,Church Hill Church of England Junior,Public Sector,"Grants paid to organisations including agencies, arms length bodies and educational establishments",PAYBACSAUTO 43112,"107,105"
Department for Education,EDUCATION FUNDING AGENCY,02/11/2012,Grants,Converter Academies,Church Hill Church of England Junior,Public Sector,"Grants paid to organisations including agencies, arms length bodies and educational establishments",PAYBACSAUTO 43112,"9,903"
Department for Education,EDUCATION FUNDING AGENCY,02/11/2012,Grants,Converter Academies,Church Hill Church of England Junior,Public Sector,"Grants paid to organisations including agencies, arms length bodies and educational establishments",PAYBACSAUTO 43112,432
Department for Education,EDUCATION FUNDING AGENCY,02/11/2012,Grants,Converter Academies,Complementary Education,Central Government,"Grants paid to organisations including agencies, arms length bodies and educational establishments",PAYBACSAUTO 43115,"13,703"
Department for Education,EDUCATION FUNDING AGENCY,02/11/2012,Grants,Converter Academies,Complementary Education,Central Government,"Grants paid to organisations including agencies, arms length bodies and educational establishments",PAYBACSAUTO 43115,"380,910"
Department for Education,EDUCATION FUNDING AGENCY,02/11/2012,Grants,Converter Academies,Dordon Primary School,Public Sector,"Grants paid to organisations including agencies, arms length bodies and educational establishments",PAYBACSAUTO 43123,"62,034"
Department for Education,EDUCATION FUNDING AGENCY,02/11/2012,Grants,Converter Academies,Dordon Primary School,Public Sector,"Grants paid to organisations including agencies, arms length bodies and educational establishments",PAYBACSAUTO 43123,"2,876"
Department for Education,EDUCATION FUNDING AGENCY,02/11/2012,Grants,Converter Academies,Dordon Primary School,Public Sector,"Grants paid to organisations including agencies, arms length bodies and educational establishments",PAYBACSAUTO 43123,209
Department for Education,EDUCATION FUNDING AGENCY,02/11/2012,Grants,Sponsored Academies,Eastfield Academy,Public Sector,"Grants paid to organisations including agencies, arms length bodies and educational establishments",PAYBACSAUTO 43127,260
Department for Education,EDUCATION FUNDING AGENCY,02/11/2012,Grants,Sponsored Academies,Eastfield Academy,Public Sector,"Grants paid to organisations including agencies, arms length bodies and educational establishments",PAYBACSAUTO 43127,"12,500"
Department for Education,EDUCATION FUNDING AGENCY,02/11/2012,Grants,Sponsored Academies,Eastfield Academy,Public Sector,"Grants paid to organisations including agencies, arms length bodies and educational establishments",PAYBACSAUTO 43127,"9,736"
Department for Education,EDUCATION FUNDING AGENCY,02/11/2012,Grants,Sponsored Academies,Eastfield Academy,Public Sector,"Grants paid to organisations including agencies, arms length bodies and educational establishments",PAYBACSAUTO 43127,"98,400"
Department for Education,EDUCATION FUNDING AGENCY,02/11/2012,Grants,Converter Academies,Ecton Brook Primary School,Public Sector,"Grants paid to organisations including agencies, arms length bodies and educational establishments",PAYBACSAUTO 43128,363
Department for Education,EDUCATION FUNDING AGENCY,02/11/2012,Grants,Converter Academies,Ecton Brook Primary School,Public Sector,"Grants paid to organisations including agencies, arms length bodies and educational establishments",PAYBACSAUTO 43128,"23,991"
Department for Education,EDUCATION FUNDING AGENCY,02/11/2012,Grants,Converter Academies,Ecton Brook Primary School,Public Sector,"Grants paid to organisations including agencies, arms length bodies and educational establishments",PAYBACSAUTO 43128,"250,258"
Department for Education,EDUCATION FUNDING AGENCY,02/11/2012,Grants,Converter Academies,Feltham Community College,Public Sector,"Grants paid to organisations including agencies, arms length bodies and educational establishments",PAYBACSAUTO 43131,"1,023"
Department for Education,EDUCATION FUNDING AGENCY,02/11/2012,Grants,Converter Academies,Feltham Community College,Public Sector,"Grants paid to organisations including agencies, arms length bodies and educational establishments",PAYBACSAUTO 43131,"75,728"
Department for Education,EDUCATION FUNDING AGENCY,02/11/2012,Grants,Converter Academies,Feversham Primary Academy,Public Sector,"Grants paid to organisations including agencies, arms length bodies and educational establishments",PAYBACSAUTO 43132,"214,967"
Department for Education,EDUCATION FUNDING AGENCY,02/11/2012,Grants,Converter Academies,Feversham Primary Academy,Public Sector,"Grants paid to organisations including agencies, arms length bodies and educational establishments",PAYBACSAUTO 43132,893
Department for Education,EDUCATION FUNDING AGENCY,02/11/2012,Grants,Converter Academies,Feversham Primary Academy,Public Sector,"Grants paid to organisations including agencies, arms length bodies and educational establishments",PAYBACSAUTO 43132,"23,435"
Department for Education,EDUCATION FUNDING AGENCY,02/11/2012,Grants,Converter Academies,Fir Vale School Academy Trust,Public Sector,"Grants paid to organisations including agencies, arms length bodies and educational establishments",PAYBACSAUTO 43133,"640,479"
Department for Education,EDUCATION FUNDING AGENCY,02/11/2012,Grants,Converter Academies,Fir Vale School Academy Trust,Public Sector,"Grants paid to organisations including agencies, arms length bodies and educational establishments",PAYBACSAUTO 43133,"59,143"
Department for Education,EDUCATION FUNDING AGENCY,02/11/2012,Grants,Converter Academies,Fir Vale School Academy Trust,Public Sector,"Grants paid to organisations including agencies, arms length bodies and educational establishments",PAYBACSAUTO 43133,"2,008"
Department for Education,EDUCATION FUNDING AGENCY,02/11/2012,Grants,Converter Academies,Handsworth Wood Girls' Academy,Public Sector,"Grants paid to organisations including agencies, arms length bodies and educational establishments",PAYBACSAUTO 43147,"1,293"
Department for Education,EDUCATION FUNDING AGENCY,02/11/2012,Grants,Converter Academies,Handsworth Wood Girls' Academy,Public Sector,"Grants paid to organisations including agencies, arms length bodies and educational establishments",PAYBACSAUTO 43147,"506,413"
Department for Education,EDUCATION FUNDING AGENCY,02/11/2012,Grants,Converter Academies,Handsworth Wood Girls' Academy,Public Sector,"Grants paid to organisations including agencies, arms length bodies and educational establishments",PAYBACSAUTO 43147,"98,983"
Department for Education,EDUCATION FUNDING AGENCY,02/11/2012,Grants,Converter Academies,Handsworth Wood Girls' Academy,Public Sector,"Grants paid to organisations including agencies, arms length bodies and educational establishments",PAYBACSAUTO 43147,"26,270"
Department for Education,EDUCATION FUNDING AGENCY,02/11/2012,Grants,Converter Academies,East Leake Academy,Public Sector,"Grants paid to organisations including agencies, arms length bodies and educational establishments",PAYBACSAUTO 43149,"101,303"
Department for Education,EDUCATION FUNDING AGENCY,02/11/2012,Grants,Converter Academies,East Leake Academy,Public Sector,"Grants paid to organisations including agencies, arms length bodies and educational establishments",PAYBACSAUTO 43149,"68,192"
Department for Education,EDUCATION FUNDING AGENCY,02/11/2012,Grants,Converter Academies,East Leake Academy,Public Sector,"Grants paid to organisations including agencies, arms length bodies and educational establishments",PAYBACSAUTO 43149,"5,236"
Department for Education,EDUCATION FUNDING AGENCY,02/11/2012,Grants,Converter Academies,East Leake Academy,Public Sector,"Grants paid to organisations including agencies, arms length bodies and educational establishments",PAYBACSAUTO 43149,"457,115"
Department for Education,EDUCATION FUNDING AGENCY,02/11/2012,Grants,Converter Academies,Northampton Primary Academy Trust -,Public Sector,"Grants paid to organisations including agencies, arms length bodies and educational establishments",PAYBACSAUTO 43154,136
Department for Education,EDUCATION FUNDING AGENCY,02/11/2012,Grants,Converter Academies,Northampton Primary Academy Trust -,Public Sector,"Grants paid to organisations including agencies, arms length bodies and educational establishments",PAYBACSAUTO 43154,"19,789"
Department for Education,EDUCATION FUNDING AGENCY,02/11/2012,Grants,Converter Academies,Northampton Primary Academy Trust -,Public Sector,"Grants paid to organisations including agencies, arms length bodies and educational establishments",PAYBACSAUTO 43154,"171,615"
Department for Education,EDUCATION FUNDING AGENCY,02/11/2012,Grants,Converter Academies,Herringham Primary School,Public Sector,"Grants paid to organisations including agencies, arms length bodies and educational establishments",PAYBACSAUTO 43155,"191,407"
Department for Education,EDUCATION FUNDING AGENCY,02/11/2012,Grants,Converter Academies,Herringham Primary School,Public Sector,"Grants paid to organisations including agencies, arms length bodies and educational establishments",PAYBACSAUTO 43155,"27,366"
Department for Education,EDUCATION FUNDING AGENCY,02/11/2012,Grants,Converter Academies,Herringham Primary School,Public Sector,"Grants paid to organisations including agencies, arms length bodies and educational establishments",PAYBACSAUTO 43155,595
Department for Education,EDUCATION FUNDING AGENCY,02/11/2012,Grants,Converter Academies,Heston Academy Trust School,Public Sector,"Grants paid to organisations including agencies, arms length bodies and educational establishments",PAYBACSAUTO 43156,"690,160"
Department for Education,EDUCATION FUNDING AGENCY,02/11/2012,Grants,Converter Academies,Heston Academy Trust School,Public Sector,"Grants paid to organisations including agencies, arms length bodies and educational establishments",PAYBACSAUTO 43156,"170,663"
Department for Education,EDUCATION FUNDING AGENCY,02/11/2012,Grants,Converter Academies,Heston Academy Trust School,Public Sector,"Grants paid to organisations including agencies, arms length bodies and educational establishments",PAYBACSAUTO 43156,"56,478"
Department for Education,EDUCATION FUNDING AGENCY,02/11/2012,Grants,Converter Academies,Heston Academy Trust School,Public Sector,"Grants paid to organisations including agencies, arms length bodies and educational establishments",PAYBACSAUTO 43156,452
Department for Education,EDUCATION FUNDING AGENCY,02/11/2012,Grants,Local Authority Team,Holyhead School,Public Sector,Capital grants paid to local authorities,PAYBACSAUTO 43159,"427,600"
Department for Education,EDUCATION FUNDING AGENCY,02/11/2012,Grants,Converter Academies,Kingsthorpe College,Public Sector,"Grants paid to organisations including agencies, arms length bodies and educational establishments",PAYBACSAUTO 43171,"7,298"
Department for Education,EDUCATION FUNDING AGENCY,02/11/2012,Grants,Converter Academies,Kingsthorpe College,Public Sector,"Grants paid to organisations including agencies, arms length bodies and educational establishments",PAYBACSAUTO 43171,"666,163"
Department for Education,EDUCATION FUNDING AGENCY,02/11/2012,Grants,Converter Academies,Kingsthorpe College,Public Sector,"Grants paid to organisations including agencies, arms length bodies and educational establishments",PAYBACSAUTO 43171,"89,390"
Department for Education,EDUCATION FUNDING AGENCY,02/11/2012,Grants,Converter Academies,Kingsthorpe College,Public Sector,"Grants paid to organisations including agencies, arms length bodies and educational establishments",PAYBACSAUTO 43171,"67,965"
Department for Education,EDUCATION FUNDING AGENCY,02/11/2012,Grants,Converter Academies,Kings Rise Community Primary School,Public Sector,"Grants paid to organisations including agencies, arms length bodies and educational establishments",PAYBACSAUTO 43172,"6,180"
Department for Education,EDUCATION FUNDING AGENCY,02/11/2012,Grants,Converter Academies,Kings Rise Community Primary School,Public Sector,"Grants paid to organisations including agencies, arms length bodies and educational establishments",PAYBACSAUTO 43172,300
Department for Education,EDUCATION FUNDING AGENCY,02/11/2012,Grants,Converter Academies,Kings Rise Community Primary School,Public Sector,"Grants paid to organisations including agencies, arms length bodies and educational establishments",PAYBACSAUTO 43172,"125,905"
Department for Education,EDUCATION FUNDING AGENCY,02/11/2012,Grants,Converter Academies,KIRK SANDALL INFANT ACADEMY TRUST,Public Sector,"Grants paid to organisations including agencies, arms length bodies and educational establishments",PAYBACSAUTO 43173,"11,528"
Department for Education,EDUCATION FUNDING AGENCY,02/11/2012,Grants,Converter Academies,KIRK SANDALL INFANT ACADEMY TRUST,Public Sector,"Grants paid to organisations including agencies, arms length bodies and educational establishments",PAYBACSAUTO 43173,"102,895"
Department for Education,EDUCATION FUNDING AGENCY,02/11/2012,Grants,Converter Academies,KIRK SANDALL INFANT ACADEMY TRUST,Public Sector,"Grants paid to organisations including agencies, arms length bodies and educational establishments",PAYBACSAUTO 43173,"2,189"
Department for Education,EDUCATION FUNDING AGENCY,02/11/2012,Grants,Converter Academies,KIRK SANDALL INFANT ACADEMY TRUST,Public Sector,"Grants paid to organisations including agencies, arms length bodies and educational establishments",PAYBACSAUTO 43173,45
Department for Education,EDUCATION FUNDING AGENCY,02/11/2012,Grants,Converter Academies,Northampton Primary Academy Trust,Public Sector,"Grants paid to organisations including agencies, arms length bodies and educational establishments",PAYBACSAUTO 43176,"99,635"
Department for Education,EDUCATION FUNDING AGENCY,02/11/2012,Grants,Converter Academies,Northampton Primary Academy Trust,Public Sector,"Grants paid to organisations including agencies, arms length bodies and educational establishments",PAYBACSAUTO 43176,"8,648"
Department for Education,EDUCATION FUNDING AGENCY,02/11/2012,Grants,Converter Academies,Northampton Primary Academy Trust,Public Sector,"Grants paid to organisations including agencies, arms length bodies and educational establishments",PAYBACSAUTO 43176,240
Department for Education,EDUCATION FUNDING AGENCY,02/11/2012,Grants,Converter Academies,Lumbertubs Primary School,Public Sector,"Grants paid to organisations including agencies, arms length bodies and educational establishments",PAYBACSAUTO 43179,"10,642"
Department for Education,EDUCATION FUNDING AGENCY,02/11/2012,Grants,Converter Academies,Lumbertubs Primary School,Public Sector,"Grants paid to organisations including agencies, arms length bodies and educational establishments",PAYBACSAUTO 43179,395
Department for Education,EDUCATION FUNDING AGENCY,02/11/2012,Grants,Converter Academies,Lumbertubs Primary School,Public Sector,"Grants paid to organisations including agencies, arms length bodies and educational establishments",PAYBACSAUTO 43179,"93,563"
Department for Education,EDUCATION FUNDING AGENCY,02/11/2012,Grants,Converter Academies,School Partnership Trust Academies -,Public Sector,"Grants paid to organisations including agencies, arms length bodies and educational establishments",PAYBACSAUTO 43181,"207,522"
Department for Education,EDUCATION FUNDING AGENCY,02/11/2012,Grants,Converter Academies,School Partnership Trust Academies -,Public Sector,"Grants paid to organisations including agencies, arms length bodies and educational establishments",PAYBACSAUTO 43181,"28,147"
Department for Education,EDUCATION FUNDING AGENCY,02/11/2012,Grants,Converter Academies,School Partnership Trust Academies -,Public Sector,"Grants paid to organisations including agencies, arms length bodies and educational establishments",PAYBACSAUTO 43181,588
Department for Education,EDUCATION FUNDING AGENCY,02/11/2012,Grants,Converter Academies,Riverside Academy,Public Sector,"Grants paid to organisations including agencies, arms length bodies and educational establishments",PAYBACSAUTO 43185,"90,796"
Department for Education,EDUCATION FUNDING AGENCY,02/11/2012,Grants,Converter Academies,Riverside Academy,Public Sector,"Grants paid to organisations including agencies, arms length bodies and educational establishments",PAYBACSAUTO 43185,286
Department for Education,EDUCATION FUNDING AGENCY,02/11/2012,Grants,Converter Academies,Riverside Academy,Public Sector,"Grants paid to organisations including agencies, arms length bodies and educational establishments",PAYBACSAUTO 43185,"5,390"
Department for Education,EDUCATION FUNDING AGENCY,02/11/2012,Grants,Converter Academies,Oakfield Primary,Public Sector,"Grants paid to organisations including agencies, arms length bodies and educational establishments",PAYBACSAUTO 43190,267
Department for Education,EDUCATION FUNDING AGENCY,02/11/2012,Grants,Converter Academies,Oakfield Primary,Public Sector,"Grants paid to organisations including agencies, arms length bodies and educational establishments",PAYBACSAUTO 43190,"5,341"
Department for Education,EDUCATION FUNDING AGENCY,02/11/2012,Grants,Converter Academies,Oakfield Primary,Public Sector,"Grants paid to organisations including agencies, arms length bodies and educational establishments",PAYBACSAUTO 43190,"94,322"
Department for Education,EDUCATION FUNDING AGENCY,02/11/2012,Grants,Converter Academies,Oxclose Community Academy,Public Sector,"Grants paid to organisations including agencies, arms length bodies and educational establishments",PAYBACSAUTO 43193,"2,158"
Department for Education,EDUCATION FUNDING AGENCY,02/11/2012,Grants,Converter Academies,Oxclose Community Academy,Public Sector,"Grants paid to organisations including agencies, arms length bodies and educational establishments",PAYBACSAUTO 43193,"45,522"
Department for Education,EDUCATION FUNDING AGENCY,02/11/2012,Grants,Converter Academies,Oxclose Community Academy,Public Sector,"Grants paid to organisations including agencies, arms length bodies and educational establishments",PAYBACSAUTO 43193,"652,398"
Department for Education,EDUCATION FUNDING AGENCY,02/11/2012,Grants,Converter Academies,Penwortham Priory Academy Trust,Public Sector,"Grants paid to organisations including agencies, arms length bodies and educational establishments",PAYBACSAUTO 43204,"391,472"
Department for Education,EDUCATION FUNDING AGENCY,02/11/2012,Grants,Converter Academies,Penwortham Priory Academy Trust,Public Sector,"Grants paid to organisations including agencies, arms length bodies and educational establishments",PAYBACSAUTO 43204,"23,285"
Department for Education,EDUCATION FUNDING AGENCY,02/11/2012,Grants,Converter Academies,Penwortham Priory Academy Trust,Public Sector,"Grants paid to organisations including agencies, arms length bodies and educational establishments",PAYBACSAUTO 43204,"1,648"
Department for Education,EDUCATION FUNDING AGENCY,02/11/2012,Grants,Converter Academies,Queniborough C of E Primary School,Public Sector,"Grants paid to organisations including agencies, arms length bodies and educational establishments",PAYBACSAUTO 43206,"5,864"
Department for Education,EDUCATION FUNDING AGENCY,02/11/2012,Grants,Converter Academies,Queniborough C of E Primary School,Public Sector,"Grants paid to organisations including agencies, arms length bodies and educational establishments",PAYBACSAUTO 43206,"71,159"
Department for Education,EDUCATION FUNDING AGENCY,02/11/2012,Grants,Converter Academies,Queniborough C of E Primary School,Public Sector,"Grants paid to organisations including agencies, arms length bodies and educational establishments",PAYBACSAUTO 43206,251
Department for Education,EDUCATION FUNDING AGENCY,02/11/2012,Grants,Converter Academies,Queensmead Primary Academy,Public Sector,"Grants paid to organisations including agencies, arms length bodies and educational establishments",PAYBACSAUTO 43207,"225,470"
Department for Education,EDUCATION FUNDING AGENCY,02/11/2012,Grants,Converter Academies,Queensmead Primary Academy,Public Sector,"Grants paid to organisations including agencies, arms length bodies and educational establishments",PAYBACSAUTO 43207,"1,213"
Department for Education,EDUCATION FUNDING AGENCY,02/11/2012,Grants,Converter Academies,Queensmead Primary Academy,Public Sector,"Grants paid to organisations including agencies, arms length bodies and educational establishments",PAYBACSAUTO 43207,"34,365"
Department for Education,EDUCATION FUNDING AGENCY,02/11/2012,Grants,Converter Academies,Rickley Park Primary School,Public Sector,"Grants paid to organisations including agencies, arms length bodies and educational establishments",PAYBACSAUTO 43214,"1,499"
Department for Education,EDUCATION FUNDING AGENCY,02/11/2012,Grants,Converter Academies,Rickley Park Primary School,Public Sector,"Grants paid to organisations including agencies, arms length bodies and educational establishments",PAYBACSAUTO 43214,"16,448"
Department for Education,EDUCATION FUNDING AGENCY,02/11/2012,Grants,Converter Academies,Rickley Park Primary School,Public Sector,"Grants paid to organisations including agencies, arms length bodies and educational establishments",PAYBACSAUTO 43214,"181,390"
Department for Education,EDUCATION FUNDING AGENCY,02/11/2012,Grants,Converter Academies,Ruskin Junior School,Public Sector,"Grants paid to organisations including agencies, arms length bodies and educational establishments",PAYBACSAUTO 43220,255
Department for Education,EDUCATION FUNDING AGENCY,02/11/2012,Grants,Converter Academies,Ruskin Junior School,Public Sector,"Grants paid to organisations including agencies, arms length bodies and educational establishments",PAYBACSAUTO 43220,"91,091"
Department for Education,EDUCATION FUNDING AGENCY,02/11/2012,Grants,Converter Academies,Ruskin Junior School,Public Sector,"Grants paid to organisations including agencies, arms length bodies and educational establishments",PAYBACSAUTO 43220,"8,657"
Department for Education,EDUCATION FUNDING AGENCY,02/11/2012,Grants,Converter Academies,Sacred Heart Catholic Primary School,Public Sector,"Grants paid to organisations including agencies, arms length bodies and educational establishments",PAYBACSAUTO 43222,"6,041"
Department for Education,EDUCATION FUNDING AGENCY,02/11/2012,Grants,Converter Academies,Sacred Heart Catholic Primary School,Public Sector,"Grants paid to organisations including agencies, arms length bodies and educational establishments",PAYBACSAUTO 43222,"55,894"
Department for Education,EDUCATION FUNDING AGENCY,02/11/2012,Grants,Converter Academies,Shirestone,Public Sector,"Grants paid to organisations including agencies, arms length bodies and educational establishments",PAYBACSAUTO 43226,"5,729"
Department for Education,EDUCATION FUNDING AGENCY,02/11/2012,Grants,Converter Academies,Shirestone,Public Sector,"Grants paid to organisations including agencies, arms length bodies and educational establishments",PAYBACSAUTO 43226,"122,439"
Department for Education,EDUCATION FUNDING AGENCY,02/11/2012,Grants,Converter Academies,Shirestone,Public Sector,"Grants paid to organisations including agencies, arms length bodies and educational establishments",PAYBACSAUTO 43226,330
Department for Education,EDUCATION FUNDING AGENCY,02/11/2012,Grants,Converter Academies,Shooters Hill Campus,Public Sector,"Grants paid to organisations including agencies, arms length bodies and educational establishments",PAYBACSAUTO 43227,"93,127"
Department for Education,EDUCATION FUNDING AGENCY,02/11/2012,Grants,Converter Academies,Shooters Hill Campus,Public Sector,"Grants paid to organisations including agencies, arms length bodies and educational establishments",PAYBACSAUTO 43227,"875,230"
Department for Education,EDUCATION FUNDING AGENCY,02/11/2012,Grants,Converter Academies,Shooters Hill Campus,Public Sector,"Grants paid to organisations including agencies, arms length bodies and educational establishments",PAYBACSAUTO 43227,"197,136"
Department for Education,EDUCATION FUNDING AGENCY,02/11/2012,Grants,Local Authority Team,Slough and Eton CofE Business and En,Public Sector,Capital grants paid to local authorities,PAYBACSAUTO 43231,"264,450"
Department for Education,EDUCATION FUNDING AGENCY,02/11/2012,Grants,Converter Academies,Spring Lane Primary School,Public Sector,"Grants paid to organisations including agencies, arms length bodies and educational establishments",PAYBACSAUTO 43235,"138,764"
Department for Education,EDUCATION FUNDING AGENCY,02/11/2012,Grants,Converter Academies,Spring Lane Primary School,Public Sector,"Grants paid to organisations including agencies, arms length bodies and educational establishments",PAYBACSAUTO 43235,"13,781"
Department for Education,EDUCATION FUNDING AGENCY,02/11/2012,Grants,Converter Academies,Spring Lane Primary School,Public Sector,"Grants paid to organisations including agencies, arms length bodies and educational establishments",PAYBACSAUTO 43235,412
Department for Education,EDUCATION FUNDING AGENCY,02/11/2012,Grants,Converter Academies,St Benedict's Catholic Primary Schoo,Public Sector,"Grants paid to organisations including agencies, arms length bodies and educational establishments",PAYBACSAUTO 43238,47
Department for Education,EDUCATION FUNDING AGENCY,02/11/2012,Grants,Converter Academies,St Benedict's Catholic Primary Schoo,Public Sector,"Grants paid to organisations including agencies, arms length bodies and educational establishments",PAYBACSAUTO 43238,"7,615"
Department for Education,EDUCATION FUNDING AGENCY,02/11/2012,Grants,Converter Academies,St Benedict's Catholic Primary Schoo,Public Sector,"Grants paid to organisations including agencies, arms length bodies and educational establishments",PAYBACSAUTO 43238,"83,120"
Department for Education,EDUCATION FUNDING AGENCY,02/11/2012,Grants,Converter Academies,St Cuthbert's C of E Infant School,Public Sector,"Grants paid to organisations including agencies, arms length bodies and educational establishments",PAYBACSAUTO 43239,"6,042"
Department for Education,EDUCATION FUNDING AGENCY,02/11/2012,Grants,Converter Academies,St Cuthbert's C of E Infant School,Public Sector,"Grants paid to organisations including agencies, arms length bodies and educational establishments",PAYBACSAUTO 43239,366
Department for Education,EDUCATION FUNDING AGENCY,02/11/2012,Grants,Converter Academies,St Cuthbert's C of E Infant School,Public Sector,"Grants paid to organisations including agencies, arms length bodies and educational establishments",PAYBACSAUTO 43239,"51,966"
Department for Education,EDUCATION FUNDING AGENCY,02/11/2012,Grants,Converter Academies,"St.Ignatius Catholic Primary School,",Public Sector,"Grants paid to organisations including agencies, arms length bodies and educational establishments",PAYBACSAUTO 43240,"66,328"
Department for Education,EDUCATION FUNDING AGENCY,02/11/2012,Grants,Converter Academies,"St.Ignatius Catholic Primary School,",Public Sector,"Grants paid to organisations including agencies, arms length bodies and educational establishments",PAYBACSAUTO 43240,"7,729"
Department for Education,EDUCATION FUNDING AGENCY,02/11/2012,Grants,Converter Academies,St Joseph's Catholic Primary School,Public Sector,"Grants paid to organisations including agencies, arms length bodies and educational establishments",PAYBACSAUTO 43241,"95,784"
Department for Education,EDUCATION FUNDING AGENCY,02/11/2012,Grants,Converter Academies,St Joseph's Catholic Primary School,Public Sector,"Grants paid to organisations including agencies, arms length bodies and educational establishments",PAYBACSAUTO 43241,"13,375"
Department for Education,EDUCATION FUNDING AGENCY,02/11/2012,Grants,Converter Academies,St. Joseph's Catholic Primary School,Public Sector,"Grants paid to organisations including agencies, arms length bodies and educational establishments",PAYBACSAUTO 43242,"12,131"
Department for Education,EDUCATION FUNDING AGENCY,02/11/2012,Grants,Converter Academies,St. Joseph's Catholic Primary School,Public Sector,"Grants paid to organisations including agencies, arms length bodies and educational establishments",PAYBACSAUTO 43242,"101,201"
Department for Education,EDUCATION FUNDING AGENCY,02/11/2012,Grants,Converter Academies,The Bishop Konstant Catholic Academy,Public Sector,"Grants paid to organisations including agencies, arms length bodies and educational establishments",PAYBACSAUTO 43243,"92,135"
Department for Education,EDUCATION FUNDING AGENCY,02/11/2012,Grants,Converter Academies,The Bishop Konstant Catholic Academy,Public Sector,"Grants paid to organisations including agencies, arms length bodies and educational establishments",PAYBACSAUTO 43243,"12,287"
Department for Education,EDUCATION FUNDING AGENCY,02/11/2012,Grants,Converter Academies,SS Simon & Jude,Public Sector,"Grants paid to organisations including agencies, arms length bodies and educational establishments",PAYBACSAUTO 43244,486
Department for Education,EDUCATION FUNDING AGENCY,02/11/2012,Grants,Converter Academies,SS Simon & Jude,Public Sector,"Grants paid to organisations including agencies, arms length bodies and educational establishments",PAYBACSAUTO 43244,"178,778"
Department for Education,EDUCATION FUNDING AGENCY,02/11/2012,Grants,Converter Academies,SS Simon & Jude,Public Sector,"Grants paid to organisations including agencies, arms length bodies and educational establishments",PAYBACSAUTO 43244,"17,885"
Department for Education,EDUCATION FUNDING AGENCY,02/11/2012,Grants,Converter Academies,St Thomas a Becket Catholic Secondar,Public Sector,"Grants paid to organisations including agencies, arms length bodies and educational establishments",PAYBACSAUTO 43245,"445,508"
Department for Education,EDUCATION FUNDING AGENCY,02/11/2012,Grants,Converter Academies,St Thomas a Becket Catholic Secondar,Public Sector,"Grants paid to organisations including agencies, arms length bodies and educational establishments",PAYBACSAUTO 43245,"40,822"
Department for Education,EDUCATION FUNDING AGENCY,02/11/2012,Grants,Converter Academies,St Wilfrid's Catholic High School an,Public Sector,"Grants paid to organisations including agencies, arms length bodies and educational establishments",PAYBACSAUTO 43246,"95,115"
Department for Education,EDUCATION FUNDING AGENCY,02/11/2012,Grants,Converter Academies,St Wilfrid's Catholic High School an,Public Sector,"Grants paid to organisations including agencies, arms length bodies and educational establishments",PAYBACSAUTO 43246,"800,467"
Department for Education,EDUCATION FUNDING AGENCY,02/11/2012,Grants,Converter Academies,St Wilfrid's Catholic High School an,Public Sector,"Grants paid to organisations including agencies, arms length bodies and educational establishments",PAYBACSAUTO 43246,"228,819"
Department for Education,EDUCATION FUNDING AGENCY,02/11/2012,Grants,Converter Academies,Academy Transformation Trust T/A The,Public Sector,"Grants paid to organisations including agencies, arms length bodies and educational establishments",PAYBACSAUTO 43249,"309,025"
Department for Education,EDUCATION FUNDING AGENCY,02/11/2012,Grants,Converter Academies,Academy Transformation Trust T/A The,Public Sector,"Grants paid to organisations including agencies, arms length bodies and educational establishments",PAYBACSAUTO 43249,"21,675"
Department for Education,EDUCATION FUNDING AGENCY,02/11/2012,Grants,Converter Academies,Academy Transformation Trust T/A The,Public Sector,"Grants paid to organisations including agencies, arms length bodies and educational establishments",PAYBACSAUTO 43249,"2,336"
Department for Education,EDUCATION FUNDING AGENCY,02/11/2012,Grants,Converter Academies,Thames Primary Academy,Public Sector,"Grants paid to organisations including agencies, arms length bodies and educational establishments",PAYBACSAUTO 43252,"237,481"
Department for Education,EDUCATION FUNDING AGENCY,02/11/2012,Grants,Converter Academies,Thames Primary Academy,Public Sector,"Grants paid to organisations including agencies, arms length bodies and educational establishments",PAYBACSAUTO 43252,"13,499"
Department for Education,EDUCATION FUNDING AGENCY,02/11/2012,Grants,Converter Academies,Thames Primary Academy,Public Sector,"Grants paid to organisations including agencies, arms length bodies and educational establishments",PAYBACSAUTO 43252,681
Department for Education,EDUCATION FUNDING AGENCY,02/11/2012,Grants,Sponsored Academies,The Newark Academy,Public Sector,"Grants paid to organisations including agencies, arms length bodies and educational establishments",PAYBACSAUTO 43253,"548,617"
Department for Education,EDUCATION FUNDING AGENCY,02/11/2012,Grants,Sponsored Academies,The Newark Academy,Public Sector,"Grants paid to organisations including agencies, arms length bodies and educational establishments",PAYBACSAUTO 43253,"31,598"
Department for Education,EDUCATION FUNDING AGENCY,02/11/2012,Grants,Sponsored Academies,The Newark Academy,Public Sector,"Grants paid to organisations including agencies, arms length bodies and educational establishments",PAYBACSAUTO 43253,"62,317"
Department for Education,EDUCATION FUNDING AGENCY,02/11/2012,Grants,Sponsored Academies,The Newark Academy,Public Sector,"Grants paid to organisations including agencies, arms length bodies and educational establishments",PAYBACSAUTO 43253,"2,572"
Department for Education,EDUCATION FUNDING AGENCY,02/11/2012,Grants,Sponsored Academies,The Newark Academy,Public Sector,"Grants paid to organisations including agencies, arms length bodies and educational establishments",PAYBACSAUTO 43253,"42,000"
Department for Education,EDUCATION FUNDING AGENCY,02/11/2012,Grants,Sponsored Academies,The Newark Academy,Public Sector,"Grants paid to organisations including agencies, arms length bodies and educational establishments",PAYBACSAUTO 43253,"26,688"
Department for Education,EDUCATION FUNDING AGENCY,02/11/2012,Grants,Converter Academies,Upminster Academy Trust trading as U,Public Sector,"Grants paid to organisations including agencies, arms length bodies and educational establishments",PAYBACSAUTO 43260,520
Department for Education,EDUCATION FUNDING AGENCY,02/11/2012,Grants,Converter Academies,Upminster Academy Trust trading as U,Public Sector,"Grants paid to organisations including agencies, arms length bodies and educational establishments",PAYBACSAUTO 43260,"9,598"
Department for Education,EDUCATION FUNDING AGENCY,02/11/2012,Grants,Converter Academies,Upminster Academy Trust trading as U,Public Sector,"Grants paid to organisations including agencies, arms length bodies and educational establishments",PAYBACSAUTO 43260,"121,317"
Department for Education,EDUCATION FUNDING AGENCY,02/11/2012,Grants,Converter Academies,Upminster Academies Trust t/a Upmins,Public Sector,"Grants paid to organisations including agencies, arms length bodies and educational establishments",PAYBACSAUTO 43261,"13,114"
Department for Education,EDUCATION FUNDING AGENCY,02/11/2012,Grants,Converter Academies,Upminster Academies Trust t/a Upmins,Public Sector,"Grants paid to organisations including agencies, arms length bodies and educational establishments",PAYBACSAUTO 43261,520
Department for Education,EDUCATION FUNDING AGENCY,02/11/2012,Grants,Converter Academies,Upminster Academies Trust t/a Upmins,Public Sector,"Grants paid to organisations including agencies, arms length bodies and educational establishments",PAYBACSAUTO 43261,"150,745"
Department for Education,EDUCATION FUNDING AGENCY,02/11/2012,Grants,Converter Academies,Warwick Primary School,Public Sector,"Grants paid to organisations including agencies, arms length bodies and educational establishments",PAYBACSAUTO 43264,340
Department for Education,EDUCATION FUNDING AGENCY,02/11/2012,Grants,Converter Academies,Warwick Primary School,Public Sector,"Grants paid to organisations including agencies, arms length bodies and educational establishments",PAYBACSAUTO 43264,"16,009"
Department for Education,EDUCATION FUNDING AGENCY,02/11/2012,Grants,Converter Academies,Warwick Primary School,Public Sector,"Grants paid to organisations including agencies, arms length bodies and educational establishments",PAYBACSAUTO 43264,"155,018"
Department for Education,EDUCATION FUNDING AGENCY,02/11/2012,Grants,Converter Academies,Warlingham School,Public Sector,"Grants paid to organisations including agencies, arms length bodies and educational establishments",PAYBACSAUTO 43265,"671,415"
Department for Education,EDUCATION FUNDING AGENCY,02/11/2012,Grants,Converter Academies,Warlingham School,Public Sector,"Grants paid to organisations including agencies, arms length bodies and educational establishments",PAYBACSAUTO 43265,"204,475"
Department for Education,EDUCATION FUNDING AGENCY,02/11/2012,Grants,Converter Academies,Warlingham School,Public Sector,"Grants paid to organisations including agencies, arms length bodies and educational establishments",PAYBACSAUTO 43265,"44,051"
Department for Education,EDUCATION FUNDING AGENCY,02/11/2012,Grants,Converter Academies,Warlingham School,Public Sector,"Grants paid to organisations including agencies, arms length bodies and educational establishments",PAYBACSAUTO 43265,"4,034"
Department for Education,EDUCATION FUNDING AGENCY,02/11/2012,Grants,Converter Academies,Weston Favell CE Primary School,Public Sector,"Grants paid to organisations including agencies, arms length bodies and educational establishments",PAYBACSAUTO 43269,"14,228"
Department for Education,EDUCATION FUNDING AGENCY,02/11/2012,Grants,Converter Academies,Weston Favell CE Primary School,Public Sector,"Grants paid to organisations including agencies, arms length bodies and educational establishments",PAYBACSAUTO 43269,"123,035"
Department for Education,EDUCATION FUNDING AGENCY,02/11/2012,Grants,Converter Academies,Weston Favell CE Primary School,Public Sector,"Grants paid to organisations including agencies, arms length bodies and educational establishments",PAYBACSAUTO 43269,201
Department for Education,EDUCATION FUNDING AGENCY,02/11/2012,Grants,Converter Academies,Whitemoor Academy,Public Sector,"Grants paid to organisations including agencies, arms length bodies and educational establishments",PAYBACSAUTO 43271,84
Department for Education,EDUCATION FUNDING AGENCY,02/11/2012,Grants,Converter Academies,Whitemoor Academy,Public Sector,"Grants paid to organisations including agencies, arms length bodies and educational establishments",PAYBACSAUTO 43271,"42,559"
Department for Education,EDUCATION FUNDING AGENCY,02/11/2012,Grants,Converter Academies,Whitemoor Academy,Public Sector,"Grants paid to organisations including agencies, arms length bodies and educational establishments",PAYBACSAUTO 43271,"3,366"
Department for Education,EDUCATION FUNDING AGENCY,02/11/2012,Grants,Converter Academies,Birkett House School,Public Sector,"Grants paid to organisations including agencies, arms length bodies and educational establishments",PAYBACSAUTO 43272,"437,665"
Department for Education,EDUCATION FUNDING AGENCY,02/11/2012,Grants,Converter Academies,Birkett House School,Public Sector,"Grants paid to organisations including agencies, arms length bodies and educational establishments",PAYBACSAUTO 43272,"15,914"
Department for Education,EDUCATION FUNDING AGENCY,02/11/2012,Grants,Converter Academies,Wilnecote High School,Public Sector,"Grants paid to organisations including agencies, arms length bodies and educational establishments",PAYBACSAUTO 43276,"3,204"
Department for Education,EDUCATION FUNDING AGENCY,02/11/2012,Grants,Converter Academies,Wilnecote High School,Public Sector,"Grants paid to organisations including agencies, arms length bodies and educational establishments",PAYBACSAUTO 43276,"30,834"
Department for Education,EDUCATION FUNDING AGENCY,02/11/2012,Grants,Converter Academies,Wilnecote High School,Public Sector,"Grants paid to organisations including agencies, arms length bodies and educational establishments",PAYBACSAUTO 43276,"537,664"
Department for Education,EDUCATION FUNDING AGENCY,02/11/2012,Grants,Sponsored Academies,Winton Academy,Public Sector,"Grants paid to organisations including agencies, arms length bodies and educational establishments",PAYBACSAUTO 43277,"67,875"
Department for Education,EDUCATION FUNDING AGENCY,02/11/2012,Grants,Sponsored Academies,Winton Academy,Public Sector,"Grants paid to organisations including agencies, arms length bodies and educational establishments",PAYBACSAUTO 43277,"29,169"
Department for Education,EDUCATION FUNDING AGENCY,02/11/2012,Grants,Sponsored Academies,Winton Academy,Public Sector,"Grants paid to organisations including agencies, arms length bodies and educational establishments",PAYBACSAUTO 43277,"2,140"
Department for Education,EDUCATION FUNDING AGENCY,02/11/2012,Grants,Sponsored Academies,Winton Academy,Public Sector,"Grants paid to organisations including agencies, arms length bodies and educational establishments",PAYBACSAUTO 43277,"357,687"
Department for Education,EDUCATION FUNDING AGENCY,02/11/2012,Grants,Sponsored Academies,Winton Academy,Public Sector,"Grants paid to organisations including agencies, arms length bodies and educational establishments",PAYBACSAUTO 43277,"14,990"
Department for Education,EDUCATION FUNDING AGENCY,02/11/2012,Grants,Partnership for Schools Legacy,CHESTER DIOCESAN BOARD OF EDUCATION,Public Sector,"Capital grants paid to organisations including agencies, arms length bodies and educational establishments",Capital 42657,"121,943"
Department for Education,EDUCATION FUNDING AGENCY,02/11/2012,Grants,Partnership for Schools Legacy,MANCHESTER DIOCESAN BOARD OF EDUCATION,Public Sector,"Capital grants paid to organisations including agencies, arms length bodies and educational establishments",Capital 42659,"91,578"
Department for Education,EDUCATION FUNDING AGENCY,02/11/2012,Grants,Partnership for Schools Legacy,NORTHAMPTON ROMAN CATHOLIC DIOCESE TRUST,Public Sector,"Capital grants paid to organisations including agencies, arms length bodies and educational establishments",Capital 42661,"103,596"
Department for Education,EDUCATION FUNDING AGENCY,02/11/2012,Grants,Partnership for Schools Legacy,OXFORD DIOCESAN COUNCIL OF EDUCATION,Public Sector,"Capital grants paid to organisations including agencies, arms length bodies and educational establishments",Capital 42665,"333,217"
Department for Education,EDUCATION FUNDING AGENCY,02/11/2012,Grants,Partnership for Schools Legacy,BIRMINGHAM CHURCH SCHOOLS FUND,Public Sector,"Capital grants paid to organisations including agencies, arms length bodies and educational establishments",Capital 42669,"57,990"
Department for Education,EDUCATION FUNDING AGENCY,02/11/2012,Grants,Partnership for Schools Legacy,HEREFORD DIOCESAN BOARD OF FINANCE,Public Sector,"Capital grants paid to organisations including agencies, arms length bodies and educational establishments",Capital 42671,"77,536"
Department for Education,EDUCATION FUNDING AGENCY,02/11/2012,Grants,Partnership for Schools Legacy,ST ALBANS DIOCESAN BOARD OF FINANCE,Public Sector,"Capital grants paid to organisations including agencies, arms length bodies and educational establishments",Capital 42675,"66,243"
Department for Education,EDUCATION FUNDING AGENCY,02/11/2012,Grants,Partnership for Schools Legacy,WORCESTER DIOCESE BOARD FOR EDUCATION GENERAL,Public Sector,"Capital grants paid to organisations including agencies, arms length bodies and educational establishments",Capital 42677,"47,350"
Department for Education,EDUCATION FUNDING AGENCY,02/11/2012,Grants,Partnership for Schools Legacy,DIOCESAN (BARCHESTER) SCHEME,Public Sector,"Capital grants paid to organisations including agencies, arms length bodies and educational establishments",Capital 42679,"142,372"
Department for Education,EDUCATION FUNDING AGENCY,02/11/2012,Grants,Partnership for Schools Legacy,BLACKBURN DIOCESAN BOARD OF EDUCATION BARCHESTER,Public Sector,"Capital grants paid to organisations including agencies, arms length bodies and educational establishments",Capital 42683,"252,817"
Department for Education,EDUCATION FUNDING AGENCY,02/11/2012,Grants,Partnership for Schools Legacy,LONDON DIOCESAN BOARD FOR SCHOOLS ACCOUNT,Public Sector,"Capital grants paid to organisations including agencies, arms length bodies and educational establishments",Capital 42685,"118,720"
Department for Education,EDUCATION FUNDING AGENCY,02/11/2012,Grants,Partnership for Schools Legacy,EXETER DIOCESAN BOARD OF FINANCE CHURCH,Public Sector,"Capital grants paid to organisations including agencies, arms length bodies and educational establishments",Capital 42687,"120,697"
Department for Education,EDUCATION FUNDING AGENCY,02/11/2012,Grants,Partnership for Schools Legacy,BIRMINGHAM ROMAN CATHOLIC DIOCESAN TRUSTEES REGISTERED DEVOLVED,Public Sector,"Capital grants paid to organisations including agencies, arms length bodies and educational establishments",Capital 42697,"269,408"
Department for Education,EDUCATION FUNDING AGENCY,02/11/2012,Grants,Partnership for Schools Legacy,ST PATRICKS ROMAN CATHOLIC BUILDING FUND ACCOUNT,Public Sector,"Capital grants paid to organisations including agencies, arms length bodies and educational establishments",Capital 42699,"32,071"
Department for Education,EDUCATION FUNDING AGENCY,02/11/2012,Grants,Partnership for Schools Legacy,ARCHDIOCESE OF LIVERPOOL SCHOOL CAPITAL ACCOUNT NO 7.,Public Sector,"Capital grants paid to organisations including agencies, arms length bodies and educational establishments",Capital 42705,"78,220"
Department for Education,EDUCATION FUNDING AGENCY,02/11/2012,Grants,Partnership for Schools Legacy,OUR LADY OF LOURDES SCHOOL GOVERNORS ACCOUNT,Public Sector,"Capital grants paid to organisations including agencies, arms length bodies and educational establishments",Capital 42707,"43,875"
Department for Education,EDUCATION FUNDING AGENCY,02/11/2012,Grants,Partnership for Schools Legacy,THE HOLY FAMILY TECHNOLOGY COLLEGE,Public Sector,"Capital grants paid to organisations including agencies, arms length bodies and educational establishments",Capital 42709,"33,478"
Department for Education,EDUCATION FUNDING AGENCY,02/11/2012,Grants,Partnership for Schools Legacy,SOUTHWARK DIOCESAN BOARD OF EDUCATION NO.4 ACCOUNT,Public Sector,"Capital grants paid to organisations including agencies, arms length bodies and educational establishments",Capital 42713,"254,304"
Department for Education,EDUCATION FUNDING AGENCY,02/11/2012,Grants,Partnership for Schools Legacy,ST JOSEPHS,Public Sector,"Capital grants paid to organisations including agencies, arms length bodies and educational establishments",Capital 42715,"25,345"
Department for Education,EDUCATION FUNDING AGENCY,02/11/2012,Grants,Partnership for Schools Legacy,SHREWSBURY DIOCESAN SCHOOLS ACCOUNT,Public Sector,"Capital grants paid to organisations including agencies, arms length bodies and educational establishments",Capital 42717,"159,528"
Department for Education,EDUCATION FUNDING AGENCY,02/11/2012,Grants,Partnership for Schools Legacy,NOTTINGHAM EDUCATION SERVICE SCHOOL CAPITAL ACCOUNT,Public Sector,"Capital grants paid to organisations including agencies, arms length bodies and educational establishments",Capital 42719,"165,243"
Department for Education,EDUCATION FUNDING AGENCY,02/11/2012,Grants,Partnership for Schools Legacy,CHELMSFORD DIOCESAN BOARD OF FINANCE,Public Sector,"Capital grants paid to organisations including agencies, arms length bodies and educational establishments",Capital 42721,"42,687"
Department for Education,EDUCATION FUNDING AGENCY,02/11/2012,Grants,Partnership for Schools Legacy,SALFORD ROMAN CATHOLIC DIOCESE DEVOLVED FORMULA CAPITAL 1 ACCOUNT,Public Sector,"Capital grants paid to organisations including agencies, arms length bodies and educational establishments",Capital 42725,"274,289"
Department for Education,EDUCATION FUNDING AGENCY,02/11/2012,Grants,Partnership for Schools Legacy,PORTSMOUTH ROMAN CATHOLIC DIOCESE TRUSTEES REGISTERED SCHOOLS CONDITION SCHEME NO 2 ACCOUNT,Public Sector,"Capital grants paid to organisations including agencies, arms length bodies and educational establishments",Capital 42727,"79,439"
Department for Education,EDUCATION FUNDING AGENCY,02/11/2012,Grants,Partnership for Schools Legacy,COVENTRY DIOCESAN BOARD OF EDUCATION,Public Sector,"Capital grants paid to organisations including agencies, arms length bodies and educational establishments",Capital 42729,"46,158"
Department for Education,EDUCATION FUNDING AGENCY,02/11/2012,Grants,Partnership for Schools Legacy,WESTMINSTER ROMAN CATHOLIC DIOCESE TRUST SCHOOL BUILDING FUND PROJECTS,Public Sector,"Capital grants paid to organisations including agencies, arms length bodies and educational establishments",Capital 42735,"195,850"
Department for Education,EDUCATION FUNDING AGENCY,02/11/2012,Grants,Partnership for Schools Legacy,EDUCATIONAL DEVELOPMENT LTD - SCHOOLS ACCOUNT,Commercial,Capital grants paid to a private sector organisation,Capital 42739,"27,418"
Department for Education,EDUCATION FUNDING AGENCY,02/11/2012,Grants,Partnership for Schools Legacy,NEWCASTLE DICESE FOR DURHAM SCHOOLS ACCOUNT,Public Sector,"Capital grants paid to organisations including agencies, arms length bodies and educational establishments",Capital 42747,"85,171"
Department for Education,EDUCATION FUNDING AGENCY,02/11/2012,Grants,Free School Capital Costs,KINGS SCIENCE ACADEMY,Public Sector,"Capital grants paid to organisations including agencies, arms length bodies and educational establishments",Capital 42751,"923,098"
Department for Education,EDUCATION FUNDING AGENCY,02/11/2012,Grants,Free School Capital Costs,THE SECKFORD FOUNDATION FREE SCHOOLS TRUST,Public Sector,"Capital grants paid to organisations including agencies, arms length bodies and educational establishments",Capital 42757,"155,527"
Department for Education,EDUCATION FUNDING AGENCY,02/11/2012,Grants,Free School Capital Costs,SABRES EDUCATIONAL TRUST,Public Sector,"Capital grants paid to organisations including agencies, arms length bodies and educational establishments",Capital 42763,"50,756"
Department for Education,EDUCATION FUNDING AGENCY,02/11/2012,Grants,Free School Capital Costs,SABRES EDUCATIONAL TRUST,Public Sector,"Grants paid to organisations including agencies, arms length bodies and educational establishments",Capital 42763,"152,163"
Department for Education,EDUCATION FUNDING AGENCY,02/11/2012,Grants,Free School Capital Costs,SABRES EDUCATIONAL TRUST,Public Sector,"Capital grants paid to organisations including agencies, arms length bodies and educational establishments",Capital 42763,"40,571"
Department for Education,EDUCATION FUNDING AGENCY,02/11/2012,Grants,Partnership for Schools Legacy,AL-FURQAN PRIMARY SCHOOL,Public Sector,"Capital grants paid to organisations including agencies, arms length bodies and educational establishments",Capital 42765,"74,783"
Department for Education,DEPARTMENT FOR EDUCATION,05/11/2012,Grants,Children Young People and Families Early Years Extended Schools and Special Needs Group,PEN GREEN RESEARCH,Commercial,Grants to third sector organisations / not for profit organisations,4000101583,"43,313"
Department for Education,DEPARTMENT FOR EDUCATION,05/11/2012,Programme costs,Families Group,FAMILY MATTERS INSTITUTE,VCS,Funding to deliver policies (excluding consultancy) paid to third parties via a service delivery contract,4000101551,"44,659"
Department for Education,DEPARTMENT FOR EDUCATION,05/11/2012,Grants,Families Group,BOOK TRUST,VCS,Grants to third sector organisations / not for profit organisations,4000101540,"1,035,271"
Department for Education,DEPARTMENT FOR EDUCATION,05/11/2012,Programme costs,School Standards Group,NFER TRADING LIMITED INV T,Commercial,Funding to deliver policies (excluding consultancy) paid to third parties via a service delivery contract,4000101579,"80,000"
Department for Education,TEACHERS PENSION SCHEME,05/11/2012,Funding to Pay Teachers' Pensions,Workforce Group,CAPITA TP HSBC,Commercial,Funding to pay Teachers' Pensions,1001308,"57,999"
Department for Education,TEACHERS PENSION SCHEME,05/11/2012,Funding to Pay Teachers' Pensions,Workforce Group,CAPITA TP NATWEST,Commercial,Funding to pay Teachers' Pensions,1001309,"50,430,592"
Department for Education,DEPARTMENT FOR EDUCATION,05/11/2012,Grants,Education Funding Group,HARRIS FEDERATION OF SOUTH LONDON SCHOOLS,Public Sector,Capital grants paid to a private sector organisation,4000101558,"218,166"
Department for Education,NATIONAL COLLEGE FOR SCHOOL LEADERSHIP AGENCY,05/11/2012,Grants,Teaching Schools Directorate,WOODBERRY DOWN COMMUNITY PRIMARY SCHOOL,Public Sector,"Grants paid to organisations including agencies, arms length bodies and educational establishments",4000101614,"65,000"
Department for Education,TEACHING AGENCY,05/11/2012,Programme costs,Early Years,ANGLIA RUSKIN UNIVERSITY,Public Sector,Funding to deliver policies (excluding consultancy) paid to third parties via a service delivery contract,4000101535,"658,210"
Department for Education,TEACHING AGENCY,05/11/2012,Programme costs,Early Years,UNIVERSITY OF NEWCASTLE UPON TYNE,Public Sector,Funding to deliver policies (excluding consultancy) paid to third parties via a service delivery contract,4000101606,"238,563"
Department for Education,EDUCATION FUNDING AGENCY,05/11/2012,Programme Costs,Free School Technical Advice,MACE LTD,Commercial,Funding to external organisations to deliver policies (excluding consultancy),Capital 42653,"64,448"
Department for Education,EDUCATION FUNDING AGENCY,05/11/2012,Programme Costs,Free School Legal Advice,JACOBS,Commercial,Funding to external organisations to deliver policies (excluding consultancy),Capital 42655,"7,850"
Department for Education,EDUCATION FUNDING AGENCY,05/11/2012,Programme Costs,Free School Legal Advice,JACOBS,Commercial,Funding to external organisations to deliver policies (excluding consultancy),Capital 42655,287
Department for Education,EDUCATION FUNDING AGENCY,05/11/2012,Programme Costs,Free School Technical Advice,JACOBS,Commercial,Funding to external organisations to deliver policies (excluding consultancy),Capital 42655,"111,263"
Department for Education,EDUCATION FUNDING AGENCY,05/11/2012,Programme Costs,Programme Team,JACOBS,Commercial,Funding to external organisations to deliver policies (excluding consultancy),Capital 42655,"38,259"
Department for Education,DEPARTMENT FOR EDUCATION,05/11/2012,Grants,Academies Delivery Group,BEDFORD BOROUGH COUNCIL,Public Sector,To clear budget deficit liability of a maintained school to facilitate conversion to an academy.,4000101536,"150,620"
Department for Education,DEPARTMENT FOR EDUCATION,06/11/2012,Professional Services Other,"Strategic Analysis, Research and Policy Impact Group",INSTITUTE OF EDUCATION,Public Sector,"Research, survey data analysis that will inform policy decision making",4000101742,"125,000"
Department for Education,DEPARTMENT FOR EDUCATION,06/11/2012,Professional Services Other,"Strategic Analysis, Research and Policy Impact Group",OXFORD UNIVERSITY,Public Sector,"Research, survey data analysis that will inform policy decision making",4000101763,"49,979"
Department for Education,DEPARTMENT FOR EDUCATION,06/11/2012,Programme costs,Children Young People and Families Early Years Extended Schools and Special Needs Group,ACHIEVEMENT FOR ALL 3AS LTD,VCS,Funding to deliver policies (excluding consultancy) paid to third parties via a service delivery contract,4000101682,"387,182"
Department for Education,DEPARTMENT FOR EDUCATION,06/11/2012,Grants,Children Young People and Families Early Years Extended Schools and Special Needs Group,4CHILDREN,VCS,Grants to third sector organisations / not for profit organisations,4000101678,"75,001"
Department for Education,DEPARTMENT FOR EDUCATION,06/11/2012,Grants,Families Group,BRITISH ASSOCIATION FOR ADOPTION & FOSTERING,VCS,Grants to third sector organisations / not for profit organisations,4000101695,"89,067"
Department for Education,DEPARTMENT FOR EDUCATION,06/11/2012,Programme costs,Families Group,KINGS COLLEGE LONDON,Public Sector,Funding to deliver policies (excluding consultancy) paid to third parties via a service delivery contract,4000101746,"601,564"
Department for Education,DEPARTMENT FOR EDUCATION,06/11/2012,Personnel Related,People and Change,HMRC,Central Government,"Personnel costs including staff recruitment, staff restaurant subsidies, family care expenses",4000101739,"28,500"
Department for Education,DEPARTMENT FOR EDUCATION,06/11/2012,Advertising and Media,School Standards Group,2E2 UK LTD,Commercial,Publications and related services,4000101677,"100,896"
Department for Education,DEPARTMENT FOR EDUCATION,06/11/2012,Grants,School Standards Group,BRITISH SCIENCE ASSOCIATION,VCS,Grants to third sector organisations / not for profit organisations,4000101696,"49,235"
Department for Education,DEPARTMENT FOR EDUCATION,06/11/2012,Grants,School Standards Group,CFBT EDUCATION TRUST,VCS,Grants to third sector organisations / not for profit organisations,4000101704,"208,300"
Department for Education,TEACHERS PENSION SCHEME,06/11/2012,Funding to Pay Teachers' Pensions,Workforce Group,CAPITA TP NATWEST,Commercial,Funding to pay Teachers' Pensions,1001311,"23,760,910"
Department for Education,DEPARTMENT FOR EDUCATION,06/11/2012,Grants,Academies Delivery Group,HARRIS FEDERATION OF SOUTH LONDON SCHOOLS,Public Sector,"Grants paid to organisations including agencies, arms length bodies and educational establishments",4000101735,"27,835"
Department for Education,DEPARTMENT FOR EDUCATION,06/11/2012,Programme costs,Academies Delivery Group,PROSPECTS SERVICES LTD,Commercial,Funding to deliver policies (excluding consultancy) paid to third parties via a service delivery contract,4000101772,"26,098"
Department for Education,DEPARTMENT FOR EDUCATION,06/11/2012,Grants,Academies Delivery Group,ACADEMY ENTERPRISE TRUST,Public Sector,"Grants paid to organisations including agencies, arms length bodies and educational establishments",4000101681,"65,000"
Department for Education,DEPARTMENT FOR EDUCATION,06/11/2012,Grants,Academies Delivery Group,ALL SAINTS LOWER SCHOOL,Public Sector,"Grants paid to organisations including agencies, arms length bodies and educational establishments",4000101683,"25,000"
Department for Education,DEPARTMENT FOR EDUCATION,06/11/2012,Grants,Academies Delivery Group,BEDFORD BOROUGH COUNCIL,Public Sector,"Grants paid to organisations including agencies, arms length bodies and educational establishments",4000101690,"25,000"
Department for Education,DEPARTMENT FOR EDUCATION,06/11/2012,Grants,Academies Delivery Group,BIRMINGHAM CITY COUNCIL REVENUES & PAYMENTS,Public Sector,"Grants paid to organisations including agencies, arms length bodies and educational establishments",4000101692,"25,000"
Department for Education,DEPARTMENT FOR EDUCATION,06/11/2012,Grants,Academies Delivery Group,CASTLEGREEN COMMUNITY SCHOOL,Public Sector,"Grants paid to organisations including agencies, arms length bodies and educational establishments",4000101702,"25,000"
Department for Education,DEPARTMENT FOR EDUCATION,06/11/2012,Grants,Academies Delivery Group,CHARVILLE PRIMARY SCHOOL,Public Sector,"Grants paid to organisations including agencies, arms length bodies and educational establishments",4000101705,"25,000"
Department for Education,DEPARTMENT FOR EDUCATION,06/11/2012,Grants,Academies Delivery Group,CHENEY SCHOOL,Public Sector,"Grants paid to organisations including agencies, arms length bodies and educational establishments",4000101707,"25,000"
Department for Education,DEPARTMENT FOR EDUCATION,06/11/2012,Grants,Academies Delivery Group,CHICKERELL PRIMARY SCHOOL,Public Sector,"Grants paid to organisations including agencies, arms length bodies and educational establishments",4000101708,"25,000"
Department for Education,DEPARTMENT FOR EDUCATION,06/11/2012,Grants,Academies Delivery Group,COBDEN PRIMARY SCHOOL,Public Sector,"Grants paid to organisations including agencies, arms length bodies and educational establishments",4000101710,"25,000"
Department for Education,DEPARTMENT FOR EDUCATION,06/11/2012,Grants,Academies Delivery Group,COWLEY ST LAURENCE CE PRIMARY SCHOOL,Public Sector,"Grants paid to organisations including agencies, arms length bodies and educational establishments",4000101712,"25,000"
Department for Education,DEPARTMENT FOR EDUCATION,06/11/2012,Grants,Academies Delivery Group,DENE COMMUNITY SCHOOL,Public Sector,"Grants paid to organisations including agencies, arms length bodies and educational establishments",4000101718,"25,000"
Department for Education,DEPARTMENT FOR EDUCATION,06/11/2012,Grants,Academies Delivery Group,DEVON COUNTY COUNCIL,Public Sector,"Grants paid to organisations including agencies, arms length bodies and educational establishments",4000101721,"25,000"
Department for Education,DEPARTMENT FOR EDUCATION,06/11/2012,Grants,Academies Delivery Group,DIOCESE OF BIRMINGHAM,Public Sector,"Grants paid to organisations including agencies, arms length bodies and educational establishments",4000101722,"40,000"
Department for Education,DEPARTMENT FOR EDUCATION,06/11/2012,Grants,Academies Delivery Group,FARNHAM HEATH END SCHOOL,Public Sector,"Grants paid to organisations including agencies, arms length bodies and educational establishments",4000101726,"25,000"
Department for Education,DEPARTMENT FOR EDUCATION,06/11/2012,Grants,Academies Delivery Group,FITZWARYN SCHOOL,Public Sector,"Grants paid to organisations including agencies, arms length bodies and educational establishments",4000101727,"25,000"
Department for Education,DEPARTMENT FOR EDUCATION,06/11/2012,Grants,Academies Delivery Group,HIGHWOODS COMMUNITY PRIMARY SCHOOL,Public Sector,"Grants paid to organisations including agencies, arms length bodies and educational establishments",4000101737,"25,000"
Department for Education,DEPARTMENT FOR EDUCATION,06/11/2012,Grants,Academies Delivery Group,KEDINGTON PRIMARY SCHOOL,Public Sector,"Grants paid to organisations including agencies, arms length bodies and educational establishments",4000101744,"25,000"
Department for Education,DEPARTMENT FOR EDUCATION,06/11/2012,Grants,Academies Delivery Group,KELVEDON ST MARYS CE PRIMARY SCHOOL,Public Sector,"Grants paid to organisations including agencies, arms length bodies and educational establishments",4000101745,"25,000"
Department for Education,DEPARTMENT FOR EDUCATION,06/11/2012,Grants,Academies Delivery Group,KINGS LANGLEY SCHOOL,Public Sector,"Grants paid to organisations including agencies, arms length bodies and educational establishments",4000101747,"25,000"
Department for Education,DEPARTMENT FOR EDUCATION,06/11/2012,Grants,Academies Delivery Group,KINGSDOWN & RINGWOULD CEP SCHOOL,Public Sector,"Grants paid to organisations including agencies, arms length bodies and educational establishments",4000101748,"25,000"
Department for Education,DEPARTMENT FOR EDUCATION,06/11/2012,Grants,Academies Delivery Group,LINCOLNSHIRE COUNTY COUNCIL,Public Sector,"Grants paid to organisations including agencies, arms length bodies and educational establishments",4000101752,"100,000"
Department for Education,DEPARTMENT FOR EDUCATION,06/11/2012,Grants,Academies Delivery Group,LONGFIELD SCHOOL,Public Sector,"Grants paid to organisations including agencies, arms length bodies and educational establishments",4000101753,"65,000"
Department for Education,DEPARTMENT FOR EDUCATION,06/11/2012,Grants,Academies Delivery Group,MANDEVILLE PRIMARY SCHOOL,Public Sector,"Grants paid to organisations including agencies, arms length bodies and educational establishments",4000101756,"25,000"
Department for Education,DEPARTMENT FOR EDUCATION,06/11/2012,Grants,Academies Delivery Group,MATTHEW ARNOLD SCHOOL,Public Sector,"Grants paid to organisations including agencies, arms length bodies and educational establishments",4000101757,"25,000"
Department for Education,DEPARTMENT FOR EDUCATION,06/11/2012,Grants,Academies Delivery Group,NORTH WALSALL PRIMARY SCHOOL,Public Sector,"Grants paid to organisations including agencies, arms length bodies and educational establishments",4000101762,"25,000"
Department for Education,DEPARTMENT FOR EDUCATION,06/11/2012,Grants,Academies Delivery Group,PLATT BRIDGE COMMUNITY SCHOOL,Public Sector,"Grants paid to organisations including agencies, arms length bodies and educational establishments",4000101771,"25,000"
Department for Education,DEPARTMENT FOR EDUCATION,06/11/2012,Grants,Academies Delivery Group,RAYLEIGH PRIMARY SCHOOL,Public Sector,"Grants paid to organisations including agencies, arms length bodies and educational establishments",4000101775,"25,000"
Department for Education,DEPARTMENT FOR EDUCATION,06/11/2012,Grants,Academies Delivery Group,SCHOOL PARTNERSHIP TRUST ACADEMIES,Public Sector,"Grants paid to organisations including agencies, arms length bodies and educational establishments",4000101778,"25,000"
Department for Education,DEPARTMENT FOR EDUCATION,06/11/2012,Grants,Academies Delivery Group,SOUTHAM COLLEGE,Public Sector,"Grants paid to organisations including agencies, arms length bodies and educational establishments",4000101781,"25,000"
Department for Education,DEPARTMENT FOR EDUCATION,06/11/2012,Grants,Academies Delivery Group,SPRINGWELL DENE SCHOOL,Public Sector,"Grants paid to organisations including agencies, arms length bodies and educational establishments",4000101783,"25,000"
Department for Education,DEPARTMENT FOR EDUCATION,06/11/2012,Grants,Academies Delivery Group,ST ANNS PRIMARY SCHOOL HARINGEY,Public Sector,"Grants paid to organisations including agencies, arms length bodies and educational establishments",4000101784,"25,000"
Department for Education,DEPARTMENT FOR EDUCATION,06/11/2012,Grants,Academies Delivery Group,ST MARYS CE VA PRIMARY SCHOOL KETTERING,Public Sector,"Grants paid to organisations including agencies, arms length bodies and educational establishments",4000101785,"25,000"
Department for Education,DEPARTMENT FOR EDUCATION,06/11/2012,Grants,Academies Delivery Group,ST MATTHEWS C OF E PRIMARY SCHOOL,Public Sector,"Grants paid to organisations including agencies, arms length bodies and educational establishments",4000101786,"25,000"
Department for Education,DEPARTMENT FOR EDUCATION,06/11/2012,Grants,Academies Delivery Group,ST PAULS AND ALL HALLOWS CE INFANT SCHOOL,Public Sector,"Grants paid to organisations including agencies, arms length bodies and educational establishments",4000101787,"25,000"
Department for Education,DEPARTMENT FOR EDUCATION,06/11/2012,Grants,Academies Delivery Group,STOKE BISHOP CE PRIMARY SCHOOL,Public Sector,"Grants paid to organisations including agencies, arms length bodies and educational establishments",4000101790,"25,000"
Department for Education,DEPARTMENT FOR EDUCATION,06/11/2012,Grants,Academies Delivery Group,STRATTON UPPER SCHOOL,Public Sector,"Grants paid to organisations including agencies, arms length bodies and educational establishments",4000101792,"40,000"
Department for Education,DEPARTMENT FOR EDUCATION,06/11/2012,Grants,Academies Delivery Group,TABOR SCIENCE COLLGE,Public Sector,"Grants paid to organisations including agencies, arms length bodies and educational establishments",4000101794,"25,000"
Department for Education,DEPARTMENT FOR EDUCATION,06/11/2012,Grants,Academies Delivery Group,THE EDUCATION SCHOOLS TRUST,VCS,"Grants paid to organisations including agencies, arms length bodies and educational establishments",4000101796,"155,000"
Department for Education,DEPARTMENT FOR EDUCATION,06/11/2012,Grants,Academies Delivery Group,THE KEMNAL ACADEMIES TRUST,Public Sector,"Grants paid to organisations including agencies, arms length bodies and educational establishments",4000101797,"65,000"
Department for Education,DEPARTMENT FOR EDUCATION,06/11/2012,Grants,Academies Delivery Group,WINGFIELD BUSINESS & ENTERPRISE COLLEGE,Public Sector,"Grants paid to organisations including agencies, arms length bodies and educational establishments",4000101806,"25,000"
Department for Education,DEPARTMENT FOR EDUCATION,06/11/2012,Grants,Education Funding Group,ACADEMY ENTERPRISE TRUST,Public Sector,Capital grants paid to a private sector organisation,4000101681,"47,642"
Department for Education,DEPARTMENT FOR EDUCATION,06/11/2012,Grants,Free School Group,LEAF STUDIO SCHOOL,Public Sector,"Grants paid to organisations including agencies, arms length bodies and educational establishments",4000101751,"128,789"
Department for Education,DEPARTMENT FOR EDUCATION,06/11/2012,Grants,Free School Group,THE OCKENDON SCHOOL,Public Sector,"Grants paid to organisations including agencies, arms length bodies and educational establishments",4000101798,"80,350"
Department for Education,NATIONAL COLLEGE FOR SCHOOL LEADERSHIP AGENCY,06/11/2012,Programme costs,School Business Management and Efficiency,ANGLIA RUSKIN UNIVERSITY,Public Sector,Funding to deliver policies (excluding consultancy) paid to third parties via a service delivery contract,4000101684,"38,702"
Department for Education,TEACHING AGENCY,06/11/2012,Programme costs,Early Years,UNIVERSITY OF WORCESTER,Public Sector,Funding to deliver policies (excluding consultancy) paid to third parties via a service delivery contract,4000101801,"703,660"
Department for Education,TEACHING AGENCY,06/11/2012,Grants,Quality and Priorities Division,ANGLIA RUSKIN UNIVERSITY,Public Sector,Grants to third sector organisations / not for profit organisations,4000101684,"4,000"
Department for Education,EDUCATION FUNDING AGENCY,06/11/2012,Programme Costs,Free School Legal Advice,VEALE WASBROUGH VIZARDS,Commercial,Funding to external organisations to deliver policies (excluding consultancy),Capital 46811,"1,642,724"
Department for Education,DEPARTMENT FOR EDUCATION,07/11/2012,ICT Commodities,Chief Information Officer Group,EDUSERV,Public Sector,IT Services,4000101909,"91,116"
Department for Education,DEPARTMENT FOR EDUCATION,07/11/2012,Grants,Children Young People and Families Safeguarding Group,WOMEN CENTRE LTD,VCS,Grants to third sector organisations / not for profit organisations,4000102000,"42,680"
Department for Education,DEPARTMENT FOR EDUCATION,07/11/2012,Grants,Children Young People and Families Safeguarding Group,THE COLLEGE OF SOCIAL WORK,VCS,Grants to third sector organisations / not for profit organisations,4000101977,"66,666"
Department for Education,DEPARTMENT FOR EDUCATION,07/11/2012,Grants,Families Group,NATIONAL CHILDRENS BUREAU,VCS,Grants to third sector organisations / not for profit organisations,4000101941,"26,010"
Department for Education,DEPARTMENT FOR EDUCATION,07/11/2012,Programme costs,Families Group,THE SHARE FOUNDATION 3RD PARTY TRUST,Public Sector,Funding to deliver policies (excluding consultancy) paid to third parties via a service delivery contract,4000101981,"169,800"
Department for Education,DEPARTMENT FOR EDUCATION,07/11/2012,Grants,Supporting Children and Young People Group,BRITISH YOUTH COUNCIL,VCS,Grants to third sector organisations / not for profit organisations,4000101890,"52,419"
Department for Education,DEPARTMENT FOR EDUCATION,07/11/2012,Grants,Supporting Children and Young People Group,ADDACTION,VCS,Grants to third sector organisations / not for profit organisations,4000101877,"132,487"
Department for Education,DEPARTMENT FOR EDUCATION,07/11/2012,Grants,Supporting Children and Young People Group,PRINCES TRUST VOLUNTEERS PROGRAMME,VCS,Grants to third sector organisations / not for profit organisations,4000101954,"309,089"
Department for Education,DEPARTMENT FOR EDUCATION,07/11/2012,ICT Commodities,Chief Information Officer Group,EDUSERV,Public Sector,IT Services,4000101909,"261,120"
Department for Education,DEPARTMENT FOR EDUCATION,07/11/2012,ICT Commodities,Chief Information Officer Group,REDWEB,Commercial,Off the shelf software including ad hoc low value software licences,4000101960,"1,958"
Department for Education,DEPARTMENT FOR EDUCATION,07/11/2012,ICT Commodities,Chief Information Officer Group,REDWEB,Commercial,IT Services,4000101960,"95,306"
Department for Education,DEPARTMENT FOR EDUCATION,07/11/2012,Programme costs,School Standards Group,METEOROLOGICAL OFFICE,Central Government,Funding to deliver policies (excluding consultancy) paid to third parties via a service delivery contract,4000101939,"46,125"
Department for Education,TEACHERS PENSION SCHEME,07/11/2012,Funding to Pay Teachers' Pensions,Workforce Group,CAPITA TP HSBC,Commercial,Funding to pay Teachers' Pensions,1001312,"421,563"
Department for Education,TEACHERS PENSION SCHEME,07/11/2012,Funding to Pay Teachers' Pensions,Workforce Group,CAPITA TP NATWEST,Commercial,Funding to pay Teachers' Pensions,1001313,"18,713,635"
Department for Education,DEPARTMENT FOR EDUCATION,07/11/2012,Grants,Academies Delivery Group,WISE ACADEMIES,Public Sector,"Grants paid to organisations including agencies, arms length bodies and educational establishments",4000101999,"34,333"
Department for Education,DEPARTMENT FOR EDUCATION,07/11/2012,Grants,Education Funding Group,ARK SCHOOLS,Public Sector,Capital grants paid to a private sector organisation,4000101879,"799,405"
Department for Education,DEPARTMENT FOR EDUCATION,07/11/2012,Grants,System Reform Group,SCHOOL GOVERNORS ONE STOP SHOP,VCS,Grants to third sector organisations / not for profit organisations,4000101967,"165,351"
Department for Education,NATIONAL COLLEGE FOR SCHOOL LEADERSHIP AGENCY,07/11/2012,Programme costs,Early Years,HTI LEADERSHIP CENTRE,Public Sector,Funding to deliver policies (excluding consultancy) paid to third parties via a service delivery contract,4000101923,"30,102"
Department for Education,NATIONAL COLLEGE FOR SCHOOL LEADERSHIP AGENCY,07/11/2012,Programme costs,Licenced Provision Directorate,SELT,Public Sector,Funding to deliver policies (excluding consultancy) paid to third parties via a service delivery contract,4000101968,"21,450"
Department for Education,NATIONAL COLLEGE FOR SCHOOL LEADERSHIP AGENCY,07/11/2012,Programme costs,Licenced Provision Directorate,SELT,Public Sector,Funding to deliver policies (excluding consultancy) paid to third parties via a service delivery contract,4000101968,"397,312"
Department for Education,STANDARDS AND TESTING AGENCY,07/11/2012,ICT Commodities,Test Development Division,TEXUNA TECHNOLOGIES,Commercial,Off the shelf software including ad hoc low value software licences,4000101975,"9,858"
Department for Education,TEACHING AGENCY,07/11/2012,Programme costs,Early Years,BEST PRACTICE NETWORK LTD,Commercial,Funding to deliver policies (excluding consultancy) paid to third parties via a service delivery contract,4000101886,"853,560"
Department for Education,TEACHING AGENCY,07/11/2012,Operational Goods,Funding Allocation and Performance Division,TEXUNA TECHNOLOGIES,Commercial,Books and publications including journals,4000101975,"53,835"
Department for Education,TEACHING AGENCY,07/11/2012,ICT Commodities,Quality and Priorities Division,TEXUNA TECHNOLOGIES,Commercial,IT Services,4000101975,"7,646"
Department for Education,TEACHING AGENCY,07/11/2012,Advertising and Media,Quality and Priorities Division,REDWEB,Commercial,Digital media and web production,4000101960,"4,675"
Department for Education,TEACHING AGENCY,07/11/2012,Professional Services Other,Supply and Recruitment Division,PEARSON EDUCATION LTD,Commercial,"Fees / expenses of professionals from the private sector, for example to implement advice or changes",4000101950,"73,051"
Department for Education,EDUCATION FUNDING AGENCY,07/11/2012,Programme Costs,Young People's Funding,CAPITA BUSINESS SERVICES LTD,Commercial,Funding to external organisations to deliver policies (excluding consultancy),PAYBACSAUTO 43285,"18,615"
Department for Education,EDUCATION FUNDING AGENCY,07/11/2012,Grants,Young People's Funding,CAPITA BUSINESS SERVICES LTD,Commercial,"Grants paid to organisations including agencies, arms length bodies and educational establishments",PAYBACSAUTO 43285,"9,459"
Department for Education,EDUCATION FUNDING AGENCY,07/11/2012,Programme Costs,Young People's Funding,CAPITA BUSINESS SERVICES LTD,Commercial,Funding to external organisations to deliver policies (excluding consultancy),PAYBACSAUTO 43285,"264,311"
Department for Education,EDUCATION FUNDING AGENCY,07/11/2012,Grants,Young People's Funding,CAPITA BUSINESS SERVICES LTD,Commercial,"Grants paid to organisations including agencies, arms length bodies and educational establishments",PAYBACSAUTO 43284,"5,703"
Department for Education,EDUCATION FUNDING AGENCY,07/11/2012,Programme Costs,Young People's Funding,CAPITA BUSINESS SERVICES LTD,Commercial,Funding to external organisations to deliver policies (excluding consultancy),PAYBACSAUTO 43284,"15,841"
Department for Education,EDUCATION FUNDING AGENCY,07/11/2012,Programme Costs,Young People's Funding,CAPITA BUSINESS SERVICES LTD,Commercial,Funding to external organisations to deliver policies (excluding consultancy),PAYBACSAUTO 43284,"266,615"
Department for Education,EDUCATION FUNDING AGENCY,07/11/2012,Programme Costs,Young People's Funding,CAPITA BUSINESS SERVICES LTD,Commercial,Funding to external organisations to deliver policies (excluding consultancy),PAYBACSAUTO 43284,122
Department for Education,EDUCATION FUNDING AGENCY,07/11/2012,Programme Costs,Young People's Funding,CAPITA BUSINESS SERVICES LTD,Commercial,Funding to external organisations to deliver policies (excluding consultancy),PAYBACSAUTO 43284,-60
Department for Education,EDUCATION FUNDING AGENCY,07/11/2012,Programme Costs,Young People's Funding,CAPITA BUSINESS SERVICES LTD,Commercial,Funding to external organisations to deliver policies (excluding consultancy),PAYBACSAUTO 43284,330
Department for Education,EDUCATION FUNDING AGENCY,07/11/2012,Programme Costs,Young People's Funding,CAPITA BUSINESS SERVICES LTD,Commercial,Funding to external organisations to deliver policies (excluding consultancy),PAYBACSAUTO 43284,554
Department for Education,EDUCATION FUNDING AGENCY,07/11/2012,Programme Costs,Free School Legal Advice,DICKINSON DEES,Commercial,Funding to external organisations to deliver policies (excluding consultancy),Capital 46813,"5,220,923"
Department for Education,DEPARTMENT FOR EDUCATION,08/11/2012,Personnel Related,Children Young People and Families Early Years Extended Schools and Special Needs Group,THE MEDIA GROUP TMG TV LTD,Commercial,"
DfE subsidy for CRB checks for childcare providers and their employees / volunteers registered with OfSTED ",4000102126,"261,130"
Department for Education,DEPARTMENT FOR EDUCATION,08/11/2012,Grants,Children Young People and Families Early Years Extended Schools and Special Needs Group,4CHILDREN,VCS,Grants to third sector organisations / not for profit organisations,4000102063,"105,998"
Department for Education,DEPARTMENT FOR EDUCATION,08/11/2012,Programme costs,Children Young People and Families Early Years Extended Schools and Special Needs Group,MOTT MACDONALD LTD,Commercial,Funding to deliver policies (excluding consultancy) paid to third parties via a service delivery contract,4000102105,"58,814"
Department for Education,DEPARTMENT FOR EDUCATION,08/11/2012,Programme costs,Children Young People and Families Safeguarding Group,CAPGEMINI UK PLC,Commercial,Funding to deliver policies (excluding consultancy) paid to third parties via a service delivery contract,4000102073,"138,496"
Department for Education,DEPARTMENT FOR EDUCATION,08/11/2012,Grants,Families Group,HOME START UK,VCS,Grants to third sector organisations / not for profit organisations,4000102090,"326,005"
Department for Education,DEPARTMENT FOR EDUCATION,08/11/2012,Grants,Families Group,FAMILIES NEED FATHERS,VCS,Grants to third sector organisations / not for profit organisations,4000102084,"31,481"
Department for Education,DEPARTMENT FOR EDUCATION,08/11/2012,Grants,Families Group,GINGERBREAD,VCS,Grants to third sector organisations / not for profit organisations,4000102088,"50,395"
Department for Education,DEPARTMENT FOR EDUCATION,08/11/2012,Grants,Families Group,PROJECT FOR ADVOCACY COUNSELLING & EDUCATION,VCS,Grants to third sector organisations / not for profit organisations,4000102115,"33,695"
Department for Education,DEPARTMENT FOR EDUCATION,08/11/2012,Grants,Families Group,RELATE,VCS,Grants to third sector organisations / not for profit organisations,4000102117,"534,775"
Department for Education,DEPARTMENT FOR EDUCATION,08/11/2012,Grants,Supporting Children and Young People Group,N C V Y S,VCS,Grants to third sector organisations / not for profit organisations,4000102106,"88,586"
Department for Education,DEPARTMENT FOR EDUCATION,08/11/2012,Grants,Supporting Children and Young People Group,TOMORROWS PEOPLE TRUST LTD,VCS,Grants to third sector organisations / not for profit organisations,4000102128,"65,127"
Department for Education,DEPARTMENT FOR EDUCATION,08/11/2012,Facilities,Chief Information Officer Group,EARLSDON PARK MANAGEMENT COMPANY LTD,Commercial,Rent,1000878,"30,000"
Department for Education,TEACHERS PENSION SCHEME,08/11/2012,Funding to Pay Teachers' Pensions,Workforce Group,CAPITA TP HSBC,Commercial,Funding to pay Teachers' Pensions,1001314,"255,339"
Department for Education,TEACHERS PENSION SCHEME,08/11/2012,Funding to Pay Teachers' Pensions,Workforce Group,CAPITA TP NATWEST,Commercial,Funding to pay Teachers' Pensions,1001315,"18,565,963"
Department for Education,TEACHERS PENSION SCHEME,08/11/2012,Funding to Pay Teachers' Pensions,Workforce Group,CAPITA TP HSBC,Commercial,Funding to pay Teachers' Pensions,1001316,"679,208"
Department for Education,TEACHERS PENSION SCHEME,08/11/2012,Funding to Pay Teachers' Pensions,Workforce Group,CAPITA TP NATWEST,Commercial,Funding to pay Teachers' Pensions,1001317,"19,212,767"
Department for Education,DEPARTMENT FOR EDUCATION,08/11/2012,Grants,Academies Delivery Group,ACADEMY ENTERPRISE TRUST,Public Sector,"Grants paid to organisations including agencies, arms length bodies and educational establishments",4000102065,"37,494"
Department for Education,DEPARTMENT FOR EDUCATION,08/11/2012,Grants,Free School Group,EAST NORFOLK ACADEMY TRUST,Public Sector,"Grants paid to organisations including agencies, arms length bodies and educational establishments",1000880,"79,017"
Department for Education,DEPARTMENT FOR EDUCATION,08/11/2012,Grants,Free School Group,EVERTON IN THE COMMUNITY FREE SCHOOL,Public Sector,"Grants paid to organisations including agencies, arms length bodies and educational establishments",1000881,"26,608"
Department for Education,DEPARTMENT FOR EDUCATION,08/11/2012,Grants,Free School Group,EAST LONDON SCIENCE SCHOOL TRUST,Public Sector,"Grants paid to organisations including agencies, arms length bodies and educational establishments",1000879,"60,000"
Department for Education,DEPARTMENT FOR EDUCATION,08/11/2012,Grants,Sponsor Funding Team,NOTLEY GREEN PRIMARY SCHOOL,Public Sector,"Grants paid to organisations including agencies, arms length bodies and educational establishments",4000102109,"98,000"
Department for Education,DEPARTMENT FOR EDUCATION,08/11/2012,Grants,Sponsor Funding Team,SHARNBROOK ACADEMY FEDERATION,Public Sector,"Grants paid to organisations including agencies, arms length bodies and educational establishments",4000102120,"91,020"
Department for Education,DEPARTMENT FOR EDUCATION,08/11/2012,Grants,Sponsor Funding Team,THE ACTIVE LEARNING TRUST,Public Sector,"Grants paid to organisations including agencies, arms length bodies and educational establishments",4000102122,"75,000"
Department for Education,DEPARTMENT FOR EDUCATION,08/11/2012,Grants,System Reform Group,DEPARTMENT FOR COMMUNITIES & LOCAL GOVERNMENT,Central Government,Current grant funding to other government departments for DfE's contribution to jointly funded programmes ,2000676,"3,933,833"
Department for Education,NATIONAL COLLEGE FOR SCHOOL LEADERSHIP AGENCY,08/11/2012,Grants,Licenced Provision Directorate,INSPIRING LEADERS SCHOLARSHIPS,Commercial,"Grants paid to organisations including agencies, arms length bodies and educational establishments",4000102091,"38,375"
Department for Education,TEACHING AGENCY,08/11/2012,Grants,Funding Allocation and Performance Division,METROPOLITAN BOROUGH OF WIRRAL,Public Sector,Grants to local authorities within AEF/AEG (aggregate external funding/aggregate exchequer grant),4000102104,"25,036"
Department for Education,DEPARTMENT FOR EDUCATION,09/11/2012,ICT Commodities,Chief Information Officer Group,EDUSERV,Public Sector,IT Services,4000102260,"25,720"
Department for Education,DEPARTMENT FOR EDUCATION,09/11/2012,Grants,Children Young People and Families Early Years Extended Schools and Special Needs Group,NATIONAL CHILDRENS BUREAU,VCS,Grants to third sector organisations / not for profit organisations,4000102337,"127,500"
Department for Education,DEPARTMENT FOR EDUCATION,09/11/2012,Grants,Children Young People and Families Early Years Extended Schools and Special Needs Group,4CHILDREN,VCS,Grants to third sector organisations / not for profit organisations,4000102195,"125,001"
Department for Education,DEPARTMENT FOR EDUCATION,09/11/2012,Grants,Children Young People and Families Safeguarding Group,BROOK,VCS,Grants to third sector organisations / not for profit organisations,4000102225,"27,759"
Department for Education,DEPARTMENT FOR EDUCATION,09/11/2012,Grants,Children Young People and Families Safeguarding Group,THE PLACE2BE,VCS,Grants to third sector organisations / not for profit organisations,4000102418,"40,963"
Department for Education,DEPARTMENT FOR EDUCATION,09/11/2012,Programme costs,Families Group,FAMILY LIVES,VCS,Funding to deliver policies (excluding consultancy) paid to third parties via a service delivery contract,4000102267,"105,961"
Department for Education,DEPARTMENT FOR EDUCATION,09/11/2012,Programme costs,Families Group,GINGERBREAD,VCS,Funding to deliver policies (excluding consultancy) paid to third parties via a service delivery contract,4000102280,"27,426"
Department for Education,DEPARTMENT FOR EDUCATION,09/11/2012,Programme costs,Families Group,NETMUMS COM,VCS,Funding to deliver policies (excluding consultancy) paid to third parties via a service delivery contract,4000102339,"90,422"
Department for Education,DEPARTMENT FOR EDUCATION,09/11/2012,ICT Commodities,Chief Information Officer Group,EDUSERV,Public Sector,IT Services,4000102260,"15,360"
Department for Education,DEPARTMENT FOR EDUCATION,09/11/2012,Facilities,Chief Information Officer Group,INTERSERVE FACILITIES MANAGEMENT LTD,Commercial,"Building maintenance and repair, including repainting, replacing flooring, etc.",4000102302,"229,558"
Department for Education,DEPARTMENT FOR EDUCATION,09/11/2012,Facilities,Chief Information Officer Group,INTERSERVE FACILITIES MANAGEMENT LTD,Commercial,"Building maintenance and repair, including repainting, replacing flooring, etc.",4000102302,-45
Department for Education,DEPARTMENT FOR EDUCATION,09/11/2012,Programme costs,School Standards Group,RESEARCH MACHINES PLC,Commercial,Funding to deliver policies (excluding consultancy) paid to third parties via a service delivery contract,4000102363,"809,792"
Department for Education,DEPARTMENT FOR EDUCATION,09/11/2012,Programme costs,School Standards Group,NATIONAL SCIENCE LEARNING CENTRE,Public Sector,Funding to deliver policies (excluding consultancy) paid to third parties via a service delivery contract,4000102338,"175,647"
Department for Education,DEPARTMENT FOR EDUCATION,09/11/2012,Grants,School Standards Group,CFBT EDUCATION TRUST,VCS,Grants to third sector organisations / not for profit organisations,4000102233,"208,300"
Department for Education,DEPARTMENT FOR EDUCATION,09/11/2012,Grants,School Standards Group,DIANA PRINCESS  MEMORIAL AWARD,VCS,Grants to third sector organisations / not for profit organisations,4000102255,"25,000"
Department for Education,DEPARTMENT FOR EDUCATION,09/11/2012,Programme costs,Teachers Group,BABCOCK 4S LTD,Commercial,Funding to deliver policies (excluding consultancy) paid to third parties via a service delivery contract,4000102208,"39,201"
Department for Education,DEPARTMENT FOR EDUCATION,09/11/2012,Grants,Academies Delivery Group,TOOT HILL SCHOOL,Public Sector,"Grants paid to organisations including agencies, arms length bodies and educational establishments",4000102431,"100,000"
Department for Education,DEPARTMENT FOR EDUCATION,09/11/2012,Grants,Education Funding Group,ARK SCHOOLS,Public Sector,Capital grants paid to a private sector organisation,4000102203,"140,000"
Department for Education,DEPARTMENT FOR EDUCATION,09/11/2012,Programme costs,Free School Group,APPLEYARDS LTD,Commercial,Funding to deliver policies (excluding consultancy) paid to third parties via a service delivery contract,4000102202,"58,690"
Department for Education,DEPARTMENT FOR EDUCATION,09/11/2012,Grants,Sponsor Funding Team,FOCUS ACADEMIES TRUST UK LTD,Public Sector,"Grants paid to organisations including agencies, arms length bodies and educational establishments",4000102270,"81,000"
Department for Education,DEPARTMENT FOR EDUCATION,09/11/2012,Grants,Sponsor Funding Team,THE COLLABORATIVE ACADEMIES TRUST,Public Sector,"Grants paid to organisations including agencies, arms length bodies and educational establishments",4000102405,"45,804"
Department for Education,NATIONAL COLLEGE FOR SCHOOL LEADERSHIP AGENCY,09/11/2012,Programme costs,Design and Development Directorate,LIGHTBOX EDUCATION,Commercial,Funding to deliver policies (excluding consultancy) paid to third parties via a service delivery contract,4000102316,"72,675"
Department for Education,NATIONAL COLLEGE FOR SCHOOL LEADERSHIP AGENCY,09/11/2012,Professional Services Other,Performance and Evaluation Directorate,CFE LTD,Commercial,"Research, survey data analysis that will inform policy decision making",4000102234,"25,447"
Department for Education,STANDARDS AND TESTING AGENCY,09/11/2012,Programme costs,Test Development Division,ACUMINA LTD,Commercial,Funding to deliver policies (excluding consultancy) paid to third parties via a service delivery contract,4000102197,"29,040"
Department for Education,TEACHING AGENCY,09/11/2012,Programme costs,Early Years,THE TAVISTOCK & PORTMAN NHS FOUNDATION TRUST,Public Sector,Funding to deliver policies (excluding consultancy) paid to third parties via a service delivery contract,4000102424,"505,641"
Department for Education,TEACHING AGENCY,09/11/2012,Professional Services Other,Supply and Recruitment Division,MM TELEPERFORMANCE,Commercial,"Fees / expenses of professionals from the private sector, for example to implement advice or changes",4000102329,"67,500"
Department for Education,DEPARTMENT FOR EDUCATION,12/11/2012,Advertising and Media,Children Young People and Families Early Years Extended Schools and Special Needs Group,PROLOG,Commercial,Publications and related services,4000102608,"6,563"
Department for Education,DEPARTMENT FOR EDUCATION,12/11/2012,Programme costs,Children Young People and Families Early Years Extended Schools and Special Needs Group,MOTT MACDONALD LTD,Commercial,Funding to deliver policies (excluding consultancy) paid to third parties via a service delivery contract,4000102576,"48,334"
Department for Education,DEPARTMENT FOR EDUCATION,12/11/2012,Office Solutions,Children Young People and Families Early Years Extended Schools and Special Needs Group,PROLOG,Commercial,Storing records off DfE sites,4000102608,341
Department for Education,DEPARTMENT FOR EDUCATION,12/11/2012,Advertising and Media,Children Young People and Families Safeguarding Group,PROLOG,Commercial,Publications and related services,4000102608,"3,792"
Department for Education,DEPARTMENT FOR EDUCATION,12/11/2012,Advertising and Media,Families Group,PROLOG,Commercial,Publications and related services,4000102608,306
Department for Education,DEPARTMENT FOR EDUCATION,12/11/2012,Advertising and Media,Families Group,PROLOG,Commercial,Publications and related services,4000102608,177
Department for Education,DEPARTMENT FOR EDUCATION,12/11/2012,Advertising and Media,Families Group,PROLOG,Commercial,Publications and related services,4000102608,135
Department for Education,DEPARTMENT FOR EDUCATION,12/11/2012,Grants,Families Group,ALCOHOL CONCERN,VCS,Grants to third sector organisations / not for profit organisations,4000102511,"27,895"
Department for Education,DEPARTMENT FOR EDUCATION,12/11/2012,Grants,Families Group,CARERS TRUST,VCS,Grants to third sector organisations / not for profit organisations,4000102523,"81,620"
Department for Education,DEPARTMENT FOR EDUCATION,12/11/2012,Grants,Families Group,CSV,VCS,Grants to third sector organisations / not for profit organisations,4000102531,"65,898"
Department for Education,DEPARTMENT FOR EDUCATION,12/11/2012,Grants,Families Group,THE CHILDRENS SOCIETY,VCS,Grants to third sector organisations / not for profit organisations,4000102628,"63,738"
Department for Education,DEPARTMENT FOR EDUCATION,12/11/2012,Grants,Families Group,THE PLACE2BE,VCS,Grants to third sector organisations / not for profit organisations,4000102630,"63,499"
Department for Education,DEPARTMENT FOR EDUCATION,12/11/2012,Grants,Families Group,TIME FOR FAMILIES,VCS,Grants to third sector organisations / not for profit organisations,4000102632,"34,113"
Department for Education,DEPARTMENT FOR EDUCATION,12/11/2012,Grants,Families Group,ONE PLUS ONE,VCS,Grants to third sector organisations / not for profit organisations,4000102594,"38,884"
Department for Education,DEPARTMENT FOR EDUCATION,12/11/2012,Advertising and Media,Families Group,PROLOG,Commercial,Publications and related services,4000102608,"2,192"
Department for Education,DEPARTMENT FOR EDUCATION,12/11/2012,Programme costs,Families Group,CHILDRENS LEGAL CENTRE,VCS,Funding to deliver policies (excluding consultancy) paid to third parties via a service delivery contract,4000102527,"38,363"
Department for Education,DEPARTMENT FOR EDUCATION,12/11/2012,Advertising and Media,Families Group,PROLOG,Commercial,Publications and related services,4000102608,361
Department for Education,DEPARTMENT FOR EDUCATION,12/11/2012,Advertising and Media,Supporting Children and Young People Group,PROLOG,Commercial,Publications and related services,4000102608,191
Department for Education,EDUCATION FUNDING AGENCY,12/11/2012,Travel,Academies Group,EXPOTEL HOTEL RESERVATIONS LTD,Commercial,"Staff business travel including air, coach, ferry, rail and taxi",4000102538,"18,212"
Department for Education,EDUCATION FUNDING AGENCY,12/11/2012,Travel,Central Administrative Division,EXPOTEL HOTEL RESERVATIONS LTD,Commercial,"Staff business travel including air, coach, ferry, rail and taxi",4000102538,"29,621"
Department for Education,EDUCATION FUNDING AGENCY,12/11/2012,Advertising and Media,Chief Executives Office Administration,PROLOG,Commercial,Digital media and web production,4000102608,"61,159"
Department for Education,EDUCATION FUNDING AGENCY,12/11/2012,Travel,Young People Group,EXPOTEL HOTEL RESERVATIONS LTD,Commercial,"Staff business travel including air, coach, ferry, rail and taxi",4000102538,474
Department for Education,DEPARTMENT FOR EDUCATION,12/11/2012,Office Solutions,Chief Information Officer Group,IRON MOUNTAIN (UK) LTD,Commercial,Storing records off DfE sites,4000102555,"38,496"
Department for Education,DEPARTMENT FOR EDUCATION,12/11/2012,Energy and Fuels,Chief Information Officer Group,EDF ENERGY LTD,Commercial,Electricity supply,4000102535,"61,570"
Department for Education,DEPARTMENT FOR EDUCATION,12/11/2012,Advertising and Media,Chief Information Officer Group,PROLOG,Commercial,Digital media and web production,4000102608,"33,399"
Department for Education,DEPARTMENT FOR EDUCATION,12/11/2012,Advertising and Media,Chief Information Officer Group,PROLOG,Commercial,Digital media and web production,4000102608,"61,573"
Department for Education,DEPARTMENT FOR EDUCATION,12/11/2012,Advertising and Media,Chief Information Officer Group,PROLOG,Commercial,Digital media and web production,4000102608,"36,342"
Department for Education,DEPARTMENT FOR EDUCATION,12/11/2012,Advertising and Media,Participation and Vocational Education Group,PROLOG,Commercial,Publications and related services,4000102608,26
Department for Education,DEPARTMENT FOR EDUCATION,12/11/2012,Advertising and Media,School Standards Group,PROLOG,Commercial,Publications and related services,4000102608,345
Department for Education,DEPARTMENT FOR EDUCATION,12/11/2012,Advertising and Media,School Standards Group,PROLOG,Commercial,Publications and related services,4000102608,25
Department for Education,DEPARTMENT FOR EDUCATION,12/11/2012,Advertising and Media,School Standards Group,PROLOG,Commercial,Publications and related services,4000102608,"1,433"
Department for Education,DEPARTMENT FOR EDUCATION,12/11/2012,Advertising and Media,School Standards Group,PROLOG,Commercial,Publications and related services,4000102608,"2,352"
Department for Education,DEPARTMENT FOR EDUCATION,12/11/2012,Advertising and Media,School Standards Group,PROLOG,Commercial,Publications and related services,4000102608,740
Department for Education,DEPARTMENT FOR EDUCATION,12/11/2012,Advertising and Media,"Strategic Analysis, Research and Policy Impact Group",PROLOG,Commercial,Publications and related services,4000102608,17
Department for Education,DEPARTMENT FOR EDUCATION,12/11/2012,Advertising and Media,"Strategic Analysis, Research and Policy Impact Group",PROLOG,Commercial,Publications and related services,4000102608,95
Department for Education,DEPARTMENT FOR EDUCATION,12/11/2012,Advertising and Media,Teachers Group,PROLOG,Commercial,Publications and related services,4000102608,25
Department for Education,DEPARTMENT FOR EDUCATION,12/11/2012,Office Solutions,Teachers Group,PROLOG,Commercial,Storing records off DfE sites,4000102608,18
Department for Education,DEPARTMENT FOR EDUCATION,12/11/2012,Programme costs,Academies Delivery Group,ESSEX COUNTY COUNCIL,Public Sector,Funding to deliver policies (excluding consultancy) paid to third parties via a service delivery contract,4000102537,"25,000"
Department for Education,DEPARTMENT FOR EDUCATION,12/11/2012,Advertising and Media,Communications Group,PROLOG,Commercial,Publications and related services,4000102608,"15,582"
Department for Education,DEPARTMENT FOR EDUCATION,12/11/2012,ICT Commodities,Communications Group,PROLOG,Commercial,IT Services,4000102608,"5,520"
Department for Education,DEPARTMENT FOR EDUCATION,12/11/2012,Grants,Education Funding Group,ACADEMY ENTERPRISE TRUST,Public Sector,Capital grants paid to a private sector organisation,4000102508,"44,980"
Department for Education,DEPARTMENT FOR EDUCATION,12/11/2012,Grants,Education Funding Group,E ACT,Public Sector,Capital grants paid to a private sector organisation,4000102533,"50,000"
Department for Education,DEPARTMENT FOR EDUCATION,12/11/2012,Grants,Education Funding Group,HARRIS FEDERATION OF SOUTH LONDON SCHOOLS,Public Sector,Capital grants paid to a private sector organisation,4000102548,"144,928"
Department for Education,DEPARTMENT FOR EDUCATION,12/11/2012,Grants,Education Funding Group,OASIS COMMUNITY LEARNING,Public Sector,Capital grants paid to a private sector organisation,4000102592,"27,000"
Department for Education,DEPARTMENT FOR EDUCATION,12/11/2012,Grants,Free School Group,E ACT,Public Sector,"Grants paid to organisations including agencies, arms length bodies and educational establishments",4000102533,"45,658"
Department for Education,DEPARTMENT FOR EDUCATION,12/11/2012,Grants,Free School Group,GREENWOOD ACADEMIES TRUST,Public Sector,"Grants paid to organisations including agencies, arms length bodies and educational establishments",4000102546,"107,736"
Department for Education,DEPARTMENT FOR EDUCATION,12/11/2012,Programme costs,Free School Group,NEW SCHOOL NETWORK,VCS,Funding to deliver policies (excluding consultancy) paid to third parties via a service delivery contract,4000102583,"138,623"
Department for Education,DEPARTMENT FOR EDUCATION,12/11/2012,Grants,Sponsor Funding Team,NATIONAL EDUCATION TRUST,VCS,"Grants paid to organisations including agencies, arms length bodies and educational establishments",4000102581,"74,000"
Department for Education,DEPARTMENT FOR EDUCATION,12/11/2012,Advertising and Media,System Reform Group,PROLOG,Commercial,Publications and related services,4000102608,32
Department for Education,DEPARTMENT FOR EDUCATION,12/11/2012,Advertising and Media,System Reform Group,PROLOG,Commercial,Publications and related services,4000102608,306
Department for Education,DEPARTMENT FOR EDUCATION,12/11/2012,Advertising and Media,System Reform Group,PROLOG,Commercial,Publications and related services,4000102608,57
Department for Education,DEPARTMENT FOR EDUCATION,12/11/2012,Advertising and Media,System Reform Group,PROLOG,Commercial,Publications and related services,4000102608,187
Department for Education,DEPARTMENT FOR EDUCATION,12/11/2012,Professional Services Consultancy and Contingent Labour,System Reform Group,SODEN EDUCATION LTD,Commercial,"Fees / expenses of professionals from the private sector such as auditors, accountants, lawyers, etc. engaged to provide advice or opinion on how to affect something",4000102622,"29,374"
Department for Education,NATIONAL COLLEGE FOR SCHOOL LEADERSHIP AGENCY,12/11/2012,Print and Print Management,International Business Unit,PROLOG,Commercial,Printing and binding services,4000102608,67
Department for Education,NATIONAL COLLEGE FOR SCHOOL LEADERSHIP AGENCY,12/11/2012,Programme costs,Licenced Provision Directorate,BEST PRACTICE NETWORK LTD,Commercial,Funding to deliver policies (excluding consultancy) paid to third parties via a service delivery contract,4000102514,"44,715"
Department for Education,NATIONAL COLLEGE FOR SCHOOL LEADERSHIP AGENCY,12/11/2012,Print and Print Management,Licenced Provision Directorate,PROLOG,Commercial,Printing and binding services,4000102608,"1,630"
Department for Education,NATIONAL COLLEGE FOR SCHOOL LEADERSHIP AGENCY,12/11/2012,Print and Print Management,Licenced Provision Directorate,PROLOG,Commercial,Printing and binding services,4000102608,"1,079"
Department for Education,NATIONAL COLLEGE FOR SCHOOL LEADERSHIP AGENCY,12/11/2012,Office Solutions,Performance and Evaluation Directorate,PROLOG,Commercial,"Stationery, IT/office consumables - including ink, toners, storage media - etc.",4000102608,"3,389"
Department for Education,NATIONAL COLLEGE FOR SCHOOL LEADERSHIP AGENCY,12/11/2012,Programme costs,School Business Management and Efficiency,SERCO LTD,Commercial,Funding to deliver policies (excluding consultancy) paid to third parties via a service delivery contract,4000102617,"104,857"
Department for Education,NATIONAL COLLEGE FOR SCHOOL LEADERSHIP AGENCY,12/11/2012,Programme costs,School Business Management and Efficiency,SERCO LTD,Commercial,Funding to deliver policies (excluding consultancy) paid to third parties via a service delivery contract,4000102617,"49,101"
Department for Education,NATIONAL COLLEGE FOR SCHOOL LEADERSHIP AGENCY,12/11/2012,Programme costs,School Business Management and Efficiency,SERCO LTD,Commercial,Funding to deliver policies (excluding consultancy) paid to third parties via a service delivery contract,4000102617,"3,098"
Department for Education,NATIONAL COLLEGE FOR SCHOOL LEADERSHIP AGENCY,12/11/2012,Travel,School Improvement Directorate,EXPOTEL HOTEL RESERVATIONS LTD,Commercial,"Staff business travel including air, coach, ferry, rail and taxi",4000102538,"3,459"
Department for Education,NATIONAL COLLEGE FOR SCHOOL LEADERSHIP AGENCY,12/11/2012,Travel,Supply Directorate,EXPOTEL HOTEL RESERVATIONS LTD,Commercial,"Staff business travel including air, coach, ferry, rail and taxi",4000102538,"2,240"
Department for Education,DEPARTMENT FOR EDUCATION,12/11/2012,Advertising and Media,Private Office,PROLOG,Commercial,Publications and related services,4000102608,44
Department for Education,STANDARDS AND TESTING AGENCY,12/11/2012,Advertising and Media,Key Stage Exam Group,THE STATIONERY OFFICE LTD,Commercial,Publications and related services,4000102631,"36,240"
Department for Education,STANDARDS AND TESTING AGENCY,12/11/2012,Programme costs,Key Stage Exam Group,PROLOG,Commercial,Funding to deliver policies (excluding consultancy) paid to third parties via a service delivery contract,4000102608,"38,678"
Department for Education,STANDARDS AND TESTING AGENCY,12/11/2012,Travel,Test Development Division,EXPOTEL HOTEL RESERVATIONS LTD,Commercial,"Staff business travel including air, coach, ferry, rail and taxi",4000102538,"1,146"
Department for Education,STANDARDS AND TESTING AGENCY,12/11/2012,Programme costs,Test Development Division,PROLOG,Commercial,Funding to deliver policies (excluding consultancy) paid to third parties via a service delivery contract,4000102608,"33,024"
Department for Education,TEACHING AGENCY,12/11/2012,Programme costs,Early Years,KINGSTON UNIVERSITY,Public Sector,Funding to deliver policies (excluding consultancy) paid to third parties via a service delivery contract,4000102560,"280,916"
Department for Education,TEACHING AGENCY,12/11/2012,Programme costs,Early Years,UNIVERSITY OF CHICHESTER,Public Sector,Funding to deliver policies (excluding consultancy) paid to third parties via a service delivery contract,4000102636,"624,510"
Department for Education,TEACHING AGENCY,12/11/2012,Programme costs,Early Years,SHEFFIELD HALLAM UNIVERSITY,Public Sector,Funding to deliver policies (excluding consultancy) paid to third parties via a service delivery contract,4000102621,"30,420"
Department for Education,TEACHING AGENCY,12/11/2012,Travel,Exam Officers Support,EXPOTEL HOTEL RESERVATIONS LTD,Commercial,"Staff business travel including air, coach, ferry, rail and taxi",4000102538,"7,878"
Department for Education,TEACHING AGENCY,12/11/2012,Office Solutions,Qualified Teacher Status Induction,PROLOG,Commercial,Storing records off DfE sites,4000102608,18
Department for Education,TEACHING AGENCY,12/11/2012,Office Solutions,Supply and Recruitment Division,PROLOG,Commercial,Storing records off DfE sites,4000102608,"8,452"
Department for Education,TEACHING AGENCY,12/11/2012,Office Solutions,Supply and Recruitment Division,PROLOG,Commercial,Storing records off DfE sites,4000102608,"2,048"
Department for Education,TEACHING AGENCY,12/11/2012,Advertising and Media,Supply and Recruitment Division,PROLOG,Commercial,Communications and market research,4000102608,"2,301"
Department for Education,TEACHING AGENCY,12/11/2012,Advertising and Media,Teacher Supply and Recruitment Division,PROLOG,Commercial,Publications and related services,4000102608,"1,818"
Department for Education,EDUCATION FUNDING AGENCY,12/11/2012,Grants,Young People's Programme Team,Northumberland Tyne & Wear NHS Found,Public Sector,"Grants paid to organisations including agencies, arms length bodies and educational establishments",PAYBACSAUTO 43292,"488,697"
Department for Education,EDUCATION FUNDING AGENCY,12/11/2012,Programme Costs,Free School Legal Advice,DICKINSON DEES,Commercial,Funding to external organisations to deliver policies (excluding consultancy),Capital 43337,"9,617"
Department for Education,EDUCATION FUNDING AGENCY,12/11/2012,Programme Costs,Free School Legal Advice,DICKINSON DEES,Commercial,Funding to external organisations to deliver policies (excluding consultancy),Capital 43337,"40,834"
Department for Education,EDUCATION FUNDING AGENCY,12/11/2012,Grants,Programme Team,DICKINSON DEES,Commercial,"Grants paid to organisations including agencies, arms length bodies and educational establishments",Capital 43337,600
Department for Education,EDUCATION FUNDING AGENCY,12/11/2012,Programme Costs,University Technology Colleges,DICKINSON DEES,Commercial,Funding to external organisations to deliver policies (excluding consultancy),Capital 43337,"8,603"
Department for Education,EDUCATION FUNDING AGENCY,12/11/2012,Programme Costs,University Technology Colleges,DICKINSON DEES,Commercial,Funding to external organisations to deliver policies (excluding consultancy),Capital 43337,"1,378"
Department for Education,EDUCATION FUNDING AGENCY,12/11/2012,Professional Services Other,University Technology Colleges,DICKINSON DEES,Commercial,"Fees / expenses of professionals from the private sector, for example to implement advice or changes",Capital 43337,540
Department for Education,EDUCATION FUNDING AGENCY,12/11/2012,Programme Costs,Programme Team,GARDINER & THEOBALD LLP,Commercial,Funding to external organisations to deliver policies (excluding consultancy),Capital 43341,"25,920"
Department for Education,EDUCATION FUNDING AGENCY,12/11/2012,Programme Costs,University Technology Colleges,GARDINER & THEOBALD LLP,Commercial,Funding to external organisations to deliver policies (excluding consultancy),Capital 43341,"3,600"
Department for Education,EDUCATION FUNDING AGENCY,12/11/2012,Professional Services Other,Free School Property Advice,JONES LANG LASALLE,Public Sector,"Fees / expenses of professionals from the private sector, for example to implement advice or changes",Capital 43347,"22,542"
Department for Education,EDUCATION FUNDING AGENCY,12/11/2012,Grants,Free School Property Advice,JONES LANG LASALLE,Public Sector,"Grants paid to organisations including agencies, arms length bodies and educational establishments",Capital 43347,"69,987"
Department for Education,EDUCATION FUNDING AGENCY,12/11/2012,Programme Costs,University Technology Colleges,MOTT MACDONALD,Commercial,Funding to external organisations to deliver policies (excluding consultancy),Capital 43349,"220,958"
Department for Education,EDUCATION FUNDING AGENCY,12/11/2012,Programme Costs,Free School Property Advice,DTZ SHARED SERVICE CENTRE,Commercial,Funding to external organisations to deliver policies (excluding consultancy),Capital 43351,"71,827"
Department for Education,EDUCATION FUNDING AGENCY,12/11/2012,Programme Costs,Free School Property Advice,DTZ SHARED SERVICE CENTRE,Commercial,Funding to external organisations to deliver policies (excluding consultancy),Capital 43351,"6,000"
Department for Education,EDUCATION FUNDING AGENCY,12/11/2012,Programme Costs,Free School Technical Advice,DTZ SHARED SERVICE CENTRE,Commercial,Funding to external organisations to deliver policies (excluding consultancy),Capital 43351,"24,300"
Department for Education,EDUCATION FUNDING AGENCY,12/11/2012,Programme Costs,University Technology Colleges,DTZ SHARED SERVICE CENTRE,Commercial,Funding to external organisations to deliver policies (excluding consultancy),Capital 43351,"8,580"
Department for Education,EDUCATION FUNDING AGENCY,12/11/2012,Programme Costs,Free School Technical Advice,MACE LTD,Commercial,Funding to external organisations to deliver policies (excluding consultancy),Capital 43355,"38,632"
Department for Education,EDUCATION FUNDING AGENCY,12/11/2012,Programme Costs,Free School Technical Advice,MACE LTD,Commercial,Funding to external organisations to deliver policies (excluding consultancy),Capital 43355,"50,528"
Department for Education,EDUCATION FUNDING AGENCY,12/11/2012,Programme Costs,Free School Legal Advice,JACOBS,Commercial,Funding to external organisations to deliver policies (excluding consultancy),Capital 43357,"4,020"
Department for Education,EDUCATION FUNDING AGENCY,12/11/2012,Programme Costs,Free School Technical Advice,JACOBS,Commercial,Funding to external organisations to deliver policies (excluding consultancy),Capital 43357,"23,634"
Department for Education,EDUCATION FUNDING AGENCY,12/11/2012,Programme Costs,Free School Legal Advice,TURNER & TOWNSEND,Commercial,Funding to external organisations to deliver policies (excluding consultancy),Capital 43365,"21,284"
Department for Education,EDUCATION FUNDING AGENCY,12/11/2012,Programme Costs,Free School Technical Advice,TURNER & TOWNSEND,Commercial,Funding to external organisations to deliver policies (excluding consultancy),Capital 43365,"132,149"
Department for Education,EDUCATION FUNDING AGENCY,12/11/2012,Programme Costs,Programme Team,TURNER & TOWNSEND,Commercial,Funding to external organisations to deliver policies (excluding consultancy),Capital 43365,"79,335"
Department for Education,EDUCATION FUNDING AGENCY,12/11/2012,Grants,Partnership for Schools Legacy,MANCHESTER DIOCESAN BOARD OF EDUCATION,Public Sector,"Capital grants paid to organisations including agencies, arms length bodies and educational establishments",Capital 43371,"85,305"
Department for Education,EDUCATION FUNDING AGENCY,12/11/2012,Grants,Partnership for Schools Legacy,NORTHAMPTON ROMAN CATHOLIC DIOCESE TRUST,Public Sector,"Capital grants paid to organisations including agencies, arms length bodies and educational establishments",Capital 43375,"39,706"
Department for Education,EDUCATION FUNDING AGENCY,12/11/2012,Grants,Partnership for Schools Legacy,SALISBURY DIOCESAN BOARD OF EDUCATION,Public Sector,"Capital grants paid to organisations including agencies, arms length bodies and educational establishments",Capital 43377,"49,444"
Department for Education,EDUCATION FUNDING AGENCY,12/11/2012,Grants,Partnership for Schools Legacy,CANTERBURY DIOCESAN BOARD OF EDUCATION,Public Sector,"Capital grants paid to organisations including agencies, arms length bodies and educational establishments",Capital 43383,"33,918"
Department for Education,EDUCATION FUNDING AGENCY,12/11/2012,Grants,Partnership for Schools Legacy,TRUSTEES OF THE DIOCESE OF LEEDS,Public Sector,"Capital grants paid to organisations including agencies, arms length bodies and educational establishments",Capital 43387,"81,002"
Department for Education,EDUCATION FUNDING AGENCY,12/11/2012,Grants,Partnership for Schools Legacy,CHICHESTER DIOCESAN BOARD OF FINANCE 11,Public Sector,"Capital grants paid to organisations including agencies, arms length bodies and educational establishments",Capital 43393,"38,157"
Department for Education,EDUCATION FUNDING AGENCY,12/11/2012,Grants,Partnership for Schools Legacy,ST ALBANS DIOCESAN BOARD OF FINANCE,Public Sector,"Capital grants paid to organisations including agencies, arms length bodies and educational establishments",Capital 43395,"48,552"
Department for Education,EDUCATION FUNDING AGENCY,12/11/2012,Grants,Partnership for Schools Legacy,YORK DIOCESAN BOARD OF FINANCE,Public Sector,"Capital grants paid to organisations including agencies, arms length bodies and educational establishments",Capital 43399,"31,913"
Department for Education,EDUCATION FUNDING AGENCY,12/11/2012,Grants,Partnership for Schools Legacy,ROMAN CATHOLIC ARCHDIOCESE OF SOUTHWARK,Public Sector,"Capital grants paid to organisations including agencies, arms length bodies and educational establishments",Capital 43401,"41,905"
Department for Education,EDUCATION FUNDING AGENCY,12/11/2012,Grants,Partnership for Schools Legacy,CLIFTON CATHOLIC DIOCESAN TRUSTEES REGISTERED,Public Sector,"Capital grants paid to organisations including agencies, arms length bodies and educational establishments",Capital 43411,"84,556"
Department for Education,EDUCATION FUNDING AGENCY,12/11/2012,Grants,Partnership for Schools Legacy,ROMAN CATHOLIC DIOCESE HEXHAM AND NEWCASTLE,Public Sector,"Capital grants paid to organisations including agencies, arms length bodies and educational establishments",Capital 43413,"67,431"
Department for Education,EDUCATION FUNDING AGENCY,12/11/2012,Grants,Partnership for Schools Legacy,BIRMINGHAM ROMAN CATHOLIC DIOCESAN TRUSTEES REGISTERED DEVOLVED,Public Sector,"Capital grants paid to organisations including agencies, arms length bodies and educational establishments",Capital 43415,"82,875"
Department for Education,EDUCATION FUNDING AGENCY,12/11/2012,Grants,Partnership for Schools Legacy,WAKEFIELD DIOCESAN COUNCIL OF EDUCATION,Public Sector,"Capital grants paid to organisations including agencies, arms length bodies and educational establishments",Capital 43417,"58,639"
Department for Education,EDUCATION FUNDING AGENCY,12/11/2012,Grants,Partnership for Schools Legacy,ARCHDIOCESE OF LIVERPOOL SCHOOL CAPITAL ACCOUNT NO 5,Public Sector,"Capital grants paid to organisations including agencies, arms length bodies and educational establishments",Capital 43421,"39,179"
Department for Education,EDUCATION FUNDING AGENCY,12/11/2012,Grants,Partnership for Schools Legacy,ARCHDIOCESE OF LIVERPOOL SCHOOL CAPITAL ACCOUNT NO 7.,Public Sector,"Capital grants paid to organisations including agencies, arms length bodies and educational establishments",Capital 43423,"69,011"
Department for Education,EDUCATION FUNDING AGENCY,12/11/2012,Grants,Partnership for Schools Legacy,ST THOMAS NORE CATHOLIC BIRMINGHAM DIOCESE ACCOUNT,Public Sector,"Grants paid to organisations including agencies, arms length bodies and educational establishments",Capital 43425,"87,467"
Department for Education,EDUCATION FUNDING AGENCY,12/11/2012,Grants,Partnership for Schools Legacy,LANCASTER SCHOOL BUILDING FUND ACCOUNT,Public Sector,"Capital grants paid to organisations including agencies, arms length bodies and educational establishments",Capital 43427,"51,265"
Department for Education,EDUCATION FUNDING AGENCY,12/11/2012,Grants,Partnership for Schools Legacy,NEWCASTLE DIOCESAN EDUCATION BOARD,Public Sector,"Capital grants paid to organisations including agencies, arms length bodies and educational establishments",Capital 43429,"26,831"
Department for Education,EDUCATION FUNDING AGENCY,12/11/2012,Grants,Partnership for Schools Legacy,SALFORD ROMAN CATHOLIC DIOCESE DEVOLVED FORMULA CAPITAL 1 ACCOUNT,Public Sector,"Capital grants paid to organisations including agencies, arms length bodies and educational establishments",Capital 43437,"126,109"
Department for Education,EDUCATION FUNDING AGENCY,12/11/2012,Grants,Partnership for Schools Legacy,COVENTRY DIOCESAN BOARD OF EDUCATION,Public Sector,"Capital grants paid to organisations including agencies, arms length bodies and educational establishments",Capital 43439,"37,986"
Department for Education,EDUCATION FUNDING AGENCY,12/11/2012,Grants,Partnership for Schools Legacy,GOVERNORS OF SWANMORE CHURCH ENGLAND SCHOOL CAPITAL,Public Sector,"Capital grants paid to organisations including agencies, arms length bodies and educational establishments",Capital 43443,"28,409"
Department for Education,EDUCATION FUNDING AGENCY,12/11/2012,Grants,Partnership for Schools Legacy,WESTMINSTER ROMAN CATHOLIC DIOCESE TRUST SCHOOL BUILDING FUND PROJECTS,Public Sector,"Capital grants paid to organisations including agencies, arms length bodies and educational establishments",Capital 43445,"1,673,086"
Department for Education,EDUCATION FUNDING AGENCY,12/11/2012,Grants,Partnership for Schools Legacy,NORTH LUFFENHAM CE PRIMARY SCHOOL,Public Sector,"Capital grants paid to organisations including agencies, arms length bodies and educational establishments",Capital 43447,"28,027"
Department for Education,EDUCATION FUNDING AGENCY,12/11/2012,Grants,Free School Capital Costs,THE GREENWICH FREE SCHOOL GROUP,Public Sector,"Capital grants paid to organisations including agencies, arms length bodies and educational establishments",Capital 43455,"393,942"
Department for Education,EDUCATION FUNDING AGENCY,12/11/2012,Grants,Free School Capital Costs,THE GREENWICH FREE SCHOOL GROUP,Public Sector,"Grants paid to organisations including agencies, arms length bodies and educational establishments",Capital 43455,"3,472"
Department for Education,EDUCATION FUNDING AGENCY,12/11/2012,Grants,Free School Capital Costs,THE GREENWICH FREE SCHOOL GROUP,Public Sector,"Capital grants paid to organisations including agencies, arms length bodies and educational establishments",Capital 43455,"94,000"
Department for Education,EDUCATION FUNDING AGENCY,12/11/2012,Grants,Free School Capital Costs,NISKHAM HIGH SCHOOL CAPITAL ACCOUNT,Public Sector,"Capital grants paid to organisations including agencies, arms length bodies and educational establishments",Capital 43459,"109,015"
Department for Education,EDUCATION FUNDING AGENCY,12/11/2012,Grants,Free School Capital Costs,CHAPEL STREET COMMUNITY SCHOOL TRUST ,Public Sector,"Capital grants paid to organisations including agencies, arms length bodies and educational establishments",Capital 43461,"82,932"
Department for Education,EDUCATION FUNDING AGENCY,12/11/2012,Grants,Free School Capital Costs,THE SECKFORD FOUNDATION FREE SCHOOLS TRUST,Public Sector,"Capital grants paid to organisations including agencies, arms length bodies and educational establishments",Capital 43463,"39,670"
Department for Education,EDUCATION FUNDING AGENCY,12/11/2012,Grants,Free School Capital Costs,BARNFIELD STUDIO SCHOOL,Public Sector,"Capital grants paid to organisations including agencies, arms length bodies and educational establishments",Capital 43469,"32,376"
Department for Education,EDUCATION FUNDING AGENCY,12/11/2012,Grants,Free School Capital Costs,BRISTOL & SOUTH GLOUCESTERSHIRE UTC,Public Sector,"Capital grants paid to organisations including agencies, arms length bodies and educational establishments",Capital 43471,"345,116"
Department for Education,EDUCATION FUNDING AGENCY,12/11/2012,Grants,Free School Capital Costs,TAUHEEDUL FREE SCHOOLS TRUST TAUHEEDUL ISLAM BOYS,Public Sector,"Capital grants paid to organisations including agencies, arms length bodies and educational establishments",Capital 43477,"28,571"
Department for Education,EDUCATION FUNDING AGENCY,12/11/2012,Grants,Free School Capital Costs,TAUHEEDUL FREE SCHOOLS TRUST TAUHEEDUL ISLAM BOYS,Public Sector,"Capital grants paid to organisations including agencies, arms length bodies and educational establishments",Capital 43477,"80,616"
Department for Education,DEPARTMENT FOR EDUCATION,12/11/2012,Grants,Academies Delivery Group,KENT COUNTY COUNCIL,Public Sector,To clear budget deficit liability of a maintained school to facilitate conversion to an academy.,4000102559,"203,127"
Department for Education,EDUCATION FUNDING AGENCY,13/11/2012,Programme Costs,Young People's Funding,CAPITA BUSINESS SERVICES LTD,Commercial,Funding to external organisations to deliver policies (excluding consultancy),PAYBACSAUTO 43294,"59,492"
Department for Education,EDUCATION FUNDING AGENCY,13/11/2012,Programme Costs,Young People's Funding,CAPITA BUSINESS SERVICES LTD,Commercial,Funding to external organisations to deliver policies (excluding consultancy),PAYBACSAUTO 43294,"297,462"
Department for Education,EDUCATION FUNDING AGENCY,14/11/2012,Grants,Financial Funding of Corporate Services,BARNSLEY METRO BOROUGH COUNCIL,Public Sector,"Grants paid to organisations including agencies, arms length bodies and educational establishments",PAYBACSAUTO 43300,119
Department for Education,EDUCATION FUNDING AGENCY,14/11/2012,Grants,Financial Funding of Corporate Services,BARNSLEY METRO BOROUGH COUNCIL,Public Sector,"Grants paid to organisations including agencies, arms length bodies and educational establishments",PAYBACSAUTO 43300,"4,639"
Department for Education,EDUCATION FUNDING AGENCY,14/11/2012,Grants,Financial Funding of Corporate Services,BARNSLEY METRO BOROUGH COUNCIL,Public Sector,"Grants paid to organisations including agencies, arms length bodies and educational establishments",PAYBACSAUTO 43300,"1,854"
Department for Education,EDUCATION FUNDING AGENCY,14/11/2012,Grants,Financial Funding of Corporate Services,BARNSLEY METRO BOROUGH COUNCIL,Public Sector,"Grants paid to organisations including agencies, arms length bodies and educational establishments",PAYBACSAUTO 43300,"78,433"
Department for Education,EDUCATION FUNDING AGENCY,14/11/2012,Grants,Financial Funding of Corporate Services,BARNSLEY METRO BOROUGH COUNCIL,Public Sector,"Grants paid to organisations including agencies, arms length bodies and educational establishments",PAYBACSAUTO 43300,"2,882"
Department for Education,EDUCATION FUNDING AGENCY,14/11/2012,Grants,Financial Funding of Corporate Services,BARNSLEY METRO BOROUGH COUNCIL,Public Sector,"Grants paid to organisations including agencies, arms length bodies and educational establishments",PAYBACSAUTO 43300,"42,979"
Department for Education,EDUCATION FUNDING AGENCY,14/11/2012,Grants,Financial Funding of Corporate Services,BARNSLEY METRO BOROUGH COUNCIL,Public Sector,"Grants paid to organisations including agencies, arms length bodies and educational establishments",PAYBACSAUTO 43300,293
Department for Education,EDUCATION FUNDING AGENCY,14/11/2012,Grants,Financial Funding of Corporate Services,BARNSLEY METRO BOROUGH COUNCIL,Public Sector,"Grants paid to organisations including agencies, arms length bodies and educational establishments",PAYBACSAUTO 43300,280
Department for Education,EDUCATION FUNDING AGENCY,14/11/2012,Grants,Financial Funding of Corporate Services,BARNSLEY METRO BOROUGH COUNCIL,Public Sector,"Grants paid to organisations including agencies, arms length bodies and educational establishments",PAYBACSAUTO 43300,"4,551"
Department for Education,EDUCATION FUNDING AGENCY,14/11/2012,Grants,Financial Funding of Corporate Services,BATH & NORTH EAST SOMERSET COUNCIL,Public Sector,"Grants paid to organisations including agencies, arms length bodies and educational establishments",PAYBACSAUTO 43301,"9,229"
Department for Education,EDUCATION FUNDING AGENCY,14/11/2012,Grants,Financial Funding of Corporate Services,BATH & NORTH EAST SOMERSET COUNCIL,Public Sector,"Grants paid to organisations including agencies, arms length bodies and educational establishments",PAYBACSAUTO 43301,"16,682"
Department for Education,EDUCATION FUNDING AGENCY,14/11/2012,Grants,Financial Funding of Corporate Services,BATH & NORTH EAST SOMERSET COUNCIL,Public Sector,"Grants paid to organisations including agencies, arms length bodies and educational establishments",PAYBACSAUTO 43301,207
Department for Education,EDUCATION FUNDING AGENCY,14/11/2012,Grants,Financial Funding of Corporate Services,BATH & NORTH EAST SOMERSET COUNCIL,Public Sector,"Grants paid to organisations including agencies, arms length bodies and educational establishments",PAYBACSAUTO 43301,"40,359"
Department for Education,EDUCATION FUNDING AGENCY,14/11/2012,Grants,Financial Funding of Corporate Services,BATH & NORTH EAST SOMERSET COUNCIL,Public Sector,"Grants paid to organisations including agencies, arms length bodies and educational establishments",PAYBACSAUTO 43301,"1,627"
Department for Education,EDUCATION FUNDING AGENCY,14/11/2012,Grants,Financial Funding of Corporate Services,BATH & NORTH EAST SOMERSET COUNCIL,Public Sector,"Grants paid to organisations including agencies, arms length bodies and educational establishments",PAYBACSAUTO 43301,"72,781"
Department for Education,EDUCATION FUNDING AGENCY,14/11/2012,Grants,Financial Funding of Corporate Services,BEDFORD UNITARY AUTHORITY,Public Sector,"Grants paid to organisations including agencies, arms length bodies and educational establishments",PAYBACSAUTO 43302,"2,793"
Department for Education,EDUCATION FUNDING AGENCY,14/11/2012,Grants,Financial Funding of Corporate Services,BEDFORD UNITARY AUTHORITY,Public Sector,"Grants paid to organisations including agencies, arms length bodies and educational establishments",PAYBACSAUTO 43302,"11,409"
Department for Education,EDUCATION FUNDING AGENCY,14/11/2012,Grants,Financial Funding of Corporate Services,BEDFORD UNITARY AUTHORITY,Public Sector,"Grants paid to organisations including agencies, arms length bodies and educational establishments",PAYBACSAUTO 43302,"1,137"
Department for Education,EDUCATION FUNDING AGENCY,14/11/2012,Grants,Financial Funding of Corporate Services,BEDFORD UNITARY AUTHORITY,Public Sector,"Grants paid to organisations including agencies, arms length bodies and educational establishments",PAYBACSAUTO 43302,"1,663"
Department for Education,EDUCATION FUNDING AGENCY,14/11/2012,Grants,Financial Funding of Corporate Services,BEDFORD UNITARY AUTHORITY,Public Sector,"Grants paid to organisations including agencies, arms length bodies and educational establishments",PAYBACSAUTO 43302,"61,948"
Department for Education,EDUCATION FUNDING AGENCY,14/11/2012,Grants,Financial Funding of Corporate Services,BEDFORD UNITARY AUTHORITY,Public Sector,"Grants paid to organisations including agencies, arms length bodies and educational establishments",PAYBACSAUTO 43302,"76,087"
Department for Education,EDUCATION FUNDING AGENCY,14/11/2012,Grants,Financial Funding of Corporate Services,BEDFORD UNITARY AUTHORITY,Public Sector,"Grants paid to organisations including agencies, arms length bodies and educational establishments",PAYBACSAUTO 43302,"4,167"
Department for Education,EDUCATION FUNDING AGENCY,14/11/2012,Grants,Financial Funding of Corporate Services,BEDFORD UNITARY AUTHORITY,Public Sector,"Grants paid to organisations including agencies, arms length bodies and educational establishments",PAYBACSAUTO 43302,"89,196"
Department for Education,EDUCATION FUNDING AGENCY,14/11/2012,Grants,Financial Funding of Corporate Services,BEDFORD UNITARY AUTHORITY,Public Sector,"Grants paid to organisations including agencies, arms length bodies and educational establishments",PAYBACSAUTO 43302,"3,301"
Department for Education,EDUCATION FUNDING AGENCY,14/11/2012,Grants,Financial Funding of Corporate Services,BEDFORD UNITARY AUTHORITY,Public Sector,"Grants paid to organisations including agencies, arms length bodies and educational establishments",PAYBACSAUTO 43302,"13,703"
Department for Education,EDUCATION FUNDING AGENCY,14/11/2012,Grants,Financial Funding of Corporate Services,BEDFORD UNITARY AUTHORITY,Public Sector,"Grants paid to organisations including agencies, arms length bodies and educational establishments",PAYBACSAUTO 43302,"1,123"
Department for Education,EDUCATION FUNDING AGENCY,14/11/2012,Grants,Financial Funding of Corporate Services,BEDFORD UNITARY AUTHORITY,Public Sector,"Grants paid to organisations including agencies, arms length bodies and educational establishments",PAYBACSAUTO 43302,"12,412"
Department for Education,EDUCATION FUNDING AGENCY,14/11/2012,Grants,Financial Funding of Corporate Services,BEDFORD UNITARY AUTHORITY,Public Sector,"Grants paid to organisations including agencies, arms length bodies and educational establishments",PAYBACSAUTO 43302,"110,646"
Department for Education,EDUCATION FUNDING AGENCY,14/11/2012,Grants,Financial Funding of Corporate Services,BEDFORD UNITARY AUTHORITY,Public Sector,"Grants paid to organisations including agencies, arms length bodies and educational establishments",PAYBACSAUTO 43302,"14,812"
Department for Education,EDUCATION FUNDING AGENCY,14/11/2012,Grants,Financial Funding of Corporate Services,BEDFORD UNITARY AUTHORITY,Public Sector,"Grants paid to organisations including agencies, arms length bodies and educational establishments",PAYBACSAUTO 43302,"5,334"
Department for Education,EDUCATION FUNDING AGENCY,14/11/2012,Grants,Financial Funding of Corporate Services,BEDFORD UNITARY AUTHORITY,Public Sector,"Grants paid to organisations including agencies, arms length bodies and educational establishments",PAYBACSAUTO 43302,"2,093"
Department for Education,EDUCATION FUNDING AGENCY,14/11/2012,Grants,Financial Funding of Corporate Services,BEDFORD UNITARY AUTHORITY,Public Sector,"Grants paid to organisations including agencies, arms length bodies and educational establishments",PAYBACSAUTO 43302,"63,258"
Department for Education,EDUCATION FUNDING AGENCY,14/11/2012,Grants,Financial Funding of Corporate Services,WEST BERKSHIRE COUNCIL,Public Sector,"Grants paid to organisations including agencies, arms length bodies and educational establishments",PAYBACSAUTO 43303,"15,831"
Department for Education,EDUCATION FUNDING AGENCY,14/11/2012,Grants,Financial Funding of Corporate Services,WEST BERKSHIRE COUNCIL,Public Sector,"Grants paid to organisations including agencies, arms length bodies and educational establishments",PAYBACSAUTO 43303,"40,646"
Department for Education,EDUCATION FUNDING AGENCY,14/11/2012,Grants,Financial Funding of Corporate Services,WEST BERKSHIRE COUNCIL,Public Sector,"Grants paid to organisations including agencies, arms length bodies and educational establishments",PAYBACSAUTO 43303,"65,654"
Department for Education,EDUCATION FUNDING AGENCY,14/11/2012,Grants,Financial Funding of Corporate Services,WEST BERKSHIRE COUNCIL,Public Sector,"Grants paid to organisations including agencies, arms length bodies and educational establishments",PAYBACSAUTO 43303,"1,993"
Department for Education,EDUCATION FUNDING AGENCY,14/11/2012,Grants,Financial Funding of Corporate Services,WEST BERKSHIRE COUNCIL,Public Sector,"Grants paid to organisations including agencies, arms length bodies and educational establishments",PAYBACSAUTO 43303,"11,963"
Department for Education,EDUCATION FUNDING AGENCY,14/11/2012,Grants,Financial Funding of Corporate Services,WEST BERKSHIRE COUNCIL,Public Sector,"Grants paid to organisations including agencies, arms length bodies and educational establishments",PAYBACSAUTO 43303,220
Department for Education,EDUCATION FUNDING AGENCY,14/11/2012,Grants,Financial Funding of Corporate Services,WEST BERKSHIRE COUNCIL,Public Sector,"Grants paid to organisations including agencies, arms length bodies and educational establishments",PAYBACSAUTO 43303,"97,077"
Department for Education,EDUCATION FUNDING AGENCY,14/11/2012,Grants,Financial Funding of Corporate Services,WEST BERKSHIRE COUNCIL,Public Sector,"Grants paid to organisations including agencies, arms length bodies and educational establishments",PAYBACSAUTO 43303,463
Department for Education,EDUCATION FUNDING AGENCY,14/11/2012,Grants,Financial Funding of Corporate Services,WEST BERKSHIRE COUNCIL,Public Sector,"Grants paid to organisations including agencies, arms length bodies and educational establishments",PAYBACSAUTO 43303,"1,331"
Department for Education,EDUCATION FUNDING AGENCY,14/11/2012,Grants,Financial Funding of Corporate Services,WEST BERKSHIRE COUNCIL,Public Sector,"Grants paid to organisations including agencies, arms length bodies and educational establishments",PAYBACSAUTO 43303,"6,633"
Department for Education,EDUCATION FUNDING AGENCY,14/11/2012,Grants,Financial Funding of Corporate Services,WEST BERKSHIRE COUNCIL,Public Sector,"Grants paid to organisations including agencies, arms length bodies and educational establishments",PAYBACSAUTO 43303,"1,948"
Department for Education,EDUCATION FUNDING AGENCY,14/11/2012,Grants,Financial Funding of Corporate Services,WEST BERKSHIRE COUNCIL,Public Sector,"Grants paid to organisations including agencies, arms length bodies and educational establishments",PAYBACSAUTO 43303,"84,759"
Department for Education,EDUCATION FUNDING AGENCY,14/11/2012,Grants,Financial Funding of Corporate Services,WEST BERKSHIRE COUNCIL,Public Sector,"Grants paid to organisations including agencies, arms length bodies and educational establishments",PAYBACSAUTO 43303,792
Department for Education,EDUCATION FUNDING AGENCY,14/11/2012,Grants,Financial Funding of Corporate Services,WEST BERKSHIRE COUNCIL,Public Sector,"Grants paid to organisations including agencies, arms length bodies and educational establishments",PAYBACSAUTO 43303,"26,133"
Department for Education,EDUCATION FUNDING AGENCY,14/11/2012,Grants,Financial Funding of Corporate Services,WEST BERKSHIRE COUNCIL,Public Sector,"Grants paid to organisations including agencies, arms length bodies and educational establishments",PAYBACSAUTO 43303,"4,087"
Department for Education,EDUCATION FUNDING AGENCY,14/11/2012,Grants,Financial Funding of Corporate Services,WEST BERKSHIRE COUNCIL,Public Sector,"Grants paid to organisations including agencies, arms length bodies and educational establishments",PAYBACSAUTO 43303,422
Department for Education,EDUCATION FUNDING AGENCY,14/11/2012,Grants,Financial Funding of Corporate Services,WEST BERKSHIRE COUNCIL,Public Sector,"Grants paid to organisations including agencies, arms length bodies and educational establishments",PAYBACSAUTO 43303,"2,118"
Department for Education,EDUCATION FUNDING AGENCY,14/11/2012,Grants,Financial Funding of Corporate Services,WEST BERKSHIRE COUNCIL,Public Sector,"Grants paid to organisations including agencies, arms length bodies and educational establishments",PAYBACSAUTO 43303,"2,978"
Department for Education,EDUCATION FUNDING AGENCY,14/11/2012,Grants,Financial Funding of Corporate Services,WEST BERKSHIRE COUNCIL,Public Sector,"Grants paid to organisations including agencies, arms length bodies and educational establishments",PAYBACSAUTO 43303,"25,511"
Department for Education,EDUCATION FUNDING AGENCY,14/11/2012,Grants,Financial Funding of Corporate Services,WEST BERKSHIRE COUNCIL,Public Sector,"Grants paid to organisations including agencies, arms length bodies and educational establishments",PAYBACSAUTO 43303,440
Department for Education,EDUCATION FUNDING AGENCY,14/11/2012,Grants,Financial Funding of Corporate Services,WEST BERKSHIRE COUNCIL,Public Sector,"Grants paid to organisations including agencies, arms length bodies and educational establishments",PAYBACSAUTO 43303,"4,502"
Department for Education,EDUCATION FUNDING AGENCY,14/11/2012,Grants,Financial Funding of Corporate Services,WEST BERKSHIRE COUNCIL,Public Sector,"Grants paid to organisations including agencies, arms length bodies and educational establishments",PAYBACSAUTO 43303,"155,661"
Department for Education,EDUCATION FUNDING AGENCY,14/11/2012,Grants,Financial Funding of Corporate Services,BIRMINGHAM CITY COUNCIL,Public Sector,"Grants paid to organisations including agencies, arms length bodies and educational establishments",PAYBACSAUTO 43304,"7,590"
Department for Education,EDUCATION FUNDING AGENCY,14/11/2012,Grants,Financial Funding of Corporate Services,BIRMINGHAM CITY COUNCIL,Public Sector,"Grants paid to organisations including agencies, arms length bodies and educational establishments",PAYBACSAUTO 43304,"4,465"
Department for Education,EDUCATION FUNDING AGENCY,14/11/2012,Grants,Financial Funding of Corporate Services,BIRMINGHAM CITY COUNCIL,Public Sector,"Grants paid to organisations including agencies, arms length bodies and educational establishments",PAYBACSAUTO 43304,"1,407"
Department for Education,EDUCATION FUNDING AGENCY,14/11/2012,Grants,Financial Funding of Corporate Services,BIRMINGHAM CITY COUNCIL,Public Sector,"Grants paid to organisations including agencies, arms length bodies and educational establishments",PAYBACSAUTO 43304,"64,002"
Department for Education,EDUCATION FUNDING AGENCY,14/11/2012,Grants,Financial Funding of Corporate Services,BIRMINGHAM CITY COUNCIL,Public Sector,"Grants paid to organisations including agencies, arms length bodies and educational establishments",PAYBACSAUTO 43304,"4,165"
Department for Education,EDUCATION FUNDING AGENCY,14/11/2012,Grants,Financial Funding of Corporate Services,BIRMINGHAM CITY COUNCIL,Public Sector,"Grants paid to organisations including agencies, arms length bodies and educational establishments",PAYBACSAUTO 43304,"11,565"
Department for Education,EDUCATION FUNDING AGENCY,14/11/2012,Grants,Financial Funding of Corporate Services,BIRMINGHAM CITY COUNCIL,Public Sector,"Grants paid to organisations including agencies, arms length bodies and educational establishments",PAYBACSAUTO 43304,"1,094"
Department for Education,EDUCATION FUNDING AGENCY,14/11/2012,Grants,Financial Funding of Corporate Services,BIRMINGHAM CITY COUNCIL,Public Sector,"Grants paid to organisations including agencies, arms length bodies and educational establishments",PAYBACSAUTO 43304,"1,268"
Department for Education,EDUCATION FUNDING AGENCY,14/11/2012,Grants,Financial Funding of Corporate Services,BIRMINGHAM CITY COUNCIL,Public Sector,"Grants paid to organisations including agencies, arms length bodies and educational establishments",PAYBACSAUTO 43304,"2,708"
Department for Education,EDUCATION FUNDING AGENCY,14/11/2012,Grants,Financial Funding of Corporate Services,BIRMINGHAM CITY COUNCIL,Public Sector,"Grants paid to organisations including agencies, arms length bodies and educational establishments",PAYBACSAUTO 43304,"57,159"
Department for Education,EDUCATION FUNDING AGENCY,14/11/2012,Grants,Financial Funding of Corporate Services,BIRMINGHAM CITY COUNCIL,Public Sector,"Grants paid to organisations including agencies, arms length bodies and educational establishments",PAYBACSAUTO 43304,"67,880"
Department for Education,EDUCATION FUNDING AGENCY,14/11/2012,Grants,Financial Funding of Corporate Services,BIRMINGHAM CITY COUNCIL,Public Sector,"Grants paid to organisations including agencies, arms length bodies and educational establishments",PAYBACSAUTO 43304,"2,120"
Department for Education,EDUCATION FUNDING AGENCY,14/11/2012,Grants,Financial Funding of Corporate Services,BIRMINGHAM CITY COUNCIL,Public Sector,"Grants paid to organisations including agencies, arms length bodies and educational establishments",PAYBACSAUTO 43304,"1,487"
Department for Education,EDUCATION FUNDING AGENCY,14/11/2012,Grants,Financial Funding of Corporate Services,BIRMINGHAM CITY COUNCIL,Public Sector,"Grants paid to organisations including agencies, arms length bodies and educational establishments",PAYBACSAUTO 43304,"6,375"
Department for Education,EDUCATION FUNDING AGENCY,14/11/2012,Grants,Financial Funding of Corporate Services,BIRMINGHAM CITY COUNCIL,Public Sector,"Grants paid to organisations including agencies, arms length bodies and educational establishments",PAYBACSAUTO 43304,804
Department for Education,EDUCATION FUNDING AGENCY,14/11/2012,Grants,Financial Funding of Corporate Services,BIRMINGHAM CITY COUNCIL,Public Sector,"Grants paid to organisations including agencies, arms length bodies and educational establishments",PAYBACSAUTO 43304,1
Department for Education,EDUCATION FUNDING AGENCY,14/11/2012,Grants,Financial Funding of Corporate Services,BIRMINGHAM CITY COUNCIL,Public Sector,"Grants paid to organisations including agencies, arms length bodies and educational establishments",PAYBACSAUTO 43304,"1,082"
Department for Education,EDUCATION FUNDING AGENCY,14/11/2012,Grants,Financial Funding of Corporate Services,BIRMINGHAM CITY COUNCIL,Public Sector,"Grants paid to organisations including agencies, arms length bodies and educational establishments",PAYBACSAUTO 43304,"12,955"
Department for Education,EDUCATION FUNDING AGENCY,14/11/2012,Grants,Financial Funding of Corporate Services,BIRMINGHAM CITY COUNCIL,Public Sector,"Grants paid to organisations including agencies, arms length bodies and educational establishments",PAYBACSAUTO 43304,"3,408"
Department for Education,EDUCATION FUNDING AGENCY,14/11/2012,Grants,Financial Funding of Corporate Services,BIRMINGHAM CITY COUNCIL,Public Sector,"Grants paid to organisations including agencies, arms length bodies and educational establishments",PAYBACSAUTO 43304,"20,670"
Department for Education,EDUCATION FUNDING AGENCY,14/11/2012,Grants,Financial Funding of Corporate Services,BIRMINGHAM CITY COUNCIL,Public Sector,"Grants paid to organisations including agencies, arms length bodies and educational establishments",PAYBACSAUTO 43304,"1,020"
Department for Education,EDUCATION FUNDING AGENCY,14/11/2012,Grants,Financial Funding of Corporate Services,BIRMINGHAM CITY COUNCIL,Public Sector,"Grants paid to organisations including agencies, arms length bodies and educational establishments",PAYBACSAUTO 43304,"84,212"
Department for Education,EDUCATION FUNDING AGENCY,14/11/2012,Grants,Financial Funding of Corporate Services,BIRMINGHAM CITY COUNCIL,Public Sector,"Grants paid to organisations including agencies, arms length bodies and educational establishments",PAYBACSAUTO 43304,824
Department for Education,EDUCATION FUNDING AGENCY,14/11/2012,Grants,Financial Funding of Corporate Services,BIRMINGHAM CITY COUNCIL,Public Sector,"Grants paid to organisations including agencies, arms length bodies and educational establishments",PAYBACSAUTO 43304,"38,199"
Department for Education,EDUCATION FUNDING AGENCY,14/11/2012,Grants,Financial Funding of Corporate Services,BIRMINGHAM CITY COUNCIL,Public Sector,"Grants paid to organisations including agencies, arms length bodies and educational establishments",PAYBACSAUTO 43304,"3,045"
Department for Education,EDUCATION FUNDING AGENCY,14/11/2012,Grants,Financial Funding of Corporate Services,BIRMINGHAM CITY COUNCIL,Public Sector,"Grants paid to organisations including agencies, arms length bodies and educational establishments",PAYBACSAUTO 43304,"3,818"
Department for Education,EDUCATION FUNDING AGENCY,14/11/2012,Grants,Financial Funding of Corporate Services,BIRMINGHAM CITY COUNCIL,Public Sector,"Grants paid to organisations including agencies, arms length bodies and educational establishments",PAYBACSAUTO 43304,"32,999"
Department for Education,EDUCATION FUNDING AGENCY,14/11/2012,Grants,Financial Funding of Corporate Services,BIRMINGHAM CITY COUNCIL,Public Sector,"Grants paid to organisations including agencies, arms length bodies and educational establishments",PAYBACSAUTO 43304,"1,596"
Department for Education,EDUCATION FUNDING AGENCY,14/11/2012,Grants,Financial Funding of Corporate Services,BIRMINGHAM CITY COUNCIL,Public Sector,"Grants paid to organisations including agencies, arms length bodies and educational establishments",PAYBACSAUTO 43304,"8,510"
Department for Education,EDUCATION FUNDING AGENCY,14/11/2012,Grants,Financial Funding of Corporate Services,BIRMINGHAM CITY COUNCIL,Public Sector,"Grants paid to organisations including agencies, arms length bodies and educational establishments",PAYBACSAUTO 43304,"104,127"
Department for Education,EDUCATION FUNDING AGENCY,14/11/2012,Grants,Financial Funding of Corporate Services,BIRMINGHAM CITY COUNCIL,Public Sector,"Grants paid to organisations including agencies, arms length bodies and educational establishments",PAYBACSAUTO 43304,"51,919"
Department for Education,EDUCATION FUNDING AGENCY,14/11/2012,Grants,Financial Funding of Corporate Services,BIRMINGHAM CITY COUNCIL,Public Sector,"Grants paid to organisations including agencies, arms length bodies and educational establishments",PAYBACSAUTO 43304,"1,595"
Department for Education,EDUCATION FUNDING AGENCY,14/11/2012,Grants,Financial Funding of Corporate Services,BIRMINGHAM CITY COUNCIL,Public Sector,"Grants paid to organisations including agencies, arms length bodies and educational establishments",PAYBACSAUTO 43304,"2,003"
Department for Education,EDUCATION FUNDING AGENCY,14/11/2012,Grants,Financial Funding of Corporate Services,BIRMINGHAM CITY COUNCIL,Public Sector,"Grants paid to organisations including agencies, arms length bodies and educational establishments",PAYBACSAUTO 43304,"50,233"
Department for Education,EDUCATION FUNDING AGENCY,14/11/2012,Grants,Financial Funding of Corporate Services,BIRMINGHAM CITY COUNCIL,Public Sector,"Grants paid to organisations including agencies, arms length bodies and educational establishments",PAYBACSAUTO 43304,"4,009"
Department for Education,EDUCATION FUNDING AGENCY,14/11/2012,Grants,Financial Funding of Corporate Services,BIRMINGHAM CITY COUNCIL,Public Sector,"Grants paid to organisations including agencies, arms length bodies and educational establishments",PAYBACSAUTO 43304,"4,612"
Department for Education,EDUCATION FUNDING AGENCY,14/11/2012,Grants,Financial Funding of Corporate Services,BIRMINGHAM CITY COUNCIL,Public Sector,"Grants paid to organisations including agencies, arms length bodies and educational establishments",PAYBACSAUTO 43304,"61,485"
Department for Education,EDUCATION FUNDING AGENCY,14/11/2012,Grants,Financial Funding of Corporate Services,BIRMINGHAM CITY COUNCIL,Public Sector,"Grants paid to organisations including agencies, arms length bodies and educational establishments",PAYBACSAUTO 43304,"3,585"
Department for Education,EDUCATION FUNDING AGENCY,14/11/2012,Grants,Financial Funding of Corporate Services,BIRMINGHAM CITY COUNCIL,Public Sector,"Grants paid to organisations including agencies, arms length bodies and educational establishments",PAYBACSAUTO 43304,"23,491"
Department for Education,EDUCATION FUNDING AGENCY,14/11/2012,Grants,Financial Funding of Corporate Services,BIRMINGHAM CITY COUNCIL,Public Sector,"Grants paid to organisations including agencies, arms length bodies and educational establishments",PAYBACSAUTO 43304,"3,283"
Department for Education,EDUCATION FUNDING AGENCY,14/11/2012,Grants,Financial Funding of Corporate Services,BIRMINGHAM CITY COUNCIL,Public Sector,"Grants paid to organisations including agencies, arms length bodies and educational establishments",PAYBACSAUTO 43304,"79,098"
Department for Education,EDUCATION FUNDING AGENCY,14/11/2012,Grants,Financial Funding of Corporate Services,BIRMINGHAM CITY COUNCIL,Public Sector,"Grants paid to organisations including agencies, arms length bodies and educational establishments",PAYBACSAUTO 43304,"1,097"
Department for Education,EDUCATION FUNDING AGENCY,14/11/2012,Grants,Financial Funding of Corporate Services,BIRMINGHAM CITY COUNCIL,Public Sector,"Grants paid to organisations including agencies, arms length bodies and educational establishments",PAYBACSAUTO 43304,"14,785"
Department for Education,EDUCATION FUNDING AGENCY,14/11/2012,Grants,Financial Funding of Corporate Services,BIRMINGHAM CITY COUNCIL,Public Sector,"Grants paid to organisations including agencies, arms length bodies and educational establishments",PAYBACSAUTO 43304,"1,257"
Department for Education,EDUCATION FUNDING AGENCY,14/11/2012,Grants,Financial Funding of Corporate Services,BIRMINGHAM CITY COUNCIL,Public Sector,"Grants paid to organisations including agencies, arms length bodies and educational establishments",PAYBACSAUTO 43304,"2,195"
Department for Education,EDUCATION FUNDING AGENCY,14/11/2012,Grants,Financial Funding of Corporate Services,BIRMINGHAM CITY COUNCIL,Public Sector,"Grants paid to organisations including agencies, arms length bodies and educational establishments",PAYBACSAUTO 43304,"65,598"
Department for Education,EDUCATION FUNDING AGENCY,14/11/2012,Grants,Financial Funding of Corporate Services,BIRMINGHAM CITY COUNCIL,Public Sector,"Grants paid to organisations including agencies, arms length bodies and educational establishments",PAYBACSAUTO 43304,917
Department for Education,EDUCATION FUNDING AGENCY,14/11/2012,Grants,Financial Funding of Corporate Services,BIRMINGHAM CITY COUNCIL,Public Sector,"Grants paid to organisations including agencies, arms length bodies and educational establishments",PAYBACSAUTO 43304,"11,169"
Department for Education,EDUCATION FUNDING AGENCY,14/11/2012,Grants,Financial Funding of Corporate Services,BIRMINGHAM CITY COUNCIL,Public Sector,"Grants paid to organisations including agencies, arms length bodies and educational establishments",PAYBACSAUTO 43304,"2,714"
Department for Education,EDUCATION FUNDING AGENCY,14/11/2012,Grants,Financial Funding of Corporate Services,BIRMINGHAM CITY COUNCIL,Public Sector,"Grants paid to organisations including agencies, arms length bodies and educational establishments",PAYBACSAUTO 43304,"94,686"
Department for Education,EDUCATION FUNDING AGENCY,14/11/2012,Grants,Financial Funding of Corporate Services,BIRMINGHAM CITY COUNCIL,Public Sector,"Grants paid to organisations including agencies, arms length bodies and educational establishments",PAYBACSAUTO 43304,"1,621"
Department for Education,EDUCATION FUNDING AGENCY,14/11/2012,Grants,Financial Funding of Corporate Services,BIRMINGHAM CITY COUNCIL,Public Sector,"Grants paid to organisations including agencies, arms length bodies and educational establishments",PAYBACSAUTO 43304,"23,001"
Department for Education,EDUCATION FUNDING AGENCY,14/11/2012,Grants,Financial Funding of Corporate Services,BIRMINGHAM CITY COUNCIL,Public Sector,"Grants paid to organisations including agencies, arms length bodies and educational establishments",PAYBACSAUTO 43304,"2,215"
Department for Education,EDUCATION FUNDING AGENCY,14/11/2012,Grants,Financial Funding of Corporate Services,BIRMINGHAM CITY COUNCIL,Public Sector,"Grants paid to organisations including agencies, arms length bodies and educational establishments",PAYBACSAUTO 43304,"2,276"
Department for Education,EDUCATION FUNDING AGENCY,14/11/2012,Grants,Financial Funding of Corporate Services,BIRMINGHAM CITY COUNCIL,Public Sector,"Grants paid to organisations including agencies, arms length bodies and educational establishments",PAYBACSAUTO 43304,"2,226"
Department for Education,EDUCATION FUNDING AGENCY,14/11/2012,Grants,Financial Funding of Corporate Services,BIRMINGHAM CITY COUNCIL,Public Sector,"Grants paid to organisations including agencies, arms length bodies and educational establishments",PAYBACSAUTO 43304,"44,904"
Department for Education,EDUCATION FUNDING AGENCY,14/11/2012,Grants,Financial Funding of Corporate Services,BIRMINGHAM CITY COUNCIL,Public Sector,"Grants paid to organisations including agencies, arms length bodies and educational establishments",PAYBACSAUTO 43304,"2,676"
Department for Education,EDUCATION FUNDING AGENCY,14/11/2012,Grants,Financial Funding of Corporate Services,BIRMINGHAM CITY COUNCIL,Public Sector,"Grants paid to organisations including agencies, arms length bodies and educational establishments",PAYBACSAUTO 43304,"56,519"
Department for Education,EDUCATION FUNDING AGENCY,14/11/2012,Grants,Financial Funding of Corporate Services,BIRMINGHAM CITY COUNCIL,Public Sector,"Grants paid to organisations including agencies, arms length bodies and educational establishments",PAYBACSAUTO 43304,"2,147"
Department for Education,EDUCATION FUNDING AGENCY,14/11/2012,Grants,Financial Funding of Corporate Services,BIRMINGHAM CITY COUNCIL,Public Sector,"Grants paid to organisations including agencies, arms length bodies and educational establishments",PAYBACSAUTO 43304,"2,836"
Department for Education,EDUCATION FUNDING AGENCY,14/11/2012,Grants,Financial Funding of Corporate Services,BIRMINGHAM CITY COUNCIL,Public Sector,"Grants paid to organisations including agencies, arms length bodies and educational establishments",PAYBACSAUTO 43304,"84,730"
Department for Education,EDUCATION FUNDING AGENCY,14/11/2012,Grants,Financial Funding of Corporate Services,BIRMINGHAM CITY COUNCIL,Public Sector,"Grants paid to organisations including agencies, arms length bodies and educational establishments",PAYBACSAUTO 43304,381
Department for Education,EDUCATION FUNDING AGENCY,14/11/2012,Grants,Financial Funding of Corporate Services,BIRMINGHAM CITY COUNCIL,Public Sector,"Grants paid to organisations including agencies, arms length bodies and educational establishments",PAYBACSAUTO 43304,503
Department for Education,EDUCATION FUNDING AGENCY,14/11/2012,Grants,Financial Funding of Corporate Services,BIRMINGHAM CITY COUNCIL,Public Sector,"Grants paid to organisations including agencies, arms length bodies and educational establishments",PAYBACSAUTO 43304,"15,033"
Department for Education,EDUCATION FUNDING AGENCY,14/11/2012,Grants,Financial Funding of Corporate Services,BIRMINGHAM CITY COUNCIL,Public Sector,"Grants paid to organisations including agencies, arms length bodies and educational establishments",PAYBACSAUTO 43304,"4,782"
Department for Education,EDUCATION FUNDING AGENCY,14/11/2012,Grants,Financial Funding of Corporate Services,BIRMINGHAM CITY COUNCIL,Public Sector,"Grants paid to organisations including agencies, arms length bodies and educational establishments",PAYBACSAUTO 43304,"11,879"
Department for Education,EDUCATION FUNDING AGENCY,14/11/2012,Grants,Financial Funding of Corporate Services,BIRMINGHAM CITY COUNCIL,Public Sector,"Grants paid to organisations including agencies, arms length bodies and educational establishments",PAYBACSAUTO 43304,"5,470"
Department for Education,EDUCATION FUNDING AGENCY,14/11/2012,Grants,Financial Funding of Corporate Services,BIRMINGHAM CITY COUNCIL,Public Sector,"Grants paid to organisations including agencies, arms length bodies and educational establishments",PAYBACSAUTO 43304,"78,317"
Department for Education,EDUCATION FUNDING AGENCY,14/11/2012,Grants,Financial Funding of Corporate Services,BIRMINGHAM CITY COUNCIL,Public Sector,"Grants paid to organisations including agencies, arms length bodies and educational establishments",PAYBACSAUTO 43304,"433,868"
Department for Education,EDUCATION FUNDING AGENCY,14/11/2012,Grants,Financial Funding of Corporate Services,BIRMINGHAM CITY COUNCIL,Public Sector,"Grants paid to organisations including agencies, arms length bodies and educational establishments",PAYBACSAUTO 43304,"1,662"
Department for Education,EDUCATION FUNDING AGENCY,14/11/2012,Grants,Financial Funding of Corporate Services,BIRMINGHAM CITY COUNCIL,Public Sector,"Grants paid to organisations including agencies, arms length bodies and educational establishments",PAYBACSAUTO 43304,942
Department for Education,EDUCATION FUNDING AGENCY,14/11/2012,Grants,Financial Funding of Corporate Services,BIRMINGHAM CITY COUNCIL,Public Sector,"Grants paid to organisations including agencies, arms length bodies and educational establishments",PAYBACSAUTO 43304,"47,173"
Department for Education,EDUCATION FUNDING AGENCY,14/11/2012,Grants,Financial Funding of Corporate Services,BIRMINGHAM CITY COUNCIL,Public Sector,"Grants paid to organisations including agencies, arms length bodies and educational establishments",PAYBACSAUTO 43304,"3,196"
Department for Education,EDUCATION FUNDING AGENCY,14/11/2012,Grants,Financial Funding of Corporate Services,BIRMINGHAM CITY COUNCIL,Public Sector,"Grants paid to organisations including agencies, arms length bodies and educational establishments",PAYBACSAUTO 43304,100
Department for Education,EDUCATION FUNDING AGENCY,14/11/2012,Grants,Financial Funding of Corporate Services,BIRMINGHAM CITY COUNCIL,Public Sector,"Grants paid to organisations including agencies, arms length bodies and educational establishments",PAYBACSAUTO 43304,50
Department for Education,EDUCATION FUNDING AGENCY,14/11/2012,Grants,Financial Funding of Corporate Services,BIRMINGHAM CITY COUNCIL,Public Sector,"Grants paid to organisations including agencies, arms length bodies and educational establishments",PAYBACSAUTO 43304,"2,141"
Department for Education,EDUCATION FUNDING AGENCY,14/11/2012,Grants,Financial Funding of Corporate Services,BIRMINGHAM CITY COUNCIL,Public Sector,"Grants paid to organisations including agencies, arms length bodies and educational establishments",PAYBACSAUTO 43304,"5,201"
Department for Education,EDUCATION FUNDING AGENCY,14/11/2012,Grants,Financial Funding of Corporate Services,BIRMINGHAM CITY COUNCIL,Public Sector,"Grants paid to organisations including agencies, arms length bodies and educational establishments",PAYBACSAUTO 43304,"72,033"
Department for Education,EDUCATION FUNDING AGENCY,14/11/2012,Grants,Financial Funding of Corporate Services,BIRMINGHAM CITY COUNCIL,Public Sector,"Grants paid to organisations including agencies, arms length bodies and educational establishments",PAYBACSAUTO 43304,"47,414"
Department for Education,EDUCATION FUNDING AGENCY,14/11/2012,Grants,Financial Funding of Corporate Services,BIRMINGHAM CITY COUNCIL,Public Sector,"Grants paid to organisations including agencies, arms length bodies and educational establishments",PAYBACSAUTO 43304,"1,164"
Department for Education,EDUCATION FUNDING AGENCY,14/11/2012,Grants,Financial Funding of Corporate Services,BIRMINGHAM CITY COUNCIL,Public Sector,"Grants paid to organisations including agencies, arms length bodies and educational establishments",PAYBACSAUTO 43304,"4,262"
Department for Education,EDUCATION FUNDING AGENCY,14/11/2012,Grants,Financial Funding of Corporate Services,BIRMINGHAM CITY COUNCIL,Public Sector,"Grants paid to organisations including agencies, arms length bodies and educational establishments",PAYBACSAUTO 43304,524
Department for Education,EDUCATION FUNDING AGENCY,14/11/2012,Grants,Financial Funding of Corporate Services,BIRMINGHAM CITY COUNCIL,Public Sector,"Grants paid to organisations including agencies, arms length bodies and educational establishments",PAYBACSAUTO 43304,"2,559"
Department for Education,EDUCATION FUNDING AGENCY,14/11/2012,Grants,Financial Funding of Corporate Services,BIRMINGHAM CITY COUNCIL,Public Sector,"Grants paid to organisations including agencies, arms length bodies and educational establishments",PAYBACSAUTO 43304,"2,813"
Department for Education,EDUCATION FUNDING AGENCY,14/11/2012,Grants,Financial Funding of Corporate Services,BIRMINGHAM CITY COUNCIL,Public Sector,"Grants paid to organisations including agencies, arms length bodies and educational establishments",PAYBACSAUTO 43304,"1,715"
Department for Education,EDUCATION FUNDING AGENCY,14/11/2012,Grants,Financial Funding of Corporate Services,BIRMINGHAM CITY COUNCIL,Public Sector,"Grants paid to organisations including agencies, arms length bodies and educational establishments",PAYBACSAUTO 43304,"5,382"
Department for Education,EDUCATION FUNDING AGENCY,14/11/2012,Grants,Financial Funding of Corporate Services,BIRMINGHAM CITY COUNCIL,Public Sector,"Grants paid to organisations including agencies, arms length bodies and educational establishments",PAYBACSAUTO 43304,"14,820"
Department for Education,EDUCATION FUNDING AGENCY,14/11/2012,Grants,Financial Funding of Corporate Services,BIRMINGHAM CITY COUNCIL,Public Sector,"Grants paid to organisations including agencies, arms length bodies and educational establishments",PAYBACSAUTO 43304,"67,607"
Department for Education,EDUCATION FUNDING AGENCY,14/11/2012,Grants,Financial Funding of Corporate Services,BIRMINGHAM CITY COUNCIL,Public Sector,"Grants paid to organisations including agencies, arms length bodies and educational establishments",PAYBACSAUTO 43304,483
Department for Education,EDUCATION FUNDING AGENCY,14/11/2012,Grants,Financial Funding of Corporate Services,BIRMINGHAM CITY COUNCIL,Public Sector,"Grants paid to organisations including agencies, arms length bodies and educational establishments",PAYBACSAUTO 43304,"10,499"
Department for Education,EDUCATION FUNDING AGENCY,14/11/2012,Grants,Financial Funding of Corporate Services,BIRMINGHAM CITY COUNCIL,Public Sector,"Grants paid to organisations including agencies, arms length bodies and educational establishments",PAYBACSAUTO 43304,"3,192"
Department for Education,EDUCATION FUNDING AGENCY,14/11/2012,Grants,Financial Funding of Corporate Services,BIRMINGHAM CITY COUNCIL,Public Sector,"Grants paid to organisations including agencies, arms length bodies and educational establishments",PAYBACSAUTO 43304,"69,541"
Department for Education,EDUCATION FUNDING AGENCY,14/11/2012,Grants,Financial Funding of Corporate Services,BIRMINGHAM CITY COUNCIL,Public Sector,"Grants paid to organisations including agencies, arms length bodies and educational establishments",PAYBACSAUTO 43304,248
Department for Education,EDUCATION FUNDING AGENCY,14/11/2012,Grants,Financial Funding of Corporate Services,BIRMINGHAM CITY COUNCIL,Public Sector,"Grants paid to organisations including agencies, arms length bodies and educational establishments",PAYBACSAUTO 43304,139
Department for Education,EDUCATION FUNDING AGENCY,14/11/2012,Grants,Financial Funding of Corporate Services,BIRMINGHAM CITY COUNCIL,Public Sector,"Grants paid to organisations including agencies, arms length bodies and educational establishments",PAYBACSAUTO 43304,"4,241"
Department for Education,EDUCATION FUNDING AGENCY,14/11/2012,Grants,Financial Funding of Corporate Services,BIRMINGHAM CITY COUNCIL,Public Sector,"Grants paid to organisations including agencies, arms length bodies and educational establishments",PAYBACSAUTO 43304,"26,163"
Department for Education,EDUCATION FUNDING AGENCY,14/11/2012,Grants,Financial Funding of Corporate Services,BIRMINGHAM CITY COUNCIL,Public Sector,"Grants paid to organisations including agencies, arms length bodies and educational establishments",PAYBACSAUTO 43304,"1,278"
Department for Education,EDUCATION FUNDING AGENCY,14/11/2012,Grants,Financial Funding of Corporate Services,BIRMINGHAM CITY COUNCIL,Public Sector,"Grants paid to organisations including agencies, arms length bodies and educational establishments",PAYBACSAUTO 43304,"1,096"
Department for Education,EDUCATION FUNDING AGENCY,14/11/2012,Grants,Financial Funding of Corporate Services,BIRMINGHAM CITY COUNCIL,Public Sector,"Grants paid to organisations including agencies, arms length bodies and educational establishments",PAYBACSAUTO 43304,42
Department for Education,EDUCATION FUNDING AGENCY,14/11/2012,Grants,Financial Funding of Corporate Services,BIRMINGHAM CITY COUNCIL,Public Sector,"Grants paid to organisations including agencies, arms length bodies and educational establishments",PAYBACSAUTO 43304,"2,831"
Department for Education,EDUCATION FUNDING AGENCY,14/11/2012,Grants,Financial Funding of Corporate Services,BLACKBURN WITH DARWEN BOROUGH COUNCI,Public Sector,"Grants paid to organisations including agencies, arms length bodies and educational establishments",PAYBACSAUTO 43305,"4,064"
Department for Education,EDUCATION FUNDING AGENCY,14/11/2012,Grants,Financial Funding of Corporate Services,BLACKBURN WITH DARWEN BOROUGH COUNCI,Public Sector,"Grants paid to organisations including agencies, arms length bodies and educational establishments",PAYBACSAUTO 43305,"1,145"
Department for Education,EDUCATION FUNDING AGENCY,14/11/2012,Grants,Financial Funding of Corporate Services,BLACKBURN WITH DARWEN BOROUGH COUNCI,Public Sector,"Grants paid to organisations including agencies, arms length bodies and educational establishments",PAYBACSAUTO 43305,"1,498"
Department for Education,EDUCATION FUNDING AGENCY,14/11/2012,Grants,Financial Funding of Corporate Services,BLACKBURN WITH DARWEN BOROUGH COUNCI,Public Sector,"Grants paid to organisations including agencies, arms length bodies and educational establishments",PAYBACSAUTO 43305,"44,800"
Department for Education,EDUCATION FUNDING AGENCY,14/11/2012,Grants,Financial Funding of Corporate Services,BLACKBURN WITH DARWEN BOROUGH COUNCI,Public Sector,"Grants paid to organisations including agencies, arms length bodies and educational establishments",PAYBACSAUTO 43305,"2,429"
Department for Education,EDUCATION FUNDING AGENCY,14/11/2012,Grants,Financial Funding of Corporate Services,BLACKBURN WITH DARWEN BOROUGH COUNCI,Public Sector,"Grants paid to organisations including agencies, arms length bodies and educational establishments",PAYBACSAUTO 43305,"29,399"
Department for Education,EDUCATION FUNDING AGENCY,14/11/2012,Grants,Financial Funding of Corporate Services,BLACKBURN WITH DARWEN BOROUGH COUNCI,Public Sector,"Grants paid to organisations including agencies, arms length bodies and educational establishments",PAYBACSAUTO 43305,"70,127"
Department for Education,EDUCATION FUNDING AGENCY,14/11/2012,Grants,Financial Funding of Corporate Services,BLACKBURN WITH DARWEN BOROUGH COUNCI,Public Sector,"Grants paid to organisations including agencies, arms length bodies and educational establishments",PAYBACSAUTO 43305,"3,474"
Department for Education,EDUCATION FUNDING AGENCY,14/11/2012,Grants,Financial Funding of Corporate Services,BLACKPOOL BOROUGH COUNCIL,Public Sector,"Grants paid to organisations including agencies, arms length bodies and educational establishments",PAYBACSAUTO 43306,"1,299"
Department for Education,EDUCATION FUNDING AGENCY,14/11/2012,Grants,Financial Funding of Corporate Services,BLACKPOOL BOROUGH COUNCIL,Public Sector,"Grants paid to organisations including agencies, arms length bodies and educational establishments",PAYBACSAUTO 43306,769
Department for Education,EDUCATION FUNDING AGENCY,14/11/2012,Grants,Financial Funding of Corporate Services,BLACKPOOL BOROUGH COUNCIL,Public Sector,"Grants paid to organisations including agencies, arms length bodies and educational establishments",PAYBACSAUTO 43306,"41,342"
Department for Education,EDUCATION FUNDING AGENCY,14/11/2012,Grants,Financial Funding of Corporate Services,BLACKPOOL BOROUGH COUNCIL,Public Sector,"Grants paid to organisations including agencies, arms length bodies and educational establishments",PAYBACSAUTO 43306,"1,776"
Department for Education,EDUCATION FUNDING AGENCY,14/11/2012,Grants,Financial Funding of Corporate Services,BLACKPOOL BOROUGH COUNCIL,Public Sector,"Grants paid to organisations including agencies, arms length bodies and educational establishments",PAYBACSAUTO 43306,"61,443"
Department for Education,EDUCATION FUNDING AGENCY,14/11/2012,Grants,Financial Funding of Corporate Services,BOLTON METRO BOROUGH COUNCIL,Public Sector,"Grants paid to organisations including agencies, arms length bodies and educational establishments",PAYBACSAUTO 43307,962
Department for Education,EDUCATION FUNDING AGENCY,14/11/2012,Grants,Financial Funding of Corporate Services,BOLTON METRO BOROUGH COUNCIL,Public Sector,"Grants paid to organisations including agencies, arms length bodies and educational establishments",PAYBACSAUTO 43307,657
Department for Education,EDUCATION FUNDING AGENCY,14/11/2012,Grants,Financial Funding of Corporate Services,BOLTON METRO BOROUGH COUNCIL,Public Sector,"Grants paid to organisations including agencies, arms length bodies and educational establishments",PAYBACSAUTO 43307,"8,670"
Department for Education,EDUCATION FUNDING AGENCY,14/11/2012,Grants,Financial Funding of Corporate Services,BOLTON METRO BOROUGH COUNCIL,Public Sector,"Grants paid to organisations including agencies, arms length bodies and educational establishments",PAYBACSAUTO 43307,"1,932"
Department for Education,EDUCATION FUNDING AGENCY,14/11/2012,Grants,Financial Funding of Corporate Services,BOLTON METRO BOROUGH COUNCIL,Public Sector,"Grants paid to organisations including agencies, arms length bodies and educational establishments",PAYBACSAUTO 43307,"105,976"
Department for Education,EDUCATION FUNDING AGENCY,14/11/2012,Grants,Financial Funding of Corporate Services,BOLTON METRO BOROUGH COUNCIL,Public Sector,"Grants paid to organisations including agencies, arms length bodies and educational establishments",PAYBACSAUTO 43307,"4,966"
Department for Education,EDUCATION FUNDING AGENCY,14/11/2012,Grants,Financial Funding of Corporate Services,BOLTON METRO BOROUGH COUNCIL,Public Sector,"Grants paid to organisations including agencies, arms length bodies and educational establishments",PAYBACSAUTO 43307,"21,397"
Department for Education,EDUCATION FUNDING AGENCY,14/11/2012,Grants,Financial Funding of Corporate Services,BOLTON METRO BOROUGH COUNCIL,Public Sector,"Grants paid to organisations including agencies, arms length bodies and educational establishments",PAYBACSAUTO 43307,"1,604"
Department for Education,EDUCATION FUNDING AGENCY,14/11/2012,Grants,Financial Funding of Corporate Services,BOLTON METRO BOROUGH COUNCIL,Public Sector,"Grants paid to organisations including agencies, arms length bodies and educational establishments",PAYBACSAUTO 43307,"3,257"
Department for Education,EDUCATION FUNDING AGENCY,14/11/2012,Grants,Financial Funding of Corporate Services,BOLTON METRO BOROUGH COUNCIL,Public Sector,"Grants paid to organisations including agencies, arms length bodies and educational establishments",PAYBACSAUTO 43307,"3,138"
Department for Education,EDUCATION FUNDING AGENCY,14/11/2012,Grants,Financial Funding of Corporate Services,BOLTON METRO BOROUGH COUNCIL,Public Sector,"Grants paid to organisations including agencies, arms length bodies and educational establishments",PAYBACSAUTO 43307,"1,729"
Department for Education,EDUCATION FUNDING AGENCY,14/11/2012,Grants,Financial Funding of Corporate Services,BOLTON METRO BOROUGH COUNCIL,Public Sector,"Grants paid to organisations including agencies, arms length bodies and educational establishments",PAYBACSAUTO 43307,296
Department for Education,EDUCATION FUNDING AGENCY,14/11/2012,Grants,Financial Funding of Corporate Services,BOLTON METRO BOROUGH COUNCIL,Public Sector,"Grants paid to organisations including agencies, arms length bodies and educational establishments",PAYBACSAUTO 43307,"144,963"
Department for Education,EDUCATION FUNDING AGENCY,14/11/2012,Grants,Financial Funding of Corporate Services,BOLTON METRO BOROUGH COUNCIL,Public Sector,"Grants paid to organisations including agencies, arms length bodies and educational establishments",PAYBACSAUTO 43307,"91,837"
Department for Education,EDUCATION FUNDING AGENCY,14/11/2012,Grants,Financial Funding of Corporate Services,BOLTON METRO BOROUGH COUNCIL,Public Sector,"Grants paid to organisations including agencies, arms length bodies and educational establishments",PAYBACSAUTO 43307,"15,476"
Department for Education,EDUCATION FUNDING AGENCY,14/11/2012,Grants,Financial Funding of Corporate Services,BOLTON METRO BOROUGH COUNCIL,Public Sector,"Grants paid to organisations including agencies, arms length bodies and educational establishments",PAYBACSAUTO 43307,"102,009"
Department for Education,EDUCATION FUNDING AGENCY,14/11/2012,Grants,Financial Funding of Corporate Services,BOLTON METRO BOROUGH COUNCIL,Public Sector,"Grants paid to organisations including agencies, arms length bodies and educational establishments",PAYBACSAUTO 43307,"2,804"
Department for Education,EDUCATION FUNDING AGENCY,14/11/2012,Grants,Financial Funding of Corporate Services,BOLTON METRO BOROUGH COUNCIL,Public Sector,"Grants paid to organisations including agencies, arms length bodies and educational establishments",PAYBACSAUTO 43307,"122,151"
Department for Education,EDUCATION FUNDING AGENCY,14/11/2012,Grants,Financial Funding of Corporate Services,BOLTON METRO BOROUGH COUNCIL,Public Sector,"Grants paid to organisations including agencies, arms length bodies and educational establishments",PAYBACSAUTO 43307,"4,601"
Department for Education,EDUCATION FUNDING AGENCY,14/11/2012,Grants,Financial Funding of Corporate Services,BOLTON METRO BOROUGH COUNCIL,Public Sector,"Grants paid to organisations including agencies, arms length bodies and educational establishments",PAYBACSAUTO 43307,"4,596"
Department for Education,EDUCATION FUNDING AGENCY,14/11/2012,Grants,Financial Funding of Corporate Services,BOLTON METRO BOROUGH COUNCIL,Public Sector,"Grants paid to organisations including agencies, arms length bodies and educational establishments",PAYBACSAUTO 43307,"2,768"
Department for Education,EDUCATION FUNDING AGENCY,14/11/2012,Grants,Financial Funding of Corporate Services,BOLTON METRO BOROUGH COUNCIL,Public Sector,"Grants paid to organisations including agencies, arms length bodies and educational establishments",PAYBACSAUTO 43307,"3,931"
Department for Education,EDUCATION FUNDING AGENCY,14/11/2012,Grants,Financial Funding of Corporate Services,ROYAL BOROUGH OF KINGSTON UPON THAME,Public Sector,"Grants paid to organisations including agencies, arms length bodies and educational establishments",PAYBACSAUTO 43308,"10,248"
Department for Education,EDUCATION FUNDING AGENCY,14/11/2012,Grants,Financial Funding of Corporate Services,ROYAL BOROUGH OF KINGSTON UPON THAME,Public Sector,"Grants paid to organisations including agencies, arms length bodies and educational establishments",PAYBACSAUTO 43308,"13,255"
Department for Education,EDUCATION FUNDING AGENCY,14/11/2012,Grants,Financial Funding of Corporate Services,ROYAL BOROUGH OF KINGSTON UPON THAME,Public Sector,"Grants paid to organisations including agencies, arms length bodies and educational establishments",PAYBACSAUTO 43308,454
Department for Education,EDUCATION FUNDING AGENCY,14/11/2012,Grants,Financial Funding of Corporate Services,ROYAL BOROUGH OF KINGSTON UPON THAME,Public Sector,"Grants paid to organisations including agencies, arms length bodies and educational establishments",PAYBACSAUTO 43308,"7,999"
Department for Education,EDUCATION FUNDING AGENCY,14/11/2012,Grants,Financial Funding of Corporate Services,ROYAL BOROUGH OF KINGSTON UPON THAME,Public Sector,"Grants paid to organisations including agencies, arms length bodies and educational establishments",PAYBACSAUTO 43308,"64,264"
Department for Education,EDUCATION FUNDING AGENCY,14/11/2012,Grants,Financial Funding of Corporate Services,ROYAL BOROUGH OF KINGSTON UPON THAME,Public Sector,"Grants paid to organisations including agencies, arms length bodies and educational establishments",PAYBACSAUTO 43308,"35,115"
Department for Education,EDUCATION FUNDING AGENCY,14/11/2012,Grants,Financial Funding of Corporate Services,ROYAL BOROUGH OF KINGSTON UPON THAME,Public Sector,"Grants paid to organisations including agencies, arms length bodies and educational establishments",PAYBACSAUTO 43308,907
Department for Education,EDUCATION FUNDING AGENCY,14/11/2012,Grants,Financial Funding of Corporate Services,ROYAL BOROUGH OF KINGSTON UPON THAME,Public Sector,"Grants paid to organisations including agencies, arms length bodies and educational establishments",PAYBACSAUTO 43308,"1,410"
Department for Education,EDUCATION FUNDING AGENCY,14/11/2012,Grants,Financial Funding of Corporate Services,ROYAL BOROUGH OF KINGSTON UPON THAME,Public Sector,"Grants paid to organisations including agencies, arms length bodies and educational establishments",PAYBACSAUTO 43308,550
Department for Education,EDUCATION FUNDING AGENCY,14/11/2012,Grants,Financial Funding of Corporate Services,BOURNEMOUTH COUNCIL,Public Sector,"Grants paid to organisations including agencies, arms length bodies and educational establishments",PAYBACSAUTO 43309,"4,588"
Department for Education,EDUCATION FUNDING AGENCY,14/11/2012,Grants,Financial Funding of Corporate Services,BOURNEMOUTH COUNCIL,Public Sector,"Grants paid to organisations including agencies, arms length bodies and educational establishments",PAYBACSAUTO 43309,"12,059"
Department for Education,EDUCATION FUNDING AGENCY,14/11/2012,Grants,Financial Funding of Corporate Services,BOURNEMOUTH COUNCIL,Public Sector,"Grants paid to organisations including agencies, arms length bodies and educational establishments",PAYBACSAUTO 43309,"7,563"
Department for Education,EDUCATION FUNDING AGENCY,14/11/2012,Grants,Financial Funding of Corporate Services,BOURNEMOUTH COUNCIL,Public Sector,"Grants paid to organisations including agencies, arms length bodies and educational establishments",PAYBACSAUTO 43309,"96,458"
Department for Education,EDUCATION FUNDING AGENCY,14/11/2012,Grants,Financial Funding of Corporate Services,BOURNEMOUTH COUNCIL,Public Sector,"Grants paid to organisations including agencies, arms length bodies and educational establishments",PAYBACSAUTO 43309,"8,832"
Department for Education,EDUCATION FUNDING AGENCY,14/11/2012,Grants,Financial Funding of Corporate Services,BOURNEMOUTH COUNCIL,Public Sector,"Grants paid to organisations including agencies, arms length bodies and educational establishments",PAYBACSAUTO 43309,"36,708"
